Workbook

Sheet INTRO
B2: Formulaire de demande commune de médicaments pour CP v.4.0
B4: Dans le cadre des efforts mondiaux entrepris pour accélérer l'expansion de la chimioprévention (CP) pour l'élimination de la filariose lymphatique et la lutte contre la schistosomiase et les géohelminthiases, l'Organisation mondiale de la Santé (OMS) facilite l'approvisionnement en albendazole, comprimés de 400 mg (GSK), pour les programmes nationaux d'élimination de la filariose lymphatique et programmes nationaux de lutte contre les géohelminthiases; en diethylcarbamazine, comprimés de 100 mg (Eisai), pour les programmes nationaux d'élimination de la filariose lymphatique; en mebendazole, comprimés de 500 mg (J&J) pour les programmes nationaux de lutte contre les géohelminthiases et en praziquantel, comprimés de 600 mg (Merck KGaA), destinés aux enfants d'âge scolaire, pour les programmes nationaux de lutte contre la schistosomiase. L'OMS contribue également à l'approvisionnement en ivermectine, comprimés de 3 mg (Merck), pour les programmes de donation pour l'onchocercose et la filariose lymphatique. Cet outil Excel est concu pour aider les pays à quantifier le nombre de comprimés nécessaires, selon le traitement de chimioprévention requis, pour atteindre les objectifs de couverture de traitement de populations et districts pour l'année de la demande de médicaments. Le résultat de cet outil est une demande commune de médicaments pour la chimioprévention des maladies tropicales négligées, qui peut être imprimée, signée et soumise à l'OMS pour la demande de ces médicaments.
B6: Structure de l'application (feuilles de travail) :
B8: INTRO | C8: Cette feuille contient des instructions pour compléter le formulaire de demande de médicaments pour la chimioprévention et des informations sur le statut de la chimioprévention pour les maladies d'endémie du pays.
B9: COUNTRY_INFO | C9: Cette feuille contient des informations sur la structure administrative du pays, la population par groupe d'âge, le statut d'endémicité pour chaque maladie, la population devant être traitée par chimioprévention et les interventions prévues.
B10: DEC, ALB_MBD, PZQ et IVM | C10: Ces feuilles contiennent des informations sur l'endémicité des districts ciblés pour le traitement aux médicaments spécifiques à la chimioprévention, les plans de traitement, et le nombre de comprimés requis et demandés.
B11: SUMMARY | C11: Cette feuille inclut un résumé du nombre de comprimés demandés, des informations concernant le stock et les dates de soumission de la demande de médicaments. Avant de générer le rapport (run macros), veuillez sélectionner le médicament pour lequel le rapport est nécessaire. Veuillez suivre la même règle pour voir le nombre de personnes à traiter pour les maladies spécifiques. Cette feuille doit être imprimée et soumise en tant que "Formulaire de demande commune de médicaments pour chimioprévention" (voir les instructions pour la soumission du formulaire sous la feuille SUMMARY).
B13: Instructions pour la saisie des données
B15: La plupart des cellules des feuilles de travail mentionnées ci-dessus contiennent des formules calculées automatiquement en fonction du protocole de traitement recommandé par l'OMS pour chaque maladie. Voir : https://www.who.int/publications/i/item/9789241599993.
B17: Veuillez entrer vos données dans les cellules en fonction de leur code de couleur :
C19: Blanc - la cellule n'est pas protégée. Veuillez entrer la valeur de l'indicateur demandé.
C21: Jaune - la cellule est protégée et inclut le nom de l'indicateur. Aucune entrée de données requise.
C23: Orange - la cellule n'est pas protégée et contient un menu déroulant. Veuillez sélectionner la valeur dans le menu déroulant.
C26: Vert - la cellule n'est pas protégée et contient des formules. Veuillez changer la valeur indiquée uniquement si vos données sont différentes de celles calculées automatiquement.
C29: Bleu - la cellule est protégée et contient des formules. Aucune entrée de données requise.
B31: Données pays
B33: PAYS | E33: Guinée Équatoriale
E34: 5
B35: Année de la demande de médicaments | E35: 2023
B37: Le pays est-il endémique à la filariose lymphatique (FL) ? | E37: Endémique
B39: Le pays est-il endémique à l'onchocercose (ONCHO) ? | E39: Endémique
B41: Le pays est-il endémique aux géohelminthiases (STH) ? | E41: Endémique
B43: Le pays est-il endémique à la schistosomiase (SCH) ? | E43: Endémique
B45: Combien d'unités administratives compte le pays ? | E45: 18
B47: Si les données démographiques par groupe d'âge ne sont pas disponibles au second niveau administratif, veuillez entrer la proportion (%) de population, par groupe d'âge, du pays. Si les données sont disponibles, veuillez laisser les cellules vierges.
B48: 1-4 ans | C48: Enfants d'âge pré-scolaire (EAPréS) | E48: 0.0829
B49: 5-14 ans | C49: Enfants d'âge scolaire (EAS) | E49: 0.2471
B50: 15 ans et plus | C50: Adultes | E50: 0.6123
B51: 15-49 ans | C51: Femmes en âge de procréer (FAP) | E51: 0.2259

Sheet COUNTRY_INFO
A1: INFORMATIONS PAYS
A2: Struture administrative, population par groupe d'âge, statut d'endémicité et interventions planifiées
A4: TOTAL | D4: =SUBTOTAL(9,D$10:D$1010) -> 1228703 | E4: =SUBTOTAL(9,E$10:E$1010) -> 101860 | F4: 303613 | G4: 752335 | L4: =SUBTOTAL(9,L$10:L$1010) -> 997269 | M4: 0 | N4: 101153 | O4: 301505 | P4: 275637 | Q4: 678295 | R4: 25552 | S4: 101550 | T4: 251633 | U4: 378735
A6: Structure administrative du pays | D6: Population | H6: Endémicité | L6: Population nécessitant la CP | V6: Nombre de tournées de traitement prévues pour l'année | Z6: Criteria to apply for IVM+DEC+ALB therapy | AA6: Enquêtes épidémiologiques planifiées pour l’année
A7: Pays | B7: Région/Département | C7: District | D7: Total | E7: EAPréS | F7: EAS | G7: Adultes | H7: FL | I7: Oncho | J7: STH | K7: SCH | L7: FL | M7: ONCHO | N7: STH | R7: SCH | V7: FL | W7: Oncho | X7: STH | Y7: SCH | Z7: FL | AA7: FL | AB7: Oncho | AC7: STH | AD7: SCH
N8: EAPréS | O8: EAS | P8: FAP | Q8: TOTAL | R8: EAPréS | S8: EAS | T8: Adultes | U8: TOTAL | AH8: IU_ID | AI8: IU_Name
A10: =IF(INTRO!$E$33<>0,INTRO!$E$33, " ") -> Guinée Équatoriale | B10: Annobon | C10: Annonbon | D10: 8532 | E10: =IF(INTRO!$E$48="","",ROUND($D10*INTRO!$E$48,0)) -> 707 | F10: =IF(INTRO!$E$49="","",ROUND($D10*INTRO!$E$49,0)) -> 2108 | G10: =IF(INTRO!$E$50="","",ROUND($D10*INTRO!$E$50,0)) -> 5224 | H10: 4 | I10: 4 | J10: 4 | K10: 4 | L10: =IF(INTRO!$E$37="Endémique",IF($H10>0,IF($H10=4,"Inconnu",IF($H10=99,"Interrompu",$D10)),0),"Non requis") -> Inconnu | M10: =IF(INTRO!$E$39="Endémique", IF($I10>0, IF($I10=4,"Inconnu",IF($I10=99,"Interrompu",$D10)), 0),"Non requis") -> Inconnu | N10: =IF(INTRO!$E$41="Endémique", IF($J10>1, IF($J10=4, "Inconnu", IF($J10=99, "Surveillance", E10)), 0),"Non requis") -> Inconnu | O10: =IF(INTRO!$E$41="Endémique", IF($J10>1, IF($J10=4, "Inconnu", IF($J10=99, "Surveillance", F10)), 0),"Non requis") -> Inconnu | P10: =IF(INTRO!$E$41="Endémique", IF($J10>1, IF($J10=4, "Inconnu", IF($J10=99, "Surveillance", ROUND(D10*INTRO!$E$51,0))), 0),"Non requis") -> Inconnu | Q10: =IF(INTRO!$E$41="Endémique", IF($J10>1, IF($J10=4, "Inconnu", IF($J10=99, "Surveillance", SUM($N10:$P10))), 0),"Non requis") -> Inconnu | R10: =IF(INTRO!$E$43="Endémique", IF($K10>1, IF($K10=4, "Inconnu", IF($K10=99, "Surveillance", ROUND(E10*0.75,0))), 0),"Non requis") -> Inconnu | S10: =IF(INTRO!$E$43="Endémique", IF($K10>1, IF($K10=4, "Inconnu", IF($K10=99, "Surveillance", F10)), 0),"Non requis") -> Inconnu | T10: =IF(INTRO!$E$43="Endémique", IF($K10>1, IF($K10=4, "Inconnu", IF($K10=99, "Surveillance", G10)), 0),"Non requis") -> Inconnu | U10: =IF(INTRO!$E$43="Endémique", IF($K10>1, IF($K10=4, "Inconnu", IF($K10=99, "Surveillance", SUM($R10:$T10))), 0),"Non requis") -> Inconnu | V10: 0 | W10: 0 | X10: 0 | Y10: 0 | AH10: 16411 | AI10: Annonbon
A11: =IF(INTRO!$E$33<>0,INTRO!$E$33, " ") -> Guinée Équatoriale | B11: Bioko Norte | C11: Baney | D11: 32364 | E11: =IF(INTRO!$E$48="","",ROUND($D11*INTRO!$E$48,0)) -> 2683 | F11: =IF(INTRO!$E$49="","",ROUND($D11*INTRO!$E$49,0)) -> 7997 | G11: =IF(INTRO!$E$50="","",ROUND($D11*INTRO!$E$50,0)) -> 19816 | H11: 1 | I11: 99 | J11: 3 | K11: 1 | L11: =IF(INTRO!$E$37="Endémique",IF($H11>0,IF($H11=4,"Inconnu",IF($H11=99,"Interrompu",$D11)),0),"Non requis") -> 32364 | M11: =IF(INTRO!$E$39="Endémique", IF($I11>0, IF($I11=4,"Inconnu",IF($I11=99,"Interrompu",$D11)), 0),"Non requis") -> Interrompu | N11: =IF(INTRO!$E$41="Endémique", IF($J11>1, IF($J11=4, "Inconnu", IF($J11=99, "Surveillance", E11)), 0),"Non requis") -> 2683 | O11: =IF(INTRO!$E$41="Endémique", IF($J11>1, IF($J11=4, "Inconnu", IF($J11=99, "Surveillance", F11)), 0),"Non requis") -> 7997 | P11: =IF(INTRO!$E$41="Endémique", IF($J11>1, IF($J11=4, "Inconnu", IF($J11=99, "Surveillance", ROUND(D11*INTRO!$E$51,0))), 0),"Non requis") -> 7311 | Q11: =IF(INTRO!$E$41="Endémique", IF($J11>1, IF($J11=4, "Inconnu", IF($J11=99, "Surveillance", SUM($N11:$P11))), 0),"Non requis") -> 17991 | R11: =IF(INTRO!$E$43="Endémique", IF($K11>1, IF($K11=4, "Inconnu", IF($K11=99, "Surveillance", ROUND(E11*0.75,0))), 0),"Non requis") -> 0 | S11: =IF(INTRO!$E$43="Endémique", IF($K11>1, IF($K11=4, "Inconnu", IF($K11=99, "Surveillance", F11)), 0),"Non requis") -> 0 | T11: =IF(INTRO!$E$43="Endémique", IF($K11>1, IF($K11=4, "Inconnu", IF($K11=99, "Surveillance", G11)), 0),"Non requis") -> 0 | U11: =IF(INTRO!$E$43="Endémique", IF($K11>1, IF($K11=4, "Inconnu", IF($K11=99, "Surveillance", SUM($R11:$T11))), 0),"Non requis") -> 0 | V11: 1 | W11: 0 | X11: 2 | Y11: 0 | AH11: 16412 | AI11: Baney
A12: =IF(INTRO!$E$33<>0,INTRO!$E$33, " ") -> Guinée Équatoriale | B12: Bioko Norte | C12: Malabo | D12: 194944 | E12: =IF(INTRO!$E$48="","",ROUND($D12*INTRO!$E$48,0)) -> 16161 | F12: =IF(INTRO!$E$49="","",ROUND($D12*INTRO!$E$49,0)) -> 48171 | G12: =IF(INTRO!$E$50="","",ROUND($D12*INTRO!$E$50,0)) -> 119364 | H12: 0 | I12: 99 | J12: 3 | K12: 2 | L12: =IF(INTRO!$E$37="Endémique",IF($H12>0,IF($H12=4,"Inconnu",IF($H12=99,"Interrompu",$D12)),0),"Non requis") -> 0 | M12: =IF(INTRO!$E$39="Endémique", IF($I12>0, IF($I12=4,"Inconnu",IF($I12=99,"Interrompu",$D12)), 0),"Non requis") -> Interrompu | N12: =IF(INTRO!$E$41="Endémique", IF($J12>1, IF($J12=4, "Inconnu", IF($J12=99, "Surveillance", E12)), 0),"Non requis") -> 16161 | O12: =IF(INTRO!$E$41="Endémique", IF($J12>1, IF($J12=4, "Inconnu", IF($J12=99, "Surveillance", F12)), 0),"Non requis") -> 48171 | P12: =IF(INTRO!$E$41="Endémique", IF($J12>1, IF($J12=4, "Inconnu", IF($J12=99, "Surveillance", ROUND(D12*INTRO!$E$51,0))), 0),"Non requis") -> 44038 | Q12: =IF(INTRO!$E$41="Endémique", IF($J12>1, IF($J12=4, "Inconnu", IF($J12=99, "Surveillance", SUM($N12:$P12))), 0),"Non requis") -> 108370 | R12: =IF(INTRO!$E$43="Endémique", IF($K12>1, IF($K12=4, "Inconnu", IF($K12=99, "Surveillance", ROUND(E12*0.75,0))), 0),"Non requis") -> 12121 | S12: =IF(INTRO!$E$43="Endémique", IF($K12>1, IF($K12=4, "Inconnu", IF($K12=99, "Surveillance", F12)), 0),"Non requis") -> 48171 | T12: =IF(INTRO!$E$43="Endémique", IF($K12>1, IF($K12=4, "Inconnu", IF($K12=99, "Surveillance", G12)), 0),"Non requis") -> 119364 | U12: =IF(INTRO!$E$43="Endémique", IF($K12>1, IF($K12=4, "Inconnu", IF($K12=99, "Surveillance", SUM($R12:$T12))), 0),"Non requis") -> 179656 | V12: 0 | W12: 0 | X12: 2 | Y12: 1 | AH12: 16413 | AI12: Malabo
A13: =IF(INTRO!$E$33<>0,INTRO!$E$33, " ") -> Guinée Équatoriale | B13: Bioko Sur | C13: Luba | D13: 27958 | E13: =IF(INTRO!$E$48="","",ROUND($D13*INTRO!$E$48,0)) -> 2318 | F13: =IF(INTRO!$E$49="","",ROUND($D13*INTRO!$E$49,0)) -> 6908 | G13: =IF(INTRO!$E$50="","",ROUND($D13*INTRO!$E$50,0)) -> 17119 | H13: 0 | I13: 99 | J13: 2 | K13: 0 | L13: =IF(INTRO!$E$37="Endémique",IF($H13>0,IF($H13=4,"Inconnu",IF($H13=99,"Interrompu",$D13)),0),"Non requis") -> 0 | M13: =IF(INTRO!$E$39="Endémique", IF($I13>0, IF($I13=4,"Inconnu",IF($I13=99,"Interrompu",$D13)), 0),"Non requis") -> Interrompu | N13: =IF(INTRO!$E$41="Endémique", IF($J13>1, IF($J13=4, "Inconnu", IF($J13=99, "Surveillance", E13)), 0),"Non requis") -> 2318 | O13: =IF(INTRO!$E$41="Endémique", IF($J13>1, IF($J13=4, "Inconnu", IF($J13=99, "Surveillance", F13)), 0),"Non requis") -> 6908 | P13: =IF(INTRO!$E$41="Endémique", IF($J13>1, IF($J13=4, "Inconnu", IF($J13=99, "Surveillance", ROUND(D13*INTRO!$E$51,0))), 0),"Non requis") -> 6316 | Q13: =IF(INTRO!$E$41="Endémique", IF($J13>1, IF($J13=4, "Inconnu", IF($J13=99, "Surveillance", SUM($N13:$P13))), 0),"Non requis") -> 15542 | R13: =IF(INTRO!$E$43="Endémique", IF($K13>1, IF($K13=4, "Inconnu", IF($K13=99, "Surveillance", ROUND(E13*0.75,0))), 0),"Non requis") -> 0 | S13: =IF(INTRO!$E$43="Endémique", IF($K13>1, IF($K13=4, "Inconnu", IF($K13=99, "Surveillance", F13)), 0),"Non requis") -> 0 | T13: =IF(INTRO!$E$43="Endémique", IF($K13>1, IF($K13=4, "Inconnu", IF($K13=99, "Surveillance", G13)), 0),"Non requis") -> 0 | U13: =IF(INTRO!$E$43="Endémique", IF($K13>1, IF($K13=4, "Inconnu", IF($K13=99, "Surveillance", SUM($R13:$T13))), 0),"Non requis") -> 0 | V13: 0 | W13: 0 | X13: 1 | Y13: 0 | AH13: 16414 | AI13: Luba
A14: =IF(INTRO!$E$33<>0,INTRO!$E$33, " ") -> Guinée Équatoriale | B14: Bioko Sur | C14: Riaba | D14: 10065 | E14: =IF(INTRO!$E$48="","",ROUND($D14*INTRO!$E$48,0)) -> 834 | F14: =IF(INTRO!$E$49="","",ROUND($D14*INTRO!$E$49,0)) -> 2487 | G14: =IF(INTRO!$E$50="","",ROUND($D14*INTRO!$E$50,0)) -> 6163 | H14: 1 | I14: 99 | J14: 3 | K14: 0 | L14: =IF(INTRO!$E$37="Endémique",IF($H14>0,IF($H14=4,"Inconnu",IF($H14=99,"Interrompu",$D14)),0),"Non requis") -> 10065 | M14: =IF(INTRO!$E$39="Endémique", IF($I14>0, IF($I14=4,"Inconnu",IF($I14=99,"Interrompu",$D14)), 0),"Non requis") -> Interrompu | N14: =IF(INTRO!$E$41="Endémique", IF($J14>1, IF($J14=4, "Inconnu", IF($J14=99, "Surveillance", E14)), 0),"Non requis") -> 834 | O14: =IF(INTRO!$E$41="Endémique", IF($J14>1, IF($J14=4, "Inconnu", IF($J14=99, "Surveillance", F14)), 0),"Non requis") -> 2487 | P14: =IF(INTRO!$E$41="Endémique", IF($J14>1, IF($J14=4, "Inconnu", IF($J14=99, "Surveillance", ROUND(D14*INTRO!$E$51,0))), 0),"Non requis") -> 2274 | Q14: =IF(INTRO!$E$41="Endémique", IF($J14>1, IF($J14=4, "Inconnu", IF($J14=99, "Surveillance", SUM($N14:$P14))), 0),"Non requis") -> 5595 | R14: =IF(INTRO!$E$43="Endémique", IF($K14>1, IF($K14=4, "Inconnu", IF($K14=99, "Surveillance", ROUND(E14*0.75,0))), 0),"Non requis") -> 0 | S14: =IF(INTRO!$E$43="Endémique", IF($K14>1, IF($K14=4, "Inconnu", IF($K14=99, "Surveillance", F14)), 0),"Non requis") -> 0 | T14: =IF(INTRO!$E$43="Endémique", IF($K14>1, IF($K14=4, "Inconnu", IF($K14=99, "Surveillance", G14)), 0),"Non requis") -> 0 | U14: =IF(INTRO!$E$43="Endémique", IF($K14>1, IF($K14=4, "Inconnu", IF($K14=99, "Surveillance", SUM($R14:$T14))), 0),"Non requis") -> 0 | V14: 1 | W14: 0 | X14: 2 | Y14: 0 | AH14: 16415 | AI14: Riaba
A15: =IF(INTRO!$E$33<>0,INTRO!$E$33, " ") -> Guinée Équatoriale | B15: Centro Sur | C15: Acurenam | D15: 35186 | E15: =IF(INTRO!$E$48="","",ROUND($D15*INTRO!$E$48,0)) -> 2917 | F15: =IF(INTRO!$E$49="","",ROUND($D15*INTRO!$E$49,0)) -> 8694 | G15: =IF(INTRO!$E$50="","",ROUND($D15*INTRO!$E$50,0)) -> 21544 | H15: 1 | I15: 4 | J15: 3 | K15: 1 | L15: =IF(INTRO!$E$37="Endémique",IF($H15>0,IF($H15=4,"Inconnu",IF($H15=99,"Interrompu",$D15)),0),"Non requis") -> 35186 | M15: =IF(INTRO!$E$39="Endémique", IF($I15>0, IF($I15=4,"Inconnu",IF($I15=99,"Interrompu",$D15)), 0),"Non requis") -> Inconnu | N15: =IF(INTRO!$E$41="Endémique", IF($J15>1, IF($J15=4, "Inconnu", IF($J15=99, "Surveillance", E15)), 0),"Non requis") -> 2917 | O15: =IF(INTRO!$E$41="Endémique", IF($J15>1, IF($J15=4, "Inconnu", IF($J15=99, "Surveillance", F15)), 0),"Non requis") -> 8694 | P15: =IF(INTRO!$E$41="Endémique", IF($J15>1, IF($J15=4, "Inconnu", IF($J15=99, "Surveillance", ROUND(D15*INTRO!$E$51,0))), 0),"Non requis") -> 7949 | Q15: =IF(INTRO!$E$41="Endémique", IF($J15>1, IF($J15=4, "Inconnu", IF($J15=99, "Surveillance", SUM($N15:$P15))), 0),"Non requis") -> 19560 | R15: =IF(INTRO!$E$43="Endémique", IF($K15>1, IF($K15=4, "Inconnu", IF($K15=99, "Surveillance", ROUND(E15*0.75,0))), 0),"Non requis") -> 0 | S15: =IF(INTRO!$E$43="Endémique", IF($K15>1, IF($K15=4, "Inconnu", IF($K15=99, "Surveillance", F15)), 0),"Non requis") -> 0 | T15: =IF(INTRO!$E$43="Endémique", IF($K15>1, IF($K15=4, "Inconnu", IF($K15=99, "Surveillance", G15)), 0),"Non requis") -> 0 | U15: =IF(INTRO!$E$43="Endémique", IF($K15>1, IF($K15=4, "Inconnu", IF($K15=99, "Surveillance", SUM($R15:$T15))), 0),"Non requis") -> 0 | V15: 1 | W15: 0 | X15: 2 | Y15: 0 | AH15: 16416 | AI15: Acurenam
A16: =IF(INTRO!$E$33<>0,INTRO!$E$33, " ") -> Guinée Équatoriale | B16: Centro Sur | C16: Evinayong | D16: 64599 | E16: =IF(INTRO!$E$48="","",ROUND($D16*INTRO!$E$48,0)) -> 5355 | F16: =IF(INTRO!$E$49="","",ROUND($D16*INTRO!$E$49,0)) -> 15962 | G16: =IF(INTRO!$E$50="","",ROUND($D16*INTRO!$E$50,0)) -> 39554 | H16: 1 | I16: 4 | J16: 3 | K16: 1 | L16: =IF(INTRO!$E$37="Endémique",IF($H16>0,IF($H16=4,"Inconnu",IF($H16=99,"Interrompu",$D16)),0),"Non requis") -> 64599 | M16: =IF(INTRO!$E$39="Endémique", IF($I16>0, IF($I16=4,"Inconnu",IF($I16=99,"Interrompu",$D16)), 0),"Non requis") -> Inconnu | N16: =IF(INTRO!$E$41="Endémique", IF($J16>1, IF($J16=4, "Inconnu", IF($J16=99, "Surveillance", E16)), 0),"Non requis") -> 5355 | O16: =IF(INTRO!$E$41="Endémique", IF($J16>1, IF($J16=4, "Inconnu", IF($J16=99, "Surveillance", F16)), 0),"Non requis") -> 15962 | P16: =IF(INTRO!$E$41="Endémique", IF($J16>1, IF($J16=4, "Inconnu", IF($J16=99, "Surveillance", ROUND(D16*INTRO!$E$51,0))), 0),"Non requis") -> 14593 | Q16: =IF(INTRO!$E$41="Endémique", IF($J16>1, IF($J16=4, "Inconnu", IF($J16=99, "Surveillance", SUM($N16:$P16))), 0),"Non requis") -> 35910 | R16: =IF(INTRO!$E$43="Endémique", IF($K16>1, IF($K16=4, "Inconnu", IF($K16=99, "Surveillance", ROUND(E16*0.75,0))), 0),"Non requis") -> 0 | S16: =IF(INTRO!$E$43="Endémique", IF($K16>1, IF($K16=4, "Inconnu", IF($K16=99, "Surveillance", F16)), 0),"Non requis") -> 0 | T16: =IF(INTRO!$E$43="Endémique", IF($K16>1, IF($K16=4, "Inconnu", IF($K16=99, "Surveillance", G16)), 0),"Non requis") -> 0 | U16: =IF(INTRO!$E$43="Endémique", IF($K16>1, IF($K16=4, "Inconnu", IF($K16=99, "Surveillance", SUM($R16:$T16))), 0),"Non requis") -> 0 | V16: 1 | W16: 0 | X16: 2 | Y16: 0 | AH16: 16417 | AI16: Evinayong
A17: =IF(INTRO!$E$33<>0,INTRO!$E$33, " ") -> Guinée Équatoriale | B17: Centro Sur | C17: Niefang | D17: 82760 | E17: =IF(INTRO!$E$48="","",ROUND($D17*INTRO!$E$48,0)) -> 6861 | F17: =IF(INTRO!$E$49="","",ROUND($D17*INTRO!$E$49,0)) -> 20450 | G17: =IF(INTRO!$E$50="","",ROUND($D17*INTRO!$E$50,0)) -> 50674 | H17: 1 | I17: 4 | J17: 3 | K17: 1 | L17: =IF(INTRO!$E$37="Endémique",IF($H17>0,IF($H17=4,"Inconnu",IF($H17=99,"Interrompu",$D17)),0),"Non requis") -> 82760 | M17: =IF(INTRO!$E$39="Endémique", IF($I17>0, IF($I17=4,"Inconnu",IF($I17=99,"Interrompu",$D17)), 0),"Non requis") -> Inconnu | N17: =IF(INTRO!$E$41="Endémique", IF($J17>1, IF($J17=4, "Inconnu", IF($J17=99, "Surveillance", E17)), 0),"Non requis") -> 6861 | O17: =IF(INTRO!$E$41="Endémique", IF($J17>1, IF($J17=4, "Inconnu", IF($J17=99, "Surveillance", F17)), 0),"Non requis") -> 20450 | P17: =IF(INTRO!$E$41="Endémique", IF($J17>1, IF($J17=4, "Inconnu", IF($J17=99, "Surveillance", ROUND(D17*INTRO!$E$51,0))), 0),"Non requis") -> 18695 | Q17: =IF(INTRO!$E$41="Endémique", IF($J17>1, IF($J17=4, "Inconnu", IF($J17=99, "Surveillance", SUM($N17:$P17))), 0),"Non requis") -> 46006 | R17: =IF(INTRO!$E$43="Endémique", IF($K17>1, IF($K17=4, "Inconnu", IF($K17=99, "Surveillance", ROUND(E17*0.75,0))), 0),"Non requis") -> 0 | S17: =IF(INTRO!$E$43="Endémique", IF($K17>1, IF($K17=4, "Inconnu", IF($K17=99, "Surveillance", F17)), 0),"Non requis") -> 0 | T17: =IF(INTRO!$E$43="Endémique", IF($K17>1, IF($K17=4, "Inconnu", IF($K17=99, "Surveillance", G17)), 0),"Non requis") -> 0 | U17: =IF(INTRO!$E$43="Endémique", IF($K17>1, IF($K17=4, "Inconnu", IF($K17=99, "Surveillance", SUM($R17:$T17))), 0),"Non requis") -> 0 | V17: 1 | W17: 0 | X17: 2 | Y17: 0 | AH17: 16418 | AI17: Niefang
A18: =IF(INTRO!$E$33<>0,INTRO!$E$33, " ") -> Guinée Équatoriale | B18: Kientem | C18: Ebebiyin | D18: 137821 | E18: =IF(INTRO!$E$48="","",ROUND($D18*INTRO!$E$48,0)) -> 11425 | F18: =IF(INTRO!$E$49="","",ROUND($D18*INTRO!$E$49,0)) -> 34056 | G18: =IF(INTRO!$E$50="","",ROUND($D18*INTRO!$E$50,0)) -> 84388 | H18: 1 | I18: 4 | J18: 3 | K18: 1 | L18: =IF(INTRO!$E$37="Endémique",IF($H18>0,IF($H18=4,"Inconnu",IF($H18=99,"Interrompu",$D18)),0),"Non requis") -> 137821 | M18: =IF(INTRO!$E$39="Endémique", IF($I18>0, IF($I18=4,"Inconnu",IF($I18=99,"Interrompu",$D18)), 0),"Non requis") -> Inconnu | N18: =IF(INTRO!$E$41="Endémique", IF($J18>1, IF($J18=4, "Inconnu", IF($J18=99, "Surveillance", E18)), 0),"Non requis") -> 11425 | O18: =IF(INTRO!$E$41="Endémique", IF($J18>1, IF($J18=4, "Inconnu", IF($J18=99, "Surveillance", F18)), 0),"Non requis") -> 34056 | P18: =IF(INTRO!$E$41="Endémique", IF($J18>1, IF($J18=4, "Inconnu", IF($J18=99, "Surveillance", ROUND(D18*INTRO!$E$51,0))), 0),"Non requis") -> 31134 | Q18: =IF(INTRO!$E$41="Endémique", IF($J18>1, IF($J18=4, "Inconnu", IF($J18=99, "Surveillance", SUM($N18:$P18))), 0),"Non requis") -> 76615 | R18: =IF(INTRO!$E$43="Endémique", IF($K18>1, IF($K18=4, "Inconnu", IF($K18=99, "Surveillance", ROUND(E18*0.75,0))), 0),"Non requis") -> 0 | S18: =IF(INTRO!$E$43="Endémique", IF($K18>1, IF($K18=4, "Inconnu", IF($K18=99, "Surveillance", F18)), 0),"Non requis") -> 0 | T18: =IF(INTRO!$E$43="Endémique", IF($K18>1, IF($K18=4, "Inconnu", IF($K18=99, "Surveillance", G18)), 0),"Non requis") -> 0 | U18: =IF(INTRO!$E$43="Endémique", IF($K18>1, IF($K18=4, "Inconnu", IF($K18=99, "Surveillance", SUM($R18:$T18))), 0),"Non requis") -> 0 | V18: 1 | W18: 0 | X18: 2 | Y18: 0 | AH18: 16419 | AI18: Ebebiyin
A19: =IF(INTRO!$E$33<>0,INTRO!$E$33, " ") -> Guinée Équatoriale | B19: Kientem | C19: Micomiseng | D19: 90615 | E19: =IF(INTRO!$E$48="","",ROUND($D19*INTRO!$E$48,0)) -> 7512 | F19: =IF(INTRO!$E$49="","",ROUND($D19*INTRO!$E$49,0)) -> 22391 | G19: =IF(INTRO!$E$50="","",ROUND($D19*INTRO!$E$50,0)) -> 55484 | H19: 1 | I19: 4 | J19: 3 | K19: 1 | L19: =IF(INTRO!$E$37="Endémique",IF($H19>0,IF($H19=4,"Inconnu",IF($H19=99,"Interrompu",$D19)),0),"Non requis") -> 90615 | M19: =IF(INTRO!$E$39="Endémique", IF($I19>0, IF($I19=4,"Inconnu",IF($I19=99,"Interrompu",$D19)), 0),"Non requis") -> Inconnu | N19: =IF(INTRO!$E$41="Endémique", IF($J19>1, IF($J19=4, "Inconnu", IF($J19=99, "Surveillance", E19)), 0),"Non requis") -> 7512 | O19: =IF(INTRO!$E$41="Endémique", IF($J19>1, IF($J19=4, "Inconnu", IF($J19=99, "Surveillance", F19)), 0),"Non requis") -> 22391 | P19: =IF(INTRO!$E$41="Endémique", IF($J19>1, IF($J19=4, "Inconnu", IF($J19=99, "Surveillance", ROUND(D19*INTRO!$E$51,0))), 0),"Non requis") -> 20470 | Q19: =IF(INTRO!$E$41="Endémique", IF($J19>1, IF($J19=4, "Inconnu", IF($J19=99, "Surveillance", SUM($N19:$P19))), 0),"Non requis") -> 50373 | R19: =IF(INTRO!$E$43="Endémique", IF($K19>1, IF($K19=4, "Inconnu", IF($K19=99, "Surveillance", ROUND(E19*0.75,0))), 0),"Non requis") -> 0 | S19: =IF(INTRO!$E$43="Endémique", IF($K19>1, IF($K19=4, "Inconnu", IF($K19=99, "Surveillance", F19)), 0),"Non requis") -> 0 | T19: =IF(INTRO!$E$43="Endémique", IF($K19>1, IF($K19=4, "Inconnu", IF($K19=99, "Surveillance", G19)), 0),"Non requis") -> 0 | U19: =IF(INTRO!$E$43="Endémique", IF($K19>1, IF($K19=4, "Inconnu", IF($K19=99, "Surveillance", SUM($R19:$T19))), 0),"Non requis") -> 0 | V19: 1 | W19: 0 | X19: 2 | Y19: 0 | AH19: 16420 | AI19: Micomiseng
A20: =IF(INTRO!$E$33<>0,INTRO!$E$33, " ") -> Guinée Équatoriale | B20: Kientem | C20: Nsoknsomo | D20: 52242 | E20: =IF(INTRO!$E$48="","",ROUND($D20*INTRO!$E$48,0)) -> 4331 | F20: =IF(INTRO!$E$49="","",ROUND($D20*INTRO!$E$49,0)) -> 12909 | G20: =IF(INTRO!$E$50="","",ROUND($D20*INTRO!$E$50,0)) -> 31988 | H20: 1 | I20: 4 | J20: 3 | K20: 1 | L20: =IF(INTRO!$E$37="Endémique",IF($H20>0,IF($H20=4,"Inconnu",IF($H20=99,"Interrompu",$D20)),0),"Non requis") -> 52242 | M20: =IF(INTRO!$E$39="Endémique", IF($I20>0, IF($I20=4,"Inconnu",IF($I20=99,"Interrompu",$D20)), 0),"Non requis") -> Inconnu | N20: =IF(INTRO!$E$41="Endémique", IF($J20>1, IF($J20=4, "Inconnu", IF($J20=99, "Surveillance", E20)), 0),"Non requis") -> 4331 | O20: =IF(INTRO!$E$41="Endémique", IF($J20>1, IF($J20=4, "Inconnu", IF($J20=99, "Surveillance", F20)), 0),"Non requis") -> 12909 | P20: =IF(INTRO!$E$41="Endémique", IF($J20>1, IF($J20=4, "Inconnu", IF($J20=99, "Surveillance", ROUND(D20*INTRO!$E$51,0))), 0),"Non requis") -> 11801 | Q20: =IF(INTRO!$E$41="Endémique", IF($J20>1, IF($J20=4, "Inconnu", IF($J20=99, "Surveillance", SUM($N20:$P20))), 0),"Non requis") -> 29041 | R20: =IF(INTRO!$E$43="Endémique", IF($K20>1, IF($K20=4, "Inconnu", IF($K20=99, "Surveillance", ROUND(E20*0.75,0))), 0),"Non requis") -> 0 | S20: =IF(INTRO!$E$43="Endémique", IF($K20>1, IF($K20=4, "Inconnu", IF($K20=99, "Surveillance", F20)), 0),"Non requis") -> 0 | T20: =IF(INTRO!$E$43="Endémique", IF($K20>1, IF($K20=4, "Inconnu", IF($K20=99, "Surveillance", G20)), 0),"Non requis") -> 0 | U20: =IF(INTRO!$E$43="Endémique", IF($K20>1, IF($K20=4, "Inconnu", IF($K20=99, "Surveillance", SUM($R20:$T20))), 0),"Non requis") -> 0 | V20: 1 | W20: 0 | X20: 2 | Y20: 0 | AH20: 16421 | AI20: Nsoknsomo
A21: =IF(INTRO!$E$33<>0,INTRO!$E$33, " ") -> Guinée Équatoriale | B21: Litoral | C21: Bata | D21: 216020 | E21: =IF(INTRO!$E$48="","",ROUND($D21*INTRO!$E$48,0)) -> 17908 | F21: =IF(INTRO!$E$49="","",ROUND($D21*INTRO!$E$49,0)) -> 53379 | G21: =IF(INTRO!$E$50="","",ROUND($D21*INTRO!$E$50,0)) -> 132269 | H21: 1 | I21: 4 | J21: 3 | K21: 2 | L21: =IF(INTRO!$E$37="Endémique",IF($H21>0,IF($H21=4,"Inconnu",IF($H21=99,"Interrompu",$D21)),0),"Non requis") -> 216020 | M21: =IF(INTRO!$E$39="Endémique", IF($I21>0, IF($I21=4,"Inconnu",IF($I21=99,"Interrompu",$D21)), 0),"Non requis") -> Inconnu | N21: =IF(INTRO!$E$41="Endémique", IF($J21>1, IF($J21=4, "Inconnu", IF($J21=99, "Surveillance", E21)), 0),"Non requis") -> 17908 | O21: =IF(INTRO!$E$41="Endémique", IF($J21>1, IF($J21=4, "Inconnu", IF($J21=99, "Surveillance", F21)), 0),"Non requis") -> 53379 | P21: =IF(INTRO!$E$41="Endémique", IF($J21>1, IF($J21=4, "Inconnu", IF($J21=99, "Surveillance", ROUND(D21*INTRO!$E$51,0))), 0),"Non requis") -> 48799 | Q21: =IF(INTRO!$E$41="Endémique", IF($J21>1, IF($J21=4, "Inconnu", IF($J21=99, "Surveillance", SUM($N21:$P21))), 0),"Non requis") -> 120086 | R21: =IF(INTRO!$E$43="Endémique", IF($K21>1, IF($K21=4, "Inconnu", IF($K21=99, "Surveillance", ROUND(E21*0.75,0))), 0),"Non requis") -> 13431 | S21: =IF(INTRO!$E$43="Endémique", IF($K21>1, IF($K21=4, "Inconnu", IF($K21=99, "Surveillance", F21)), 0),"Non requis") -> 53379 | T21: =IF(INTRO!$E$43="Endémique", IF($K21>1, IF($K21=4, "Inconnu", IF($K21=99, "Surveillance", G21)), 0),"Non requis") -> 132269 | U21: =IF(INTRO!$E$43="Endémique", IF($K21>1, IF($K21=4, "Inconnu", IF($K21=99, "Surveillance", SUM($R21:$T21))), 0),"Non requis") -> 199079 | V21: 1 | W21: 0 | X21: 2 | Y21: 1 | AH21: 16422 | AI21: Bata
A22: =IF(INTRO!$E$33<>0,INTRO!$E$33, " ") -> Guinée Équatoriale | B22: Litoral | C22: Kogo | D22: 44190 | E22: =IF(INTRO!$E$48="","",ROUND($D22*INTRO!$E$48,0)) -> 3663 | F22: =IF(INTRO!$E$49="","",ROUND($D22*INTRO!$E$49,0)) -> 10919 | G22: =IF(INTRO!$E$50="","",ROUND($D22*INTRO!$E$50,0)) -> 27058 | H22: 1 | I22: 4 | J22: 3 | K22: 1 | L22: =IF(INTRO!$E$37="Endémique",IF($H22>0,IF($H22=4,"Inconnu",IF($H22=99,"Interrompu",$D22)),0),"Non requis") -> 44190 | M22: =IF(INTRO!$E$39="Endémique", IF($I22>0, IF($I22=4,"Inconnu",IF($I22=99,"Interrompu",$D22)), 0),"Non requis") -> Inconnu | N22: =IF(INTRO!$E$41="Endémique", IF($J22>1, IF($J22=4, "Inconnu", IF($J22=99, "Surveillance", E22)), 0),"Non requis") -> 3663 | O22: =IF(INTRO!$E$41="Endémique", IF($J22>1, IF($J22=4, "Inconnu", IF($J22=99, "Surveillance", F22)), 0),"Non requis") -> 10919 | P22: =IF(INTRO!$E$41="Endémique", IF($J22>1, IF($J22=4, "Inconnu", IF($J22=99, "Surveillance", ROUND(D22*INTRO!$E$51,0))), 0),"Non requis") -> 9983 | Q22: =IF(INTRO!$E$41="Endémique", IF($J22>1, IF($J22=4, "Inconnu", IF($J22=99, "Surveillance", SUM($N22:$P22))), 0),"Non requis") -> 24565 | R22: =IF(INTRO!$E$43="Endémique", IF($K22>1, IF($K22=4, "Inconnu", IF($K22=99, "Surveillance", ROUND(E22*0.75,0))), 0),"Non requis") -> 0 | S22: =IF(INTRO!$E$43="Endémique", IF($K22>1, IF($K22=4, "Inconnu", IF($K22=99, "Surveillance", F22)), 0),"Non requis") -> 0 | T22: =IF(INTRO!$E$43="Endémique", IF($K22>1, IF($K22=4, "Inconnu", IF($K22=99, "Surveillance", G22)), 0),"Non requis") -> 0 | U22: =IF(INTRO!$E$43="Endémique", IF($K22>1, IF($K22=4, "Inconnu", IF($K22=99, "Surveillance", SUM($R22:$T22))), 0),"Non requis") -> 0 | V22: 1 | W22: 0 | X22: 2 | Y22: 0 | AH22: 16423 | AI22: Kogo
A23: =IF(INTRO!$E$33<>0,INTRO!$E$33, " ") -> Guinée Équatoriale | B23: Litoral | C23: Mbini | D23: 42456 | E23: =IF(INTRO!$E$48="","",ROUND($D23*INTRO!$E$48,0)) -> 3520 | F23: =IF(INTRO!$E$49="","",ROUND($D23*INTRO!$E$49,0)) -> 10491 | G23: =IF(INTRO!$E$50="","",ROUND($D23*INTRO!$E$50,0)) -> 25996 | H23: 1 | I23: 4 | J23: 3 | K23: 1 | L23: =IF(INTRO!$E$37="Endémique",IF($H23>0,IF($H23=4,"Inconnu",IF($H23=99,"Interrompu",$D23)),0),"Non requis") -> 42456 | M23: =IF(INTRO!$E$39="Endémique", IF($I23>0, IF($I23=4,"Inconnu",IF($I23=99,"Interrompu",$D23)), 0),"Non requis") -> Inconnu | N23: =IF(INTRO!$E$41="Endémique", IF($J23>1, IF($J23=4, "Inconnu", IF($J23=99, "Surveillance", E23)), 0),"Non requis") -> 3520 | O23: =IF(INTRO!$E$41="Endémique", IF($J23>1, IF($J23=4, "Inconnu", IF($J23=99, "Surveillance", F23)), 0),"Non requis") -> 10491 | P23: =IF(INTRO!$E$41="Endémique", IF($J23>1, IF($J23=4, "Inconnu", IF($J23=99, "Surveillance", ROUND(D23*INTRO!$E$51,0))), 0),"Non requis") -> 9591 | Q23: =IF(INTRO!$E$41="Endémique", IF($J23>1, IF($J23=4, "Inconnu", IF($J23=99, "Surveillance", SUM($N23:$P23))), 0),"Non requis") -> 23602 | R23: =IF(INTRO!$E$43="Endémique", IF($K23>1, IF($K23=4, "Inconnu", IF($K23=99, "Surveillance", ROUND(E23*0.75,0))), 0),"Non requis") -> 0 | S23: =IF(INTRO!$E$43="Endémique", IF($K23>1, IF($K23=4, "Inconnu", IF($K23=99, "Surveillance", F23)), 0),"Non requis") -> 0 | T23: =IF(INTRO!$E$43="Endémique", IF($K23>1, IF($K23=4, "Inconnu", IF($K23=99, "Surveillance", G23)), 0),"Non requis") -> 0 | U23: =IF(INTRO!$E$43="Endémique", IF($K23>1, IF($K23=4, "Inconnu", IF($K23=99, "Surveillance", SUM($R23:$T23))), 0),"Non requis") -> 0 | V23: 1 | W23: 0 | X23: 2 | Y23: 0 | AH23: 16424 | AI23: Mbini
A24: =IF(INTRO!$E$33<>0,INTRO!$E$33, " ") -> Guinée Équatoriale | B24: Welenzas | C24: Akonibe | D24: 27425 | E24: =IF(INTRO!$E$48="","",ROUND($D24*INTRO!$E$48,0)) -> 2274 | F24: =IF(INTRO!$E$49="","",ROUND($D24*INTRO!$E$49,0)) -> 6777 | G24: =IF(INTRO!$E$50="","",ROUND($D24*INTRO!$E$50,0)) -> 16792 | H24: 1 | I24: 4 | J24: 3 | K24: 1 | L24: =IF(INTRO!$E$37="Endémique",IF($H24>0,IF($H24=4,"Inconnu",IF($H24=99,"Interrompu",$D24)),0),"Non requis") -> 27425 | M24: =IF(INTRO!$E$39="Endémique", IF($I24>0, IF($I24=4,"Inconnu",IF($I24=99,"Interrompu",$D24)), 0),"Non requis") -> Inconnu | N24: =IF(INTRO!$E$41="Endémique", IF($J24>1, IF($J24=4, "Inconnu", IF($J24=99, "Surveillance", E24)), 0),"Non requis") -> 2274 | O24: =IF(INTRO!$E$41="Endémique", IF($J24>1, IF($J24=4, "Inconnu", IF($J24=99, "Surveillance", F24)), 0),"Non requis") -> 6777 | P24: =IF(INTRO!$E$41="Endémique", IF($J24>1, IF($J24=4, "Inconnu", IF($J24=99, "Surveillance", ROUND(D24*INTRO!$E$51,0))), 0),"Non requis") -> 6195 | Q24: =IF(INTRO!$E$41="Endémique", IF($J24>1, IF($J24=4, "Inconnu", IF($J24=99, "Surveillance", SUM($N24:$P24))), 0),"Non requis") -> 15246 | R24: =IF(INTRO!$E$43="Endémique", IF($K24>1, IF($K24=4, "Inconnu", IF($K24=99, "Surveillance", ROUND(E24*0.75,0))), 0),"Non requis") -> 0 | S24: =IF(INTRO!$E$43="Endémique", IF($K24>1, IF($K24=4, "Inconnu", IF($K24=99, "Surveillance", F24)), 0),"Non requis") -> 0 | T24: =IF(INTRO!$E$43="Endémique", IF($K24>1, IF($K24=4, "Inconnu", IF($K24=99, "Surveillance", G24)), 0),"Non requis") -> 0 | U24: =IF(INTRO!$E$43="Endémique", IF($K24>1, IF($K24=4, "Inconnu", IF($K24=99, "Surveillance", SUM($R24:$T24))), 0),"Non requis") -> 0 | V24: 1 | W24: 0 | X24: 2 | Y24: 0 | AH24: 16425 | AI24: Akonibe
A25: =IF(INTRO!$E$33<>0,INTRO!$E$33, " ") -> Guinée Équatoriale | B25: Welenzas | C25: Anisok | D25: 68408 | E25: =IF(INTRO!$E$48="","",ROUND($D25*INTRO!$E$48,0)) -> 5671 | F25: =IF(INTRO!$E$49="","",ROUND($D25*INTRO!$E$49,0)) -> 16904 | G25: =IF(INTRO!$E$50="","",ROUND($D25*INTRO!$E$50,0)) -> 41886 | H25: 1 | I25: 4 | J25: 3 | K25: 0 | L25: =IF(INTRO!$E$37="Endémique",IF($H25>0,IF($H25=4,"Inconnu",IF($H25=99,"Interrompu",$D25)),0),"Non requis") -> 68408 | M25: =IF(INTRO!$E$39="Endémique", IF($I25>0, IF($I25=4,"Inconnu",IF($I25=99,"Interrompu",$D25)), 0),"Non requis") -> Inconnu | N25: =IF(INTRO!$E$41="Endémique", IF($J25>1, IF($J25=4, "Inconnu", IF($J25=99, "Surveillance", E25)), 0),"Non requis") -> 5671 | O25: =IF(INTRO!$E$41="Endémique", IF($J25>1, IF($J25=4, "Inconnu", IF($J25=99, "Surveillance", F25)), 0),"Non requis") -> 16904 | P25: =IF(INTRO!$E$41="Endémique", IF($J25>1, IF($J25=4, "Inconnu", IF($J25=99, "Surveillance", ROUND(D25*INTRO!$E$51,0))), 0),"Non requis") -> 15453 | Q25: =IF(INTRO!$E$41="Endémique", IF($J25>1, IF($J25=4, "Inconnu", IF($J25=99, "Surveillance", SUM($N25:$P25))), 0),"Non requis") -> 38028 | R25: =IF(INTRO!$E$43="Endémique", IF($K25>1, IF($K25=4, "Inconnu", IF($K25=99, "Surveillance", ROUND(E25*0.75,0))), 0),"Non requis") -> 0 | S25: =IF(INTRO!$E$43="Endémique", IF($K25>1, IF($K25=4, "Inconnu", IF($K25=99, "Surveillance", F25)), 0),"Non requis") -> 0 | T25: =IF(INTRO!$E$43="Endémique", IF($K25>1, IF($K25=4, "Inconnu", IF($K25=99, "Surveillance", G25)), 0),"Non requis") -> 0 | U25: =IF(INTRO!$E$43="Endémique", IF($K25>1, IF($K25=4, "Inconnu", IF($K25=99, "Surveillance", SUM($R25:$T25))), 0),"Non requis") -> 0 | V25: 1 | W25: 0 | X25: 2 | Y25: 0 | AH25: 16426 | AI25: Anisok
A26: =IF(INTRO!$E$33<>0,INTRO!$E$33, " ") -> Guinée Équatoriale | B26: Welenzas | C26: Mongomo | D26: 71868 | E26: =IF(INTRO!$E$48="","",ROUND($D26*INTRO!$E$48,0)) -> 5958 | F26: =IF(INTRO!$E$49="","",ROUND($D26*INTRO!$E$49,0)) -> 17759 | G26: =IF(INTRO!$E$50="","",ROUND($D26*INTRO!$E$50,0)) -> 44005 | H26: 1 | I26: 4 | J26: 3 | K26: 0 | L26: =IF(INTRO!$E$37="Endémique",IF($H26>0,IF($H26=4,"Inconnu",IF($H26=99,"Interrompu",$D26)),0),"Non requis") -> 71868 | M26: =IF(INTRO!$E$39="Endémique", IF($I26>0, IF($I26=4,"Inconnu",IF($I26=99,"Interrompu",$D26)), 0),"Non requis") -> Inconnu | N26: =IF(INTRO!$E$41="Endémique", IF($J26>1, IF($J26=4, "Inconnu", IF($J26=99, "Surveillance", E26)), 0),"Non requis") -> 5958 | O26: =IF(INTRO!$E$41="Endémique", IF($J26>1, IF($J26=4, "Inconnu", IF($J26=99, "Surveillance", F26)), 0),"Non requis") -> 17759 | P26: =IF(INTRO!$E$41="Endémique", IF($J26>1, IF($J26=4, "Inconnu", IF($J26=99, "Surveillance", ROUND(D26*INTRO!$E$51,0))), 0),"Non requis") -> 16235 | Q26: =IF(INTRO!$E$41="Endémique", IF($J26>1, IF($J26=4, "Inconnu", IF($J26=99, "Surveillance", SUM($N26:$P26))), 0),"Non requis") -> 39952 | R26: =IF(INTRO!$E$43="Endémique", IF($K26>1, IF($K26=4, "Inconnu", IF($K26=99, "Surveillance", ROUND(E26*0.75,0))), 0),"Non requis") -> 0 | S26: =IF(INTRO!$E$43="Endémique", IF($K26>1, IF($K26=4, "Inconnu", IF($K26=99, "Surveillance", F26)), 0),"Non requis") -> 0 | T26: =IF(INTRO!$E$43="Endémique", IF($K26>1, IF($K26=4, "Inconnu", IF($K26=99, "Surveillance", G26)), 0),"Non requis") -> 0 | U26: =IF(INTRO!$E$43="Endémique", IF($K26>1, IF($K26=4, "Inconnu", IF($K26=99, "Surveillance", SUM($R26:$T26))), 0),"Non requis") -> 0 | V26: 1 | W26: 0 | X26: 2 | Y26: 0 | AH26: 16427 | AI26: Mongomo
A27: =IF(INTRO!$E$33<>0,INTRO!$E$33, " ") -> Guinée Équatoriale | B27: Welenzas | C27: Nsork | D27: 21250 | E27: =IF(INTRO!$E$48="","",ROUND($D27*INTRO!$E$48,0)) -> 1762 | F27: =IF(INTRO!$E$49="","",ROUND($D27*INTRO!$E$49,0)) -> 5251 | G27: =IF(INTRO!$E$50="","",ROUND($D27*INTRO!$E$50,0)) -> 13011 | H27: 1 | I27: 4 | J27: 3 | K27: 1 | L27: =IF(INTRO!$E$37="Endémique",IF($H27>0,IF($H27=4,"Inconnu",IF($H27=99,"Interrompu",$D27)),0),"Non requis") -> 21250 | M27: =IF(INTRO!$E$39="Endémique", IF($I27>0, IF($I27=4,"Inconnu",IF($I27=99,"Interrompu",$D27)), 0),"Non requis") -> Inconnu | N27: =IF(INTRO!$E$41="Endémique", IF($J27>1, IF($J27=4, "Inconnu", IF($J27=99, "Surveillance", E27)), 0),"Non requis") -> 1762 | O27: =IF(INTRO!$E$41="Endémique", IF($J27>1, IF($J27=4, "Inconnu", IF($J27=99, "Surveillance", F27)), 0),"Non requis") -> 5251 | P27: =IF(INTRO!$E$41="Endémique", IF($J27>1, IF($J27=4, "Inconnu", IF($J27=99, "Surveillance", ROUND(D27*INTRO!$E$51,0))), 0),"Non requis") -> 4800 | Q27: =IF(INTRO!$E$41="Endémique", IF($J27>1, IF($J27=4, "Inconnu", IF($J27=99, "Surveillance", SUM($N27:$P27))), 0),"Non requis") -> 11813 | R27: =IF(INTRO!$E$43="Endémique", IF($K27>1, IF($K27=4, "Inconnu", IF($K27=99, "Surveillance", ROUND(E27*0.75,0))), 0),"Non requis") -> 0 | S27: =IF(INTRO!$E$43="Endémique", IF($K27>1, IF($K27=4, "Inconnu", IF($K27=99, "Surveillance", F27)), 0),"Non requis") -> 0 | T27: =IF(INTRO!$E$43="Endémique", IF($K27>1, IF($K27=4, "Inconnu", IF($K27=99, "Surveillance", G27)), 0),"Non requis") -> 0 | U27: =IF(INTRO!$E$43="Endémique", IF($K27>1, IF($K27=4, "Inconnu", IF($K27=99, "Surveillance", SUM($R27:$T27))), 0),"Non requis") -> 0 | V27: 1 | W27: 0 | X27: 2 | Y27: 0 | AH27: 16428 | AI27: Nsork

Sheet DEC (hidden)
A1: Diethylcarbamazine (DEC)
A2: Structure administrative, population ciblée par groupe d'âge, plan de traitement et information sur les comprimés
A4: TOTAL | D4: =SUBTOTAL(9,D$10:D$1010) -> 0 | E4: 0 | F4: 0 | G4: 0 | I4: =SUBTOTAL(9,I$10:I$1010) -> 0 | J4: 0 | K4: 0 | L4: 0
A6: Structure administrative du pays | D6: Population nécessitant un traitement avec DEC | H6: Plan de traitement | I6: Population cible | J6: Diethylcarbamazine (DEC)
A7: Pays | B7: Région/Département | C7: District | D7: EAPréS | E7: EAS | F7: Adultes | G7: Total | H7: FL | I7: FL | J7: Total requis | K7: Reste en stock | L7: Comprimés devant être fournis
A10: =IF(INTRO!$E$39<>"Non endémique", " ", IF(INTRO!$E$37="Non endémique"," ", IF(COUNTRY_INFO!A10=0," ",COUNTRY_INFO!A10))) ->  | B10: =IF(INTRO!$E$39<>"Non endémique", " ", IF(INTRO!$E$37="Non endémique"," ", IF(COUNTRY_INFO!B10=0," ",COUNTRY_INFO!B10))) ->  | C10: =IF(INTRO!$E$39<>"Non endémique", " ", IF(INTRO!$E$37="Non endémique"," ", IF(COUNTRY_INFO!C10=0," ",COUNTRY_INFO!C10))) ->  | D10: =IF(INTRO!$E$39<>"Non endémique", 0, IF(INTRO!$E$37="Non endémique",0,IF(COUNTRY_INFO!$H10=1,COUNTRY_INFO!E10,0))) -> 0 | E10: =IF(INTRO!$E$39<>"Non endémique", 0, IF(INTRO!$E$37="Non endémique",0,IF(COUNTRY_INFO!$H10=1,COUNTRY_INFO!F10,0))) -> 0 | F10: =IF(INTRO!$E$39<>"Non endémique", 0, IF(INTRO!$E$37="Non endémique",0,IF(COUNTRY_INFO!$H10=1,COUNTRY_INFO!G10,0))) -> 0 | G10: =SUM(D10:F10) -> 0 | H10: =IF(INTRO!$E$39="Non endémique",IF(INTRO!$E$37="Non endémique","Non requis",COUNTRY_INFO!V10),"Traiter avec IVM") -> Traiter avec IVM | I10: =IF(H10=1,G10,0) -> 0 | J10: =IF(I10>0,I10*2.5,0) -> 0 | L10: =IF($J10>$K10,$J10-$K10,0) -> 0
A11: =IF(INTRO!$E$39<>"Non endémique", " ", IF(INTRO!$E$37="Non endémique"," ", IF(COUNTRY_INFO!A11=0," ",COUNTRY_INFO!A11))) ->  | B11: =IF(INTRO!$E$39<>"Non endémique", " ", IF(INTRO!$E$37="Non endémique"," ", IF(COUNTRY_INFO!B11=0," ",COUNTRY_INFO!B11))) ->  | C11: =IF(INTRO!$E$39<>"Non endémique", " ", IF(INTRO!$E$37="Non endémique"," ", IF(COUNTRY_INFO!C11=0," ",COUNTRY_INFO!C11))) ->  | D11: =IF(INTRO!$E$39<>"Non endémique", 0, IF(INTRO!$E$37="Non endémique",0,IF(COUNTRY_INFO!$H11=1,COUNTRY_INFO!E11,0))) -> 0 | E11: =IF(INTRO!$E$39<>"Non endémique", 0, IF(INTRO!$E$37="Non endémique",0,IF(COUNTRY_INFO!$H11=1,COUNTRY_INFO!F11,0))) -> 0 | F11: =IF(INTRO!$E$39<>"Non endémique", 0, IF(INTRO!$E$37="Non endémique",0,IF(COUNTRY_INFO!$H11=1,COUNTRY_INFO!G11,0))) -> 0 | G11: =SUM(D11:F11) -> 0 | H11: =IF(INTRO!$E$39="Non endémique",IF(INTRO!$E$37="Non endémique","Non requis",COUNTRY_INFO!V11),"Traiter avec IVM") -> Traiter avec IVM | I11: =IF(H11=1,G11,0) -> 0 | J11: =IF(I11>0,I11*2.5,0) -> 0 | L11: 0
A12: =IF(INTRO!$E$39<>"Non endémique", " ", IF(INTRO!$E$37="Non endémique"," ", IF(COUNTRY_INFO!A12=0," ",COUNTRY_INFO!A12))) ->  | B12: =IF(INTRO!$E$39<>"Non endémique", " ", IF(INTRO!$E$37="Non endémique"," ", IF(COUNTRY_INFO!B12=0," ",COUNTRY_INFO!B12))) ->  | C12: =IF(INTRO!$E$39<>"Non endémique", " ", IF(INTRO!$E$37="Non endémique"," ", IF(COUNTRY_INFO!C12=0," ",COUNTRY_INFO!C12))) ->  | D12: =IF(INTRO!$E$39<>"Non endémique", 0, IF(INTRO!$E$37="Non endémique",0,IF(COUNTRY_INFO!$H12=1,COUNTRY_INFO!E12,0))) -> 0 | E12: =IF(INTRO!$E$39<>"Non endémique", 0, IF(INTRO!$E$37="Non endémique",0,IF(COUNTRY_INFO!$H12=1,COUNTRY_INFO!F12,0))) -> 0 | F12: =IF(INTRO!$E$39<>"Non endémique", 0, IF(INTRO!$E$37="Non endémique",0,IF(COUNTRY_INFO!$H12=1,COUNTRY_INFO!G12,0))) -> 0 | G12: 0 | H12: =IF(INTRO!$E$39="Non endémique",IF(INTRO!$E$37="Non endémique","Non requis",COUNTRY_INFO!V12),"Traiter avec IVM") -> Traiter avec IVM | I12: 0 | J12: 0 | L12: 0
A13: =IF(INTRO!$E$39<>"Non endémique", " ", IF(INTRO!$E$37="Non endémique"," ", IF(COUNTRY_INFO!A13=0," ",COUNTRY_INFO!A13))) ->  | B13: =IF(INTRO!$E$39<>"Non endémique", " ", IF(INTRO!$E$37="Non endémique"," ", IF(COUNTRY_INFO!B13=0," ",COUNTRY_INFO!B13))) ->  | C13: =IF(INTRO!$E$39<>"Non endémique", " ", IF(INTRO!$E$37="Non endémique"," ", IF(COUNTRY_INFO!C13=0," ",COUNTRY_INFO!C13))) ->  | D13: =IF(INTRO!$E$39<>"Non endémique", 0, IF(INTRO!$E$37="Non endémique",0,IF(COUNTRY_INFO!$H13=1,COUNTRY_INFO!E13,0))) -> 0 | E13: =IF(INTRO!$E$39<>"Non endémique", 0, IF(INTRO!$E$37="Non endémique",0,IF(COUNTRY_INFO!$H13=1,COUNTRY_INFO!F13,0))) -> 0 | F13: =IF(INTRO!$E$39<>"Non endémique", 0, IF(INTRO!$E$37="Non endémique",0,IF(COUNTRY_INFO!$H13=1,COUNTRY_INFO!G13,0))) -> 0 | G13: 0 | H13: =IF(INTRO!$E$39="Non endémique",IF(INTRO!$E$37="Non endémique","Non requis",COUNTRY_INFO!V13),"Traiter avec IVM") -> Traiter avec IVM | I13: 0 | J13: 0 | L13: 0
A14: =IF(INTRO!$E$39<>"Non endémique", " ", IF(INTRO!$E$37="Non endémique"," ", IF(COUNTRY_INFO!A14=0," ",COUNTRY_INFO!A14))) ->  | B14: =IF(INTRO!$E$39<>"Non endémique", " ", IF(INTRO!$E$37="Non endémique"," ", IF(COUNTRY_INFO!B14=0," ",COUNTRY_INFO!B14))) ->  | C14: =IF(INTRO!$E$39<>"Non endémique", " ", IF(INTRO!$E$37="Non endémique"," ", IF(COUNTRY_INFO!C14=0," ",COUNTRY_INFO!C14))) ->  | D14: =IF(INTRO!$E$39<>"Non endémique", 0, IF(INTRO!$E$37="Non endémique",0,IF(COUNTRY_INFO!$H14=1,COUNTRY_INFO!E14,0))) -> 0 | E14: =IF(INTRO!$E$39<>"Non endémique", 0, IF(INTRO!$E$37="Non endémique",0,IF(COUNTRY_INFO!$H14=1,COUNTRY_INFO!F14,0))) -> 0 | F14: =IF(INTRO!$E$39<>"Non endémique", 0, IF(INTRO!$E$37="Non endémique",0,IF(COUNTRY_INFO!$H14=1,COUNTRY_INFO!G14,0))) -> 0 | G14: 0 | H14: =IF(INTRO!$E$39="Non endémique",IF(INTRO!$E$37="Non endémique","Non requis",COUNTRY_INFO!V14),"Traiter avec IVM") -> Traiter avec IVM | I14: 0 | J14: 0 | L14: 0
A15: =IF(INTRO!$E$39<>"Non endémique", " ", IF(INTRO!$E$37="Non endémique"," ", IF(COUNTRY_INFO!A15=0," ",COUNTRY_INFO!A15))) ->  | B15: =IF(INTRO!$E$39<>"Non endémique", " ", IF(INTRO!$E$37="Non endémique"," ", IF(COUNTRY_INFO!B15=0," ",COUNTRY_INFO!B15))) ->  | C15: =IF(INTRO!$E$39<>"Non endémique", " ", IF(INTRO!$E$37="Non endémique"," ", IF(COUNTRY_INFO!C15=0," ",COUNTRY_INFO!C15))) ->  | D15: =IF(INTRO!$E$39<>"Non endémique", 0, IF(INTRO!$E$37="Non endémique",0,IF(COUNTRY_INFO!$H15=1,COUNTRY_INFO!E15,0))) -> 0 | E15: =IF(INTRO!$E$39<>"Non endémique", 0, IF(INTRO!$E$37="Non endémique",0,IF(COUNTRY_INFO!$H15=1,COUNTRY_INFO!F15,0))) -> 0 | F15: =IF(INTRO!$E$39<>"Non endémique", 0, IF(INTRO!$E$37="Non endémique",0,IF(COUNTRY_INFO!$H15=1,COUNTRY_INFO!G15,0))) -> 0 | G15: 0 | H15: =IF(INTRO!$E$39="Non endémique",IF(INTRO!$E$37="Non endémique","Non requis",COUNTRY_INFO!V15),"Traiter avec IVM") -> Traiter avec IVM | I15: 0 | J15: 0 | L15: 0
A16: =IF(INTRO!$E$39<>"Non endémique", " ", IF(INTRO!$E$37="Non endémique"," ", IF(COUNTRY_INFO!A16=0," ",COUNTRY_INFO!A16))) ->  | B16: =IF(INTRO!$E$39<>"Non endémique", " ", IF(INTRO!$E$37="Non endémique"," ", IF(COUNTRY_INFO!B16=0," ",COUNTRY_INFO!B16))) ->  | C16: =IF(INTRO!$E$39<>"Non endémique", " ", IF(INTRO!$E$37="Non endémique"," ", IF(COUNTRY_INFO!C16=0," ",COUNTRY_INFO!C16))) ->  | D16: =IF(INTRO!$E$39<>"Non endémique", 0, IF(INTRO!$E$37="Non endémique",0,IF(COUNTRY_INFO!$H16=1,COUNTRY_INFO!E16,0))) -> 0 | E16: =IF(INTRO!$E$39<>"Non endémique", 0, IF(INTRO!$E$37="Non endémique",0,IF(COUNTRY_INFO!$H16=1,COUNTRY_INFO!F16,0))) -> 0 | F16: =IF(INTRO!$E$39<>"Non endémique", 0, IF(INTRO!$E$37="Non endémique",0,IF(COUNTRY_INFO!$H16=1,COUNTRY_INFO!G16,0))) -> 0 | G16: 0 | H16: =IF(INTRO!$E$39="Non endémique",IF(INTRO!$E$37="Non endémique","Non requis",COUNTRY_INFO!V16),"Traiter avec IVM") -> Traiter avec IVM | I16: 0 | J16: 0 | L16: 0
A17: =IF(INTRO!$E$39<>"Non endémique", " ", IF(INTRO!$E$37="Non endémique"," ", IF(COUNTRY_INFO!A17=0," ",COUNTRY_INFO!A17))) ->  | B17: =IF(INTRO!$E$39<>"Non endémique", " ", IF(INTRO!$E$37="Non endémique"," ", IF(COUNTRY_INFO!B17=0," ",COUNTRY_INFO!B17))) ->  | C17: =IF(INTRO!$E$39<>"Non endémique", " ", IF(INTRO!$E$37="Non endémique"," ", IF(COUNTRY_INFO!C17=0," ",COUNTRY_INFO!C17))) ->  | D17: =IF(INTRO!$E$39<>"Non endémique", 0, IF(INTRO!$E$37="Non endémique",0,IF(COUNTRY_INFO!$H17=1,COUNTRY_INFO!E17,0))) -> 0 | E17: =IF(INTRO!$E$39<>"Non endémique", 0, IF(INTRO!$E$37="Non endémique",0,IF(COUNTRY_INFO!$H17=1,COUNTRY_INFO!F17,0))) -> 0 | F17: =IF(INTRO!$E$39<>"Non endémique", 0, IF(INTRO!$E$37="Non endémique",0,IF(COUNTRY_INFO!$H17=1,COUNTRY_INFO!G17,0))) -> 0 | G17: 0 | H17: =IF(INTRO!$E$39="Non endémique",IF(INTRO!$E$37="Non endémique","Non requis",COUNTRY_INFO!V17),"Traiter avec IVM") -> Traiter avec IVM | I17: 0 | J17: 0 | L17: 0
A18: =IF(INTRO!$E$39<>"Non endémique", " ", IF(INTRO!$E$37="Non endémique"," ", IF(COUNTRY_INFO!A18=0," ",COUNTRY_INFO!A18))) ->  | B18: =IF(INTRO!$E$39<>"Non endémique", " ", IF(INTRO!$E$37="Non endémique"," ", IF(COUNTRY_INFO!B18=0," ",COUNTRY_INFO!B18))) ->  | C18: =IF(INTRO!$E$39<>"Non endémique", " ", IF(INTRO!$E$37="Non endémique"," ", IF(COUNTRY_INFO!C18=0," ",COUNTRY_INFO!C18))) ->  | D18: =IF(INTRO!$E$39<>"Non endémique", 0, IF(INTRO!$E$37="Non endémique",0,IF(COUNTRY_INFO!$H18=1,COUNTRY_INFO!E18,0))) -> 0 | E18: =IF(INTRO!$E$39<>"Non endémique", 0, IF(INTRO!$E$37="Non endémique",0,IF(COUNTRY_INFO!$H18=1,COUNTRY_INFO!F18,0))) -> 0 | F18: =IF(INTRO!$E$39<>"Non endémique", 0, IF(INTRO!$E$37="Non endémique",0,IF(COUNTRY_INFO!$H18=1,COUNTRY_INFO!G18,0))) -> 0 | G18: 0 | H18: =IF(INTRO!$E$39="Non endémique",IF(INTRO!$E$37="Non endémique","Non requis",COUNTRY_INFO!V18),"Traiter avec IVM") -> Traiter avec IVM | I18: 0 | J18: 0 | L18: 0
A19: =IF(INTRO!$E$39<>"Non endémique", " ", IF(INTRO!$E$37="Non endémique"," ", IF(COUNTRY_INFO!A19=0," ",COUNTRY_INFO!A19))) ->  | B19: =IF(INTRO!$E$39<>"Non endémique", " ", IF(INTRO!$E$37="Non endémique"," ", IF(COUNTRY_INFO!B19=0," ",COUNTRY_INFO!B19))) ->  | C19: =IF(INTRO!$E$39<>"Non endémique", " ", IF(INTRO!$E$37="Non endémique"," ", IF(COUNTRY_INFO!C19=0," ",COUNTRY_INFO!C19))) ->  | D19: =IF(INTRO!$E$39<>"Non endémique", 0, IF(INTRO!$E$37="Non endémique",0,IF(COUNTRY_INFO!$H19=1,COUNTRY_INFO!E19,0))) -> 0 | E19: =IF(INTRO!$E$39<>"Non endémique", 0, IF(INTRO!$E$37="Non endémique",0,IF(COUNTRY_INFO!$H19=1,COUNTRY_INFO!F19,0))) -> 0 | F19: =IF(INTRO!$E$39<>"Non endémique", 0, IF(INTRO!$E$37="Non endémique",0,IF(COUNTRY_INFO!$H19=1,COUNTRY_INFO!G19,0))) -> 0 | G19: 0 | H19: =IF(INTRO!$E$39="Non endémique",IF(INTRO!$E$37="Non endémique","Non requis",COUNTRY_INFO!V19),"Traiter avec IVM") -> Traiter avec IVM | I19: 0 | J19: 0 | L19: 0
A20: =IF(INTRO!$E$39<>"Non endémique", " ", IF(INTRO!$E$37="Non endémique"," ", IF(COUNTRY_INFO!A20=0," ",COUNTRY_INFO!A20))) ->  | B20: =IF(INTRO!$E$39<>"Non endémique", " ", IF(INTRO!$E$37="Non endémique"," ", IF(COUNTRY_INFO!B20=0," ",COUNTRY_INFO!B20))) ->  | C20: =IF(INTRO!$E$39<>"Non endémique", " ", IF(INTRO!$E$37="Non endémique"," ", IF(COUNTRY_INFO!C20=0," ",COUNTRY_INFO!C20))) ->  | D20: =IF(INTRO!$E$39<>"Non endémique", 0, IF(INTRO!$E$37="Non endémique",0,IF(COUNTRY_INFO!$H20=1,COUNTRY_INFO!E20,0))) -> 0 | E20: =IF(INTRO!$E$39<>"Non endémique", 0, IF(INTRO!$E$37="Non endémique",0,IF(COUNTRY_INFO!$H20=1,COUNTRY_INFO!F20,0))) -> 0 | F20: =IF(INTRO!$E$39<>"Non endémique", 0, IF(INTRO!$E$37="Non endémique",0,IF(COUNTRY_INFO!$H20=1,COUNTRY_INFO!G20,0))) -> 0 | G20: 0 | H20: =IF(INTRO!$E$39="Non endémique",IF(INTRO!$E$37="Non endémique","Non requis",COUNTRY_INFO!V20),"Traiter avec IVM") -> Traiter avec IVM | I20: 0 | J20: 0 | L20: 0
A21: =IF(INTRO!$E$39<>"Non endémique", " ", IF(INTRO!$E$37="Non endémique"," ", IF(COUNTRY_INFO!A21=0," ",COUNTRY_INFO!A21))) ->  | B21: =IF(INTRO!$E$39<>"Non endémique", " ", IF(INTRO!$E$37="Non endémique"," ", IF(COUNTRY_INFO!B21=0," ",COUNTRY_INFO!B21))) ->  | C21: =IF(INTRO!$E$39<>"Non endémique", " ", IF(INTRO!$E$37="Non endémique"," ", IF(COUNTRY_INFO!C21=0," ",COUNTRY_INFO!C21))) ->  | D21: =IF(INTRO!$E$39<>"Non endémique", 0, IF(INTRO!$E$37="Non endémique",0,IF(COUNTRY_INFO!$H21=1,COUNTRY_INFO!E21,0))) -> 0 | E21: =IF(INTRO!$E$39<>"Non endémique", 0, IF(INTRO!$E$37="Non endémique",0,IF(COUNTRY_INFO!$H21=1,COUNTRY_INFO!F21,0))) -> 0 | F21: =IF(INTRO!$E$39<>"Non endémique", 0, IF(INTRO!$E$37="Non endémique",0,IF(COUNTRY_INFO!$H21=1,COUNTRY_INFO!G21,0))) -> 0 | G21: 0 | H21: =IF(INTRO!$E$39="Non endémique",IF(INTRO!$E$37="Non endémique","Non requis",COUNTRY_INFO!V21),"Traiter avec IVM") -> Traiter avec IVM | I21: 0 | J21: 0 | L21: 0
A22: =IF(INTRO!$E$39<>"Non endémique", " ", IF(INTRO!$E$37="Non endémique"," ", IF(COUNTRY_INFO!A22=0," ",COUNTRY_INFO!A22))) ->  | B22: =IF(INTRO!$E$39<>"Non endémique", " ", IF(INTRO!$E$37="Non endémique"," ", IF(COUNTRY_INFO!B22=0," ",COUNTRY_INFO!B22))) ->  | C22: =IF(INTRO!$E$39<>"Non endémique", " ", IF(INTRO!$E$37="Non endémique"," ", IF(COUNTRY_INFO!C22=0," ",COUNTRY_INFO!C22))) ->  | D22: =IF(INTRO!$E$39<>"Non endémique", 0, IF(INTRO!$E$37="Non endémique",0,IF(COUNTRY_INFO!$H22=1,COUNTRY_INFO!E22,0))) -> 0 | E22: =IF(INTRO!$E$39<>"Non endémique", 0, IF(INTRO!$E$37="Non endémique",0,IF(COUNTRY_INFO!$H22=1,COUNTRY_INFO!F22,0))) -> 0 | F22: =IF(INTRO!$E$39<>"Non endémique", 0, IF(INTRO!$E$37="Non endémique",0,IF(COUNTRY_INFO!$H22=1,COUNTRY_INFO!G22,0))) -> 0 | G22: 0 | H22: =IF(INTRO!$E$39="Non endémique",IF(INTRO!$E$37="Non endémique","Non requis",COUNTRY_INFO!V22),"Traiter avec IVM") -> Traiter avec IVM | I22: 0 | J22: 0 | L22: 0
A23: =IF(INTRO!$E$39<>"Non endémique", " ", IF(INTRO!$E$37="Non endémique"," ", IF(COUNTRY_INFO!A23=0," ",COUNTRY_INFO!A23))) ->  | B23: =IF(INTRO!$E$39<>"Non endémique", " ", IF(INTRO!$E$37="Non endémique"," ", IF(COUNTRY_INFO!B23=0," ",COUNTRY_INFO!B23))) ->  | C23: =IF(INTRO!$E$39<>"Non endémique", " ", IF(INTRO!$E$37="Non endémique"," ", IF(COUNTRY_INFO!C23=0," ",COUNTRY_INFO!C23))) ->  | D23: =IF(INTRO!$E$39<>"Non endémique", 0, IF(INTRO!$E$37="Non endémique",0,IF(COUNTRY_INFO!$H23=1,COUNTRY_INFO!E23,0))) -> 0 | E23: =IF(INTRO!$E$39<>"Non endémique", 0, IF(INTRO!$E$37="Non endémique",0,IF(COUNTRY_INFO!$H23=1,COUNTRY_INFO!F23,0))) -> 0 | F23: =IF(INTRO!$E$39<>"Non endémique", 0, IF(INTRO!$E$37="Non endémique",0,IF(COUNTRY_INFO!$H23=1,COUNTRY_INFO!G23,0))) -> 0 | G23: 0 | H23: =IF(INTRO!$E$39="Non endémique",IF(INTRO!$E$37="Non endémique","Non requis",COUNTRY_INFO!V23),"Traiter avec IVM") -> Traiter avec IVM | I23: 0 | J23: 0 | L23: 0
A24: =IF(INTRO!$E$39<>"Non endémique", " ", IF(INTRO!$E$37="Non endémique"," ", IF(COUNTRY_INFO!A24=0," ",COUNTRY_INFO!A24))) ->  | B24: =IF(INTRO!$E$39<>"Non endémique", " ", IF(INTRO!$E$37="Non endémique"," ", IF(COUNTRY_INFO!B24=0," ",COUNTRY_INFO!B24))) ->  | C24: =IF(INTRO!$E$39<>"Non endémique", " ", IF(INTRO!$E$37="Non endémique"," ", IF(COUNTRY_INFO!C24=0," ",COUNTRY_INFO!C24))) ->  | D24: =IF(INTRO!$E$39<>"Non endémique", 0, IF(INTRO!$E$37="Non endémique",0,IF(COUNTRY_INFO!$H24=1,COUNTRY_INFO!E24,0))) -> 0 | E24: =IF(INTRO!$E$39<>"Non endémique", 0, IF(INTRO!$E$37="Non endémique",0,IF(COUNTRY_INFO!$H24=1,COUNTRY_INFO!F24,0))) -> 0 | F24: =IF(INTRO!$E$39<>"Non endémique", 0, IF(INTRO!$E$37="Non endémique",0,IF(COUNTRY_INFO!$H24=1,COUNTRY_INFO!G24,0))) -> 0 | G24: 0 | H24: =IF(INTRO!$E$39="Non endémique",IF(INTRO!$E$37="Non endémique","Non requis",COUNTRY_INFO!V24),"Traiter avec IVM") -> Traiter avec IVM | I24: 0 | J24: 0 | L24: 0
A25: =IF(INTRO!$E$39<>"Non endémique", " ", IF(INTRO!$E$37="Non endémique"," ", IF(COUNTRY_INFO!A25=0," ",COUNTRY_INFO!A25))) ->  | B25: =IF(INTRO!$E$39<>"Non endémique", " ", IF(INTRO!$E$37="Non endémique"," ", IF(COUNTRY_INFO!B25=0," ",COUNTRY_INFO!B25))) ->  | C25: =IF(INTRO!$E$39<>"Non endémique", " ", IF(INTRO!$E$37="Non endémique"," ", IF(COUNTRY_INFO!C25=0," ",COUNTRY_INFO!C25))) ->  | D25: =IF(INTRO!$E$39<>"Non endémique", 0, IF(INTRO!$E$37="Non endémique",0,IF(COUNTRY_INFO!$H25=1,COUNTRY_INFO!E25,0))) -> 0 | E25: =IF(INTRO!$E$39<>"Non endémique", 0, IF(INTRO!$E$37="Non endémique",0,IF(COUNTRY_INFO!$H25=1,COUNTRY_INFO!F25,0))) -> 0 | F25: =IF(INTRO!$E$39<>"Non endémique", 0, IF(INTRO!$E$37="Non endémique",0,IF(COUNTRY_INFO!$H25=1,COUNTRY_INFO!G25,0))) -> 0 | G25: 0 | H25: =IF(INTRO!$E$39="Non endémique",IF(INTRO!$E$37="Non endémique","Non requis",COUNTRY_INFO!V25),"Traiter avec IVM") -> Traiter avec IVM | I25: 0 | J25: 0 | L25: 0
A26: =IF(INTRO!$E$39<>"Non endémique", " ", IF(INTRO!$E$37="Non endémique"," ", IF(COUNTRY_INFO!A26=0," ",COUNTRY_INFO!A26))) ->  | B26: =IF(INTRO!$E$39<>"Non endémique", " ", IF(INTRO!$E$37="Non endémique"," ", IF(COUNTRY_INFO!B26=0," ",COUNTRY_INFO!B26))) ->  | C26: =IF(INTRO!$E$39<>"Non endémique", " ", IF(INTRO!$E$37="Non endémique"," ", IF(COUNTRY_INFO!C26=0," ",COUNTRY_INFO!C26))) ->  | D26: =IF(INTRO!$E$39<>"Non endémique", 0, IF(INTRO!$E$37="Non endémique",0,IF(COUNTRY_INFO!$H26=1,COUNTRY_INFO!E26,0))) -> 0 | E26: =IF(INTRO!$E$39<>"Non endémique", 0, IF(INTRO!$E$37="Non endémique",0,IF(COUNTRY_INFO!$H26=1,COUNTRY_INFO!F26,0))) -> 0 | F26: =IF(INTRO!$E$39<>"Non endémique", 0, IF(INTRO!$E$37="Non endémique",0,IF(COUNTRY_INFO!$H26=1,COUNTRY_INFO!G26,0))) -> 0 | G26: 0 | H26: =IF(INTRO!$E$39="Non endémique",IF(INTRO!$E$37="Non endémique","Non requis",COUNTRY_INFO!V26),"Traiter avec IVM") -> Traiter avec IVM | I26: 0 | J26: 0 | L26: 0
A27: =IF(INTRO!$E$39<>"Non endémique", " ", IF(INTRO!$E$37="Non endémique"," ", IF(COUNTRY_INFO!A27=0," ",COUNTRY_INFO!A27))) ->  | B27: =IF(INTRO!$E$39<>"Non endémique", " ", IF(INTRO!$E$37="Non endémique"," ", IF(COUNTRY_INFO!B27=0," ",COUNTRY_INFO!B27))) ->  | C27: =IF(INTRO!$E$39<>"Non endémique", " ", IF(INTRO!$E$37="Non endémique"," ", IF(COUNTRY_INFO!C27=0," ",COUNTRY_INFO!C27))) ->  | D27: =IF(INTRO!$E$39<>"Non endémique", 0, IF(INTRO!$E$37="Non endémique",0,IF(COUNTRY_INFO!$H27=1,COUNTRY_INFO!E27,0))) -> 0 | E27: =IF(INTRO!$E$39<>"Non endémique", 0, IF(INTRO!$E$37="Non endémique",0,IF(COUNTRY_INFO!$H27=1,COUNTRY_INFO!F27,0))) -> 0 | F27: =IF(INTRO!$E$39<>"Non endémique", 0, IF(INTRO!$E$37="Non endémique",0,IF(COUNTRY_INFO!$H27=1,COUNTRY_INFO!G27,0))) -> 0 | G27: 0 | H27: =IF(INTRO!$E$39="Non endémique",IF(INTRO!$E$37="Non endémique","Non requis",COUNTRY_INFO!V27),"Traiter avec IVM") -> Traiter avec IVM | I27: 0 | J27: 0 | L27: 0

Sheet ALB_MBD
A1: Albendazole (ALB) et Mebendazole (MBD) | G1: Choisir le médicament pour le traitement de STH pour chaque groupe d'âge
A2: Structure administrative, population ciblée par groupe d'âge, plan de traitement et information sur les comprimés | G2: ALB | I2: ALB | J2: ALB
A4: TOTAL | F4: =SUBTOTAL(9,F$10:F$1010) -> 857054 | H4: =SUBTOTAL(9,H$10:H$1010) -> 34640 | I4: 103250 | K4: 94392 | L4: 232282 | M4: 1714108 | N4: 0 | O4: 1714108 | P4: 232282 | Q4: 0 | R4: 232282 | S4: 0 | T4: 0 | U4: 0
A6: Structure administrative du pays | D6: Plan de traitement | F6: Population couverte par le PEFL avec ALB | G6: Population cible pour STH | M6: Albendazole (ALB) | S6: Mebendazole (MBD)
A7: Pays | B7: Région/Département | C7: District | D7: FL | E7: STH | G7: EAPréS | I7: EAS | J7: FAP | L7: Total | M7: Total requis (FL) | N7: Reste en stock (FL) | O7: Comprimés devant être fournis (FL) | P7: Total requis (STH) | Q7: Reste en stock (STH) | R7: Comprimés devant être fournis (STH) | S7: Total requis | T7: Reste en stock | U7: Comprimés devant être fournis
G8: Tournées | H8: Personnes | I8: Personnes | J8: Tournées | K8: Personnes
A10: =IF(AND(INTRO!$E$37="Non endémique",INTRO!$E$41="Non endémique")," ",IF(COUNTRY_INFO!A10=0," ",COUNTRY_INFO!A10)) -> Guinée Équatoriale | B10: =IF(AND(INTRO!$E$37="Non endémique",INTRO!$E$41="Non endémique")," ",IF(COUNTRY_INFO!B10=0," ",COUNTRY_INFO!B10)) -> Annobon | C10: =IF(AND(INTRO!$E$37="Non endémique",INTRO!$E$41="Non endémique")," ",IF(COUNTRY_INFO!C10=0," ",COUNTRY_INFO!C10)) -> Annonbon | D10: =IF(AND(INTRO!$E$37="Non endémique",INTRO!$E$41="Non endémique"),0,COUNTRY_INFO!V10) -> 0 | E10: =IF(AND(INTRO!$E$37="Non endémique",INTRO!$E$41="Non endémique"),0,COUNTRY_INFO!X10) -> 0 | F10: 0 | H10: =IF(OR(COUNTRY_INFO!N10="Inconnu",COUNTRY_INFO!N10="Surveillance",COUNTRY_INFO!N10="Non requis",COUNTRY_INFO!N10=0),0,IF(INTRO!$E$39="Non endémique",IF(AND($E10<>0,$G10=""),IF($F10=0,COUNTRY_INFO!N10*$E10,COUNTRY_INFO!N10*($E10-$D10)),IF(AND($E10<>0,$G10<>0),IF($F10=0,COUNTRY_INFO!N10*$G10,COUNTRY_INFO!N10*($G10-$D10)),0)),IF($G10="",COUNTRY_INFO!N10*$E10,COUNTRY_INFO!N10*$G10))) -> 0 | I10: =IF(OR(COUNTRY_INFO!O10="Inconnu",COUNTRY_INFO!O10="Surveillance",COUNTRY_INFO!O10="Non requis",COUNTRY_INFO!O10=0),0,IF($E10<>0, IF($F10=0,COUNTRY_INFO!O10*$E10,COUNTRY_INFO!O10*($E10-$D10)),COUNTRY_INFO!O10*$E10)) -> 0 | K10: =IF(OR(COUNTRY_INFO!P10="Inconnu",COUNTRY_INFO!P10="Surveillance",COUNTRY_INFO!P10="Non requis",COUNTRY_INFO!P10=0),0,IF(AND($E10<>0,$J10=""),IF($F10=0,COUNTRY_INFO!P10*$E10,COUNTRY_INFO!P10*($E10-$D10)), IF(AND($E10<>0,$J10<>0),IF($F10=0,COUNTRY_INFO!P10*$J10,COUNTRY_INFO!P10*($J10-$D10)), COUNTRY_INFO!P10*$J10))) -> 0 | L10: =ROUND($H10,0)+ROUND($I10,0)+ROUND($K10,0) -> 0 | M10: =F10*D10 -> 0 | O10: =IF($M10>$N10, $M10-$N10,0) -> 0 | P10: =ROUND((IF($G$2="ALB",$H10,0)+IF($I$2="ALB",$I10,0)+IF($J$2="ALB",$K10,0)),0) -> 0 | R10: =IF($P10>$Q10,$P10-$Q10,0) -> 0 | S10: =ROUND((IF($G$2="MBD",$H10,0)+IF($I$2="MBD",$I10,0)+IF($J$2="MBD",$K10,0)),0) -> 0 | U10: =IF($S10>$T10,$S10-$T10,0) -> 0
A11: =IF(AND(INTRO!$E$37="Non endémique",INTRO!$E$41="Non endémique")," ",IF(COUNTRY_INFO!A11=0," ",COUNTRY_INFO!A11)) -> Guinée Équatoriale | B11: =IF(AND(INTRO!$E$37="Non endémique",INTRO!$E$41="Non endémique")," ",IF(COUNTRY_INFO!B11=0," ",COUNTRY_INFO!B11)) -> Bioko Norte | C11: =IF(AND(INTRO!$E$37="Non endémique",INTRO!$E$41="Non endémique")," ",IF(COUNTRY_INFO!C11=0," ",COUNTRY_INFO!C11)) -> Baney | D11: 2 | E11: 0 | F11: 27813 | H11: =IF(OR(COUNTRY_INFO!N11="Inconnu",COUNTRY_INFO!N11="Surveillance",COUNTRY_INFO!N11="Non requis",COUNTRY_INFO!N11=0),0,IF(INTRO!$E$39="Non endémique",IF(AND($E11<>0,$G11=""),IF($F11=0,COUNTRY_INFO!N11*$E11,COUNTRY_INFO!N11*($E11-$D11)),IF(AND($E11<>0,$G11<>0),IF($F11=0,COUNTRY_INFO!N11*$G11,COUNTRY_INFO!N11*($G11-$D11)),0)),IF($G11="",COUNTRY_INFO!N11*$E11,COUNTRY_INFO!N11*$G11))) -> 0 | I11: =IF(OR(COUNTRY_INFO!O11="Inconnu",COUNTRY_INFO!O11="Surveillance",COUNTRY_INFO!O11="Non requis",COUNTRY_INFO!O11=0),0,IF($E11<>0, IF($F11=0,COUNTRY_INFO!O11*$E11,COUNTRY_INFO!O11*($E11-$D11)),COUNTRY_INFO!O11*$E11)) -> 0 | K11: =IF(OR(COUNTRY_INFO!P11="Inconnu",COUNTRY_INFO!P11="Surveillance",COUNTRY_INFO!P11="Non requis",COUNTRY_INFO!P11=0),0,IF(AND($E11<>0,$J11=""),IF($F11=0,COUNTRY_INFO!P11*$E11,COUNTRY_INFO!P11*($E11-$D11)), IF(AND($E11<>0,$J11<>0),IF($F11=0,COUNTRY_INFO!P11*$J11,COUNTRY_INFO!P11*($J11-$D11)), COUNTRY_INFO!P11*$J11))) -> 0 | L11: 0 | M11: 55626 | O11: 55626 | P11: 0 | R11: 0 | S11: 0 | U11: 0
A12: =IF(AND(INTRO!$E$37="Non endémique",INTRO!$E$41="Non endémique")," ",IF(COUNTRY_INFO!A12=0," ",COUNTRY_INFO!A12)) -> Guinée Équatoriale | B12: =IF(AND(INTRO!$E$37="Non endémique",INTRO!$E$41="Non endémique")," ",IF(COUNTRY_INFO!B12=0," ",COUNTRY_INFO!B12)) -> Bioko Norte | C12: =IF(AND(INTRO!$E$37="Non endémique",INTRO!$E$41="Non endémique")," ",IF(COUNTRY_INFO!C12=0," ",COUNTRY_INFO!C12)) -> Malabo | D12: =IF(AND(INTRO!$E$37="Non endémique",INTRO!$E$41="Non endémique"),0,COUNTRY_INFO!V12) -> 0 | E12: =IF(AND(INTRO!$E$37="Non endémique",INTRO!$E$41="Non endémique"),0,COUNTRY_INFO!X12) -> 2 | F12: 0 | H12: =IF(OR(COUNTRY_INFO!N12="Inconnu",COUNTRY_INFO!N12="Surveillance",COUNTRY_INFO!N12="Non requis",COUNTRY_INFO!N12=0),0,IF(INTRO!$E$39="Non endémique",IF(AND($E12<>0,$G12=""),IF($F12=0,COUNTRY_INFO!N12*$E12,COUNTRY_INFO!N12*($E12-$D12)),IF(AND($E12<>0,$G12<>0),IF($F12=0,COUNTRY_INFO!N12*$G12,COUNTRY_INFO!N12*($G12-$D12)),0)),IF($G12="",COUNTRY_INFO!N12*$E12,COUNTRY_INFO!N12*$G12))) -> 32322 | I12: =IF(OR(COUNTRY_INFO!O12="Inconnu",COUNTRY_INFO!O12="Surveillance",COUNTRY_INFO!O12="Non requis",COUNTRY_INFO!O12=0),0,IF($E12<>0, IF($F12=0,COUNTRY_INFO!O12*$E12,COUNTRY_INFO!O12*($E12-$D12)),COUNTRY_INFO!O12*$E12)) -> 96342 | K12: =IF(OR(COUNTRY_INFO!P12="Inconnu",COUNTRY_INFO!P12="Surveillance",COUNTRY_INFO!P12="Non requis",COUNTRY_INFO!P12=0),0,IF(AND($E12<>0,$J12=""),IF($F12=0,COUNTRY_INFO!P12*$E12,COUNTRY_INFO!P12*($E12-$D12)), IF(AND($E12<>0,$J12<>0),IF($F12=0,COUNTRY_INFO!P12*$J12,COUNTRY_INFO!P12*($J12-$D12)), COUNTRY_INFO!P12*$J12))) -> 88076 | L12: 216740 | M12: 0 | O12: 0 | P12: 216740 | R12: 216740 | S12: 0 | U12: 0
A13: =IF(AND(INTRO!$E$37="Non endémique",INTRO!$E$41="Non endémique")," ",IF(COUNTRY_INFO!A13=0," ",COUNTRY_INFO!A13)) -> Guinée Équatoriale | B13: =IF(AND(INTRO!$E$37="Non endémique",INTRO!$E$41="Non endémique")," ",IF(COUNTRY_INFO!B13=0," ",COUNTRY_INFO!B13)) -> Bioko Sur | C13: =IF(AND(INTRO!$E$37="Non endémique",INTRO!$E$41="Non endémique")," ",IF(COUNTRY_INFO!C13=0," ",COUNTRY_INFO!C13)) -> Luba | D13: =IF(AND(INTRO!$E$37="Non endémique",INTRO!$E$41="Non endémique"),0,COUNTRY_INFO!V13) -> 0 | E13: =IF(AND(INTRO!$E$37="Non endémique",INTRO!$E$41="Non endémique"),0,COUNTRY_INFO!X13) -> 1 | F13: 0 | H13: =IF(OR(COUNTRY_INFO!N13="Inconnu",COUNTRY_INFO!N13="Surveillance",COUNTRY_INFO!N13="Non requis",COUNTRY_INFO!N13=0),0,IF(INTRO!$E$39="Non endémique",IF(AND($E13<>0,$G13=""),IF($F13=0,COUNTRY_INFO!N13*$E13,COUNTRY_INFO!N13*($E13-$D13)),IF(AND($E13<>0,$G13<>0),IF($F13=0,COUNTRY_INFO!N13*$G13,COUNTRY_INFO!N13*($G13-$D13)),0)),IF($G13="",COUNTRY_INFO!N13*$E13,COUNTRY_INFO!N13*$G13))) -> 2318 | I13: =IF(OR(COUNTRY_INFO!O13="Inconnu",COUNTRY_INFO!O13="Surveillance",COUNTRY_INFO!O13="Non requis",COUNTRY_INFO!O13=0),0,IF($E13<>0, IF($F13=0,COUNTRY_INFO!O13*$E13,COUNTRY_INFO!O13*($E13-$D13)),COUNTRY_INFO!O13*$E13)) -> 6908 | K13: =IF(OR(COUNTRY_INFO!P13="Inconnu",COUNTRY_INFO!P13="Surveillance",COUNTRY_INFO!P13="Non requis",COUNTRY_INFO!P13=0),0,IF(AND($E13<>0,$J13=""),IF($F13=0,COUNTRY_INFO!P13*$E13,COUNTRY_INFO!P13*($E13-$D13)), IF(AND($E13<>0,$J13<>0),IF($F13=0,COUNTRY_INFO!P13*$J13,COUNTRY_INFO!P13*($J13-$D13)), COUNTRY_INFO!P13*$J13))) -> 6316 | L13: 15542 | M13: 0 | O13: 0 | P13: 15542 | R13: 15542 | S13: 0 | U13: 0
A14: =IF(AND(INTRO!$E$37="Non endémique",INTRO!$E$41="Non endémique")," ",IF(COUNTRY_INFO!A14=0," ",COUNTRY_INFO!A14)) -> Guinée Équatoriale | B14: =IF(AND(INTRO!$E$37="Non endémique",INTRO!$E$41="Non endémique")," ",IF(COUNTRY_INFO!B14=0," ",COUNTRY_INFO!B14)) -> Bioko Sur | C14: =IF(AND(INTRO!$E$37="Non endémique",INTRO!$E$41="Non endémique")," ",IF(COUNTRY_INFO!C14=0," ",COUNTRY_INFO!C14)) -> Riaba | D14: 2 | E14: 0 | F14: 8650 | H14: =IF(OR(COUNTRY_INFO!N14="Inconnu",COUNTRY_INFO!N14="Surveillance",COUNTRY_INFO!N14="Non requis",COUNTRY_INFO!N14=0),0,IF(INTRO!$E$39="Non endémique",IF(AND($E14<>0,$G14=""),IF($F14=0,COUNTRY_INFO!N14*$E14,COUNTRY_INFO!N14*($E14-$D14)),IF(AND($E14<>0,$G14<>0),IF($F14=0,COUNTRY_INFO!N14*$G14,COUNTRY_INFO!N14*($G14-$D14)),0)),IF($G14="",COUNTRY_INFO!N14*$E14,COUNTRY_INFO!N14*$G14))) -> 0 | I14: =IF(OR(COUNTRY_INFO!O14="Inconnu",COUNTRY_INFO!O14="Surveillance",COUNTRY_INFO!O14="Non requis",COUNTRY_INFO!O14=0),0,IF($E14<>0, IF($F14=0,COUNTRY_INFO!O14*$E14,COUNTRY_INFO!O14*($E14-$D14)),COUNTRY_INFO!O14*$E14)) -> 0 | K14: =IF(OR(COUNTRY_INFO!P14="Inconnu",COUNTRY_INFO!P14="Surveillance",COUNTRY_INFO!P14="Non requis",COUNTRY_INFO!P14=0),0,IF(AND($E14<>0,$J14=""),IF($F14=0,COUNTRY_INFO!P14*$E14,COUNTRY_INFO!P14*($E14-$D14)), IF(AND($E14<>0,$J14<>0),IF($F14=0,COUNTRY_INFO!P14*$J14,COUNTRY_INFO!P14*($J14-$D14)), COUNTRY_INFO!P14*$J14))) -> 0 | L14: 0 | M14: 17300 | O14: 17300 | P14: 0 | R14: 0 | S14: 0 | U14: 0
A15: =IF(AND(INTRO!$E$37="Non endémique",INTRO!$E$41="Non endémique")," ",IF(COUNTRY_INFO!A15=0," ",COUNTRY_INFO!A15)) -> Guinée Équatoriale | B15: =IF(AND(INTRO!$E$37="Non endémique",INTRO!$E$41="Non endémique")," ",IF(COUNTRY_INFO!B15=0," ",COUNTRY_INFO!B15)) -> Centro Sur | C15: =IF(AND(INTRO!$E$37="Non endémique",INTRO!$E$41="Non endémique")," ",IF(COUNTRY_INFO!C15=0," ",COUNTRY_INFO!C15)) -> Acurenam | D15: 2 | E15: 0 | F15: 30238 | H15: =IF(OR(COUNTRY_INFO!N15="Inconnu",COUNTRY_INFO!N15="Surveillance",COUNTRY_INFO!N15="Non requis",COUNTRY_INFO!N15=0),0,IF(INTRO!$E$39="Non endémique",IF(AND($E15<>0,$G15=""),IF($F15=0,COUNTRY_INFO!N15*$E15,COUNTRY_INFO!N15*($E15-$D15)),IF(AND($E15<>0,$G15<>0),IF($F15=0,COUNTRY_INFO!N15*$G15,COUNTRY_INFO!N15*($G15-$D15)),0)),IF($G15="",COUNTRY_INFO!N15*$E15,COUNTRY_INFO!N15*$G15))) -> 0 | I15: =IF(OR(COUNTRY_INFO!O15="Inconnu",COUNTRY_INFO!O15="Surveillance",COUNTRY_INFO!O15="Non requis",COUNTRY_INFO!O15=0),0,IF($E15<>0, IF($F15=0,COUNTRY_INFO!O15*$E15,COUNTRY_INFO!O15*($E15-$D15)),COUNTRY_INFO!O15*$E15)) -> 0 | K15: =IF(OR(COUNTRY_INFO!P15="Inconnu",COUNTRY_INFO!P15="Surveillance",COUNTRY_INFO!P15="Non requis",COUNTRY_INFO!P15=0),0,IF(AND($E15<>0,$J15=""),IF($F15=0,COUNTRY_INFO!P15*$E15,COUNTRY_INFO!P15*($E15-$D15)), IF(AND($E15<>0,$J15<>0),IF($F15=0,COUNTRY_INFO!P15*$J15,COUNTRY_INFO!P15*($J15-$D15)), COUNTRY_INFO!P15*$J15))) -> 0 | L15: 0 | M15: 60476 | O15: 60476 | P15: 0 | R15: 0 | S15: 0 | U15: 0
A16: =IF(AND(INTRO!$E$37="Non endémique",INTRO!$E$41="Non endémique")," ",IF(COUNTRY_INFO!A16=0," ",COUNTRY_INFO!A16)) -> Guinée Équatoriale | B16: =IF(AND(INTRO!$E$37="Non endémique",INTRO!$E$41="Non endémique")," ",IF(COUNTRY_INFO!B16=0," ",COUNTRY_INFO!B16)) -> Centro Sur | C16: =IF(AND(INTRO!$E$37="Non endémique",INTRO!$E$41="Non endémique")," ",IF(COUNTRY_INFO!C16=0," ",COUNTRY_INFO!C16)) -> Evinayong | D16: 2 | E16: 0 | F16: 55516 | H16: =IF(OR(COUNTRY_INFO!N16="Inconnu",COUNTRY_INFO!N16="Surveillance",COUNTRY_INFO!N16="Non requis",COUNTRY_INFO!N16=0),0,IF(INTRO!$E$39="Non endémique",IF(AND($E16<>0,$G16=""),IF($F16=0,COUNTRY_INFO!N16*$E16,COUNTRY_INFO!N16*($E16-$D16)),IF(AND($E16<>0,$G16<>0),IF($F16=0,COUNTRY_INFO!N16*$G16,COUNTRY_INFO!N16*($G16-$D16)),0)),IF($G16="",COUNTRY_INFO!N16*$E16,COUNTRY_INFO!N16*$G16))) -> 0 | I16: =IF(OR(COUNTRY_INFO!O16="Inconnu",COUNTRY_INFO!O16="Surveillance",COUNTRY_INFO!O16="Non requis",COUNTRY_INFO!O16=0),0,IF($E16<>0, IF($F16=0,COUNTRY_INFO!O16*$E16,COUNTRY_INFO!O16*($E16-$D16)),COUNTRY_INFO!O16*$E16)) -> 0 | K16: =IF(OR(COUNTRY_INFO!P16="Inconnu",COUNTRY_INFO!P16="Surveillance",COUNTRY_INFO!P16="Non requis",COUNTRY_INFO!P16=0),0,IF(AND($E16<>0,$J16=""),IF($F16=0,COUNTRY_INFO!P16*$E16,COUNTRY_INFO!P16*($E16-$D16)), IF(AND($E16<>0,$J16<>0),IF($F16=0,COUNTRY_INFO!P16*$J16,COUNTRY_INFO!P16*($J16-$D16)), COUNTRY_INFO!P16*$J16))) -> 0 | L16: 0 | M16: 111032 | O16: 111032 | P16: 0 | R16: 0 | S16: 0 | U16: 0
A17: =IF(AND(INTRO!$E$37="Non endémique",INTRO!$E$41="Non endémique")," ",IF(COUNTRY_INFO!A17=0," ",COUNTRY_INFO!A17)) -> Guinée Équatoriale | B17: =IF(AND(INTRO!$E$37="Non endémique",INTRO!$E$41="Non endémique")," ",IF(COUNTRY_INFO!B17=0," ",COUNTRY_INFO!B17)) -> Centro Sur | C17: =IF(AND(INTRO!$E$37="Non endémique",INTRO!$E$41="Non endémique")," ",IF(COUNTRY_INFO!C17=0," ",COUNTRY_INFO!C17)) -> Niefang | D17: 2 | E17: 0 | F17: 71124 | H17: =IF(OR(COUNTRY_INFO!N17="Inconnu",COUNTRY_INFO!N17="Surveillance",COUNTRY_INFO!N17="Non requis",COUNTRY_INFO!N17=0),0,IF(INTRO!$E$39="Non endémique",IF(AND($E17<>0,$G17=""),IF($F17=0,COUNTRY_INFO!N17*$E17,COUNTRY_INFO!N17*($E17-$D17)),IF(AND($E17<>0,$G17<>0),IF($F17=0,COUNTRY_INFO!N17*$G17,COUNTRY_INFO!N17*($G17-$D17)),0)),IF($G17="",COUNTRY_INFO!N17*$E17,COUNTRY_INFO!N17*$G17))) -> 0 | I17: =IF(OR(COUNTRY_INFO!O17="Inconnu",COUNTRY_INFO!O17="Surveillance",COUNTRY_INFO!O17="Non requis",COUNTRY_INFO!O17=0),0,IF($E17<>0, IF($F17=0,COUNTRY_INFO!O17*$E17,COUNTRY_INFO!O17*($E17-$D17)),COUNTRY_INFO!O17*$E17)) -> 0 | K17: =IF(OR(COUNTRY_INFO!P17="Inconnu",COUNTRY_INFO!P17="Surveillance",COUNTRY_INFO!P17="Non requis",COUNTRY_INFO!P17=0),0,IF(AND($E17<>0,$J17=""),IF($F17=0,COUNTRY_INFO!P17*$E17,COUNTRY_INFO!P17*($E17-$D17)), IF(AND($E17<>0,$J17<>0),IF($F17=0,COUNTRY_INFO!P17*$J17,COUNTRY_INFO!P17*($J17-$D17)), COUNTRY_INFO!P17*$J17))) -> 0 | L17: 0 | M17: 142248 | O17: 142248 | P17: 0 | R17: 0 | S17: 0 | U17: 0
A18: =IF(AND(INTRO!$E$37="Non endémique",INTRO!$E$41="Non endémique")," ",IF(COUNTRY_INFO!A18=0," ",COUNTRY_INFO!A18)) -> Guinée Équatoriale | B18: =IF(AND(INTRO!$E$37="Non endémique",INTRO!$E$41="Non endémique")," ",IF(COUNTRY_INFO!B18=0," ",COUNTRY_INFO!B18)) -> Kientem | C18: =IF(AND(INTRO!$E$37="Non endémique",INTRO!$E$41="Non endémique")," ",IF(COUNTRY_INFO!C18=0," ",COUNTRY_INFO!C18)) -> Ebebiyin | D18: 2 | E18: 0 | F18: 118444 | H18: =IF(OR(COUNTRY_INFO!N18="Inconnu",COUNTRY_INFO!N18="Surveillance",COUNTRY_INFO!N18="Non requis",COUNTRY_INFO!N18=0),0,IF(INTRO!$E$39="Non endémique",IF(AND($E18<>0,$G18=""),IF($F18=0,COUNTRY_INFO!N18*$E18,COUNTRY_INFO!N18*($E18-$D18)),IF(AND($E18<>0,$G18<>0),IF($F18=0,COUNTRY_INFO!N18*$G18,COUNTRY_INFO!N18*($G18-$D18)),0)),IF($G18="",COUNTRY_INFO!N18*$E18,COUNTRY_INFO!N18*$G18))) -> 0 | I18: =IF(OR(COUNTRY_INFO!O18="Inconnu",COUNTRY_INFO!O18="Surveillance",COUNTRY_INFO!O18="Non requis",COUNTRY_INFO!O18=0),0,IF($E18<>0, IF($F18=0,COUNTRY_INFO!O18*$E18,COUNTRY_INFO!O18*($E18-$D18)),COUNTRY_INFO!O18*$E18)) -> 0 | K18: =IF(OR(COUNTRY_INFO!P18="Inconnu",COUNTRY_INFO!P18="Surveillance",COUNTRY_INFO!P18="Non requis",COUNTRY_INFO!P18=0),0,IF(AND($E18<>0,$J18=""),IF($F18=0,COUNTRY_INFO!P18*$E18,COUNTRY_INFO!P18*($E18-$D18)), IF(AND($E18<>0,$J18<>0),IF($F18=0,COUNTRY_INFO!P18*$J18,COUNTRY_INFO!P18*($J18-$D18)), COUNTRY_INFO!P18*$J18))) -> 0 | L18: 0 | M18: 236888 | O18: 236888 | P18: 0 | R18: 0 | S18: 0 | U18: 0
A19: =IF(AND(INTRO!$E$37="Non endémique",INTRO!$E$41="Non endémique")," ",IF(COUNTRY_INFO!A19=0," ",COUNTRY_INFO!A19)) -> Guinée Équatoriale | B19: =IF(AND(INTRO!$E$37="Non endémique",INTRO!$E$41="Non endémique")," ",IF(COUNTRY_INFO!B19=0," ",COUNTRY_INFO!B19)) -> Kientem | C19: =IF(AND(INTRO!$E$37="Non endémique",INTRO!$E$41="Non endémique")," ",IF(COUNTRY_INFO!C19=0," ",COUNTRY_INFO!C19)) -> Micomiseng | D19: 2 | E19: 0 | F19: 77875 | H19: =IF(OR(COUNTRY_INFO!N19="Inconnu",COUNTRY_INFO!N19="Surveillance",COUNTRY_INFO!N19="Non requis",COUNTRY_INFO!N19=0),0,IF(INTRO!$E$39="Non endémique",IF(AND($E19<>0,$G19=""),IF($F19=0,COUNTRY_INFO!N19*$E19,COUNTRY_INFO!N19*($E19-$D19)),IF(AND($E19<>0,$G19<>0),IF($F19=0,COUNTRY_INFO!N19*$G19,COUNTRY_INFO!N19*($G19-$D19)),0)),IF($G19="",COUNTRY_INFO!N19*$E19,COUNTRY_INFO!N19*$G19))) -> 0 | I19: =IF(OR(COUNTRY_INFO!O19="Inconnu",COUNTRY_INFO!O19="Surveillance",COUNTRY_INFO!O19="Non requis",COUNTRY_INFO!O19=0),0,IF($E19<>0, IF($F19=0,COUNTRY_INFO!O19*$E19,COUNTRY_INFO!O19*($E19-$D19)),COUNTRY_INFO!O19*$E19)) -> 0 | K19: =IF(OR(COUNTRY_INFO!P19="Inconnu",COUNTRY_INFO!P19="Surveillance",COUNTRY_INFO!P19="Non requis",COUNTRY_INFO!P19=0),0,IF(AND($E19<>0,$J19=""),IF($F19=0,COUNTRY_INFO!P19*$E19,COUNTRY_INFO!P19*($E19-$D19)), IF(AND($E19<>0,$J19<>0),IF($F19=0,COUNTRY_INFO!P19*$J19,COUNTRY_INFO!P19*($J19-$D19)), COUNTRY_INFO!P19*$J19))) -> 0 | L19: 0 | M19: 155750 | O19: 155750 | P19: 0 | R19: 0 | S19: 0 | U19: 0
A20: =IF(AND(INTRO!$E$37="Non endémique",INTRO!$E$41="Non endémique")," ",IF(COUNTRY_INFO!A20=0," ",COUNTRY_INFO!A20)) -> Guinée Équatoriale | B20: =IF(AND(INTRO!$E$37="Non endémique",INTRO!$E$41="Non endémique")," ",IF(COUNTRY_INFO!B20=0," ",COUNTRY_INFO!B20)) -> Kientem | C20: =IF(AND(INTRO!$E$37="Non endémique",INTRO!$E$41="Non endémique")," ",IF(COUNTRY_INFO!C20=0," ",COUNTRY_INFO!C20)) -> Nsoknsomo | D20: 2 | E20: 0 | F20: 44897 | H20: =IF(OR(COUNTRY_INFO!N20="Inconnu",COUNTRY_INFO!N20="Surveillance",COUNTRY_INFO!N20="Non requis",COUNTRY_INFO!N20=0),0,IF(INTRO!$E$39="Non endémique",IF(AND($E20<>0,$G20=""),IF($F20=0,COUNTRY_INFO!N20*$E20,COUNTRY_INFO!N20*($E20-$D20)),IF(AND($E20<>0,$G20<>0),IF($F20=0,COUNTRY_INFO!N20*$G20,COUNTRY_INFO!N20*($G20-$D20)),0)),IF($G20="",COUNTRY_INFO!N20*$E20,COUNTRY_INFO!N20*$G20))) -> 0 | I20: =IF(OR(COUNTRY_INFO!O20="Inconnu",COUNTRY_INFO!O20="Surveillance",COUNTRY_INFO!O20="Non requis",COUNTRY_INFO!O20=0),0,IF($E20<>0, IF($F20=0,COUNTRY_INFO!O20*$E20,COUNTRY_INFO!O20*($E20-$D20)),COUNTRY_INFO!O20*$E20)) -> 0 | K20: =IF(OR(COUNTRY_INFO!P20="Inconnu",COUNTRY_INFO!P20="Surveillance",COUNTRY_INFO!P20="Non requis",COUNTRY_INFO!P20=0),0,IF(AND($E20<>0,$J20=""),IF($F20=0,COUNTRY_INFO!P20*$E20,COUNTRY_INFO!P20*($E20-$D20)), IF(AND($E20<>0,$J20<>0),IF($F20=0,COUNTRY_INFO!P20*$J20,COUNTRY_INFO!P20*($J20-$D20)), COUNTRY_INFO!P20*$J20))) -> 0 | L20: 0 | M20: 89794 | O20: 89794 | P20: 0 | R20: 0 | S20: 0 | U20: 0
A21: =IF(AND(INTRO!$E$37="Non endémique",INTRO!$E$41="Non endémique")," ",IF(COUNTRY_INFO!A21=0," ",COUNTRY_INFO!A21)) -> Guinée Équatoriale | B21: =IF(AND(INTRO!$E$37="Non endémique",INTRO!$E$41="Non endémique")," ",IF(COUNTRY_INFO!B21=0," ",COUNTRY_INFO!B21)) -> Litoral | C21: =IF(AND(INTRO!$E$37="Non endémique",INTRO!$E$41="Non endémique")," ",IF(COUNTRY_INFO!C21=0," ",COUNTRY_INFO!C21)) -> Bata | D21: 2 | E21: 0 | F21: 185648 | H21: =IF(OR(COUNTRY_INFO!N21="Inconnu",COUNTRY_INFO!N21="Surveillance",COUNTRY_INFO!N21="Non requis",COUNTRY_INFO!N21=0),0,IF(INTRO!$E$39="Non endémique",IF(AND($E21<>0,$G21=""),IF($F21=0,COUNTRY_INFO!N21*$E21,COUNTRY_INFO!N21*($E21-$D21)),IF(AND($E21<>0,$G21<>0),IF($F21=0,COUNTRY_INFO!N21*$G21,COUNTRY_INFO!N21*($G21-$D21)),0)),IF($G21="",COUNTRY_INFO!N21*$E21,COUNTRY_INFO!N21*$G21))) -> 0 | I21: =IF(OR(COUNTRY_INFO!O21="Inconnu",COUNTRY_INFO!O21="Surveillance",COUNTRY_INFO!O21="Non requis",COUNTRY_INFO!O21=0),0,IF($E21<>0, IF($F21=0,COUNTRY_INFO!O21*$E21,COUNTRY_INFO!O21*($E21-$D21)),COUNTRY_INFO!O21*$E21)) -> 0 | K21: =IF(OR(COUNTRY_INFO!P21="Inconnu",COUNTRY_INFO!P21="Surveillance",COUNTRY_INFO!P21="Non requis",COUNTRY_INFO!P21=0),0,IF(AND($E21<>0,$J21=""),IF($F21=0,COUNTRY_INFO!P21*$E21,COUNTRY_INFO!P21*($E21-$D21)), IF(AND($E21<>0,$J21<>0),IF($F21=0,COUNTRY_INFO!P21*$J21,COUNTRY_INFO!P21*($J21-$D21)), COUNTRY_INFO!P21*$J21))) -> 0 | L21: 0 | M21: 371296 | O21: 371296 | P21: 0 | R21: 0 | S21: 0 | U21: 0
A22: =IF(AND(INTRO!$E$37="Non endémique",INTRO!$E$41="Non endémique")," ",IF(COUNTRY_INFO!A22=0," ",COUNTRY_INFO!A22)) -> Guinée Équatoriale | B22: =IF(AND(INTRO!$E$37="Non endémique",INTRO!$E$41="Non endémique")," ",IF(COUNTRY_INFO!B22=0," ",COUNTRY_INFO!B22)) -> Litoral | C22: =IF(AND(INTRO!$E$37="Non endémique",INTRO!$E$41="Non endémique")," ",IF(COUNTRY_INFO!C22=0," ",COUNTRY_INFO!C22)) -> Kogo | D22: 2 | E22: 0 | F22: 37977 | H22: =IF(OR(COUNTRY_INFO!N22="Inconnu",COUNTRY_INFO!N22="Surveillance",COUNTRY_INFO!N22="Non requis",COUNTRY_INFO!N22=0),0,IF(INTRO!$E$39="Non endémique",IF(AND($E22<>0,$G22=""),IF($F22=0,COUNTRY_INFO!N22*$E22,COUNTRY_INFO!N22*($E22-$D22)),IF(AND($E22<>0,$G22<>0),IF($F22=0,COUNTRY_INFO!N22*$G22,COUNTRY_INFO!N22*($G22-$D22)),0)),IF($G22="",COUNTRY_INFO!N22*$E22,COUNTRY_INFO!N22*$G22))) -> 0 | I22: =IF(OR(COUNTRY_INFO!O22="Inconnu",COUNTRY_INFO!O22="Surveillance",COUNTRY_INFO!O22="Non requis",COUNTRY_INFO!O22=0),0,IF($E22<>0, IF($F22=0,COUNTRY_INFO!O22*$E22,COUNTRY_INFO!O22*($E22-$D22)),COUNTRY_INFO!O22*$E22)) -> 0 | K22: =IF(OR(COUNTRY_INFO!P22="Inconnu",COUNTRY_INFO!P22="Surveillance",COUNTRY_INFO!P22="Non requis",COUNTRY_INFO!P22=0),0,IF(AND($E22<>0,$J22=""),IF($F22=0,COUNTRY_INFO!P22*$E22,COUNTRY_INFO!P22*($E22-$D22)), IF(AND($E22<>0,$J22<>0),IF($F22=0,COUNTRY_INFO!P22*$J22,COUNTRY_INFO!P22*($J22-$D22)), COUNTRY_INFO!P22*$J22))) -> 0 | L22: 0 | M22: 75954 | O22: 75954 | P22: 0 | R22: 0 | S22: 0 | U22: 0
A23: =IF(AND(INTRO!$E$37="Non endémique",INTRO!$E$41="Non endémique")," ",IF(COUNTRY_INFO!A23=0," ",COUNTRY_INFO!A23)) -> Guinée Équatoriale | B23: =IF(AND(INTRO!$E$37="Non endémique",INTRO!$E$41="Non endémique")," ",IF(COUNTRY_INFO!B23=0," ",COUNTRY_INFO!B23)) -> Litoral | C23: =IF(AND(INTRO!$E$37="Non endémique",INTRO!$E$41="Non endémique")," ",IF(COUNTRY_INFO!C23=0," ",COUNTRY_INFO!C23)) -> Mbini | D23: 2 | E23: 0 | F23: 36487 | H23: =IF(OR(COUNTRY_INFO!N23="Inconnu",COUNTRY_INFO!N23="Surveillance",COUNTRY_INFO!N23="Non requis",COUNTRY_INFO!N23=0),0,IF(INTRO!$E$39="Non endémique",IF(AND($E23<>0,$G23=""),IF($F23=0,COUNTRY_INFO!N23*$E23,COUNTRY_INFO!N23*($E23-$D23)),IF(AND($E23<>0,$G23<>0),IF($F23=0,COUNTRY_INFO!N23*$G23,COUNTRY_INFO!N23*($G23-$D23)),0)),IF($G23="",COUNTRY_INFO!N23*$E23,COUNTRY_INFO!N23*$G23))) -> 0 | I23: =IF(OR(COUNTRY_INFO!O23="Inconnu",COUNTRY_INFO!O23="Surveillance",COUNTRY_INFO!O23="Non requis",COUNTRY_INFO!O23=0),0,IF($E23<>0, IF($F23=0,COUNTRY_INFO!O23*$E23,COUNTRY_INFO!O23*($E23-$D23)),COUNTRY_INFO!O23*$E23)) -> 0 | K23: =IF(OR(COUNTRY_INFO!P23="Inconnu",COUNTRY_INFO!P23="Surveillance",COUNTRY_INFO!P23="Non requis",COUNTRY_INFO!P23=0),0,IF(AND($E23<>0,$J23=""),IF($F23=0,COUNTRY_INFO!P23*$E23,COUNTRY_INFO!P23*($E23-$D23)), IF(AND($E23<>0,$J23<>0),IF($F23=0,COUNTRY_INFO!P23*$J23,COUNTRY_INFO!P23*($J23-$D23)), COUNTRY_INFO!P23*$J23))) -> 0 | L23: 0 | M23: 72974 | O23: 72974 | P23: 0 | R23: 0 | S23: 0 | U23: 0
A24: =IF(AND(INTRO!$E$37="Non endémique",INTRO!$E$41="Non endémique")," ",IF(COUNTRY_INFO!A24=0," ",COUNTRY_INFO!A24)) -> Guinée Équatoriale | B24: =IF(AND(INTRO!$E$37="Non endémique",INTRO!$E$41="Non endémique")," ",IF(COUNTRY_INFO!B24=0," ",COUNTRY_INFO!B24)) -> Welenzas | C24: =IF(AND(INTRO!$E$37="Non endémique",INTRO!$E$41="Non endémique")," ",IF(COUNTRY_INFO!C24=0," ",COUNTRY_INFO!C24)) -> Akonibe | D24: 2 | E24: 0 | F24: 23569 | H24: =IF(OR(COUNTRY_INFO!N24="Inconnu",COUNTRY_INFO!N24="Surveillance",COUNTRY_INFO!N24="Non requis",COUNTRY_INFO!N24=0),0,IF(INTRO!$E$39="Non endémique",IF(AND($E24<>0,$G24=""),IF($F24=0,COUNTRY_INFO!N24*$E24,COUNTRY_INFO!N24*($E24-$D24)),IF(AND($E24<>0,$G24<>0),IF($F24=0,COUNTRY_INFO!N24*$G24,COUNTRY_INFO!N24*($G24-$D24)),0)),IF($G24="",COUNTRY_INFO!N24*$E24,COUNTRY_INFO!N24*$G24))) -> 0 | I24: =IF(OR(COUNTRY_INFO!O24="Inconnu",COUNTRY_INFO!O24="Surveillance",COUNTRY_INFO!O24="Non requis",COUNTRY_INFO!O24=0),0,IF($E24<>0, IF($F24=0,COUNTRY_INFO!O24*$E24,COUNTRY_INFO!O24*($E24-$D24)),COUNTRY_INFO!O24*$E24)) -> 0 | K24: =IF(OR(COUNTRY_INFO!P24="Inconnu",COUNTRY_INFO!P24="Surveillance",COUNTRY_INFO!P24="Non requis",COUNTRY_INFO!P24=0),0,IF(AND($E24<>0,$J24=""),IF($F24=0,COUNTRY_INFO!P24*$E24,COUNTRY_INFO!P24*($E24-$D24)), IF(AND($E24<>0,$J24<>0),IF($F24=0,COUNTRY_INFO!P24*$J24,COUNTRY_INFO!P24*($J24-$D24)), COUNTRY_INFO!P24*$J24))) -> 0 | L24: 0 | M24: 47138 | O24: 47138 | P24: 0 | R24: 0 | S24: 0 | U24: 0
A25: =IF(AND(INTRO!$E$37="Non endémique",INTRO!$E$41="Non endémique")," ",IF(COUNTRY_INFO!A25=0," ",COUNTRY_INFO!A25)) -> Guinée Équatoriale | B25: =IF(AND(INTRO!$E$37="Non endémique",INTRO!$E$41="Non endémique")," ",IF(COUNTRY_INFO!B25=0," ",COUNTRY_INFO!B25)) -> Welenzas | C25: =IF(AND(INTRO!$E$37="Non endémique",INTRO!$E$41="Non endémique")," ",IF(COUNTRY_INFO!C25=0," ",COUNTRY_INFO!C25)) -> Anisok | D25: 2 | E25: 0 | F25: 58790 | H25: =IF(OR(COUNTRY_INFO!N25="Inconnu",COUNTRY_INFO!N25="Surveillance",COUNTRY_INFO!N25="Non requis",COUNTRY_INFO!N25=0),0,IF(INTRO!$E$39="Non endémique",IF(AND($E25<>0,$G25=""),IF($F25=0,COUNTRY_INFO!N25*$E25,COUNTRY_INFO!N25*($E25-$D25)),IF(AND($E25<>0,$G25<>0),IF($F25=0,COUNTRY_INFO!N25*$G25,COUNTRY_INFO!N25*($G25-$D25)),0)),IF($G25="",COUNTRY_INFO!N25*$E25,COUNTRY_INFO!N25*$G25))) -> 0 | I25: =IF(OR(COUNTRY_INFO!O25="Inconnu",COUNTRY_INFO!O25="Surveillance",COUNTRY_INFO!O25="Non requis",COUNTRY_INFO!O25=0),0,IF($E25<>0, IF($F25=0,COUNTRY_INFO!O25*$E25,COUNTRY_INFO!O25*($E25-$D25)),COUNTRY_INFO!O25*$E25)) -> 0 | K25: =IF(OR(COUNTRY_INFO!P25="Inconnu",COUNTRY_INFO!P25="Surveillance",COUNTRY_INFO!P25="Non requis",COUNTRY_INFO!P25=0),0,IF(AND($E25<>0,$J25=""),IF($F25=0,COUNTRY_INFO!P25*$E25,COUNTRY_INFO!P25*($E25-$D25)), IF(AND($E25<>0,$J25<>0),IF($F25=0,COUNTRY_INFO!P25*$J25,COUNTRY_INFO!P25*($J25-$D25)), COUNTRY_INFO!P25*$J25))) -> 0 | L25: 0 | M25: 117580 | O25: 117580 | P25: 0 | R25: 0 | S25: 0 | U25: 0
A26: =IF(AND(INTRO!$E$37="Non endémique",INTRO!$E$41="Non endémique")," ",IF(COUNTRY_INFO!A26=0," ",COUNTRY_INFO!A26)) -> Guinée Équatoriale | B26: =IF(AND(INTRO!$E$37="Non endémique",INTRO!$E$41="Non endémique")," ",IF(COUNTRY_INFO!B26=0," ",COUNTRY_INFO!B26)) -> Welenzas | C26: =IF(AND(INTRO!$E$37="Non endémique",INTRO!$E$41="Non endémique")," ",IF(COUNTRY_INFO!C26=0," ",COUNTRY_INFO!C26)) -> Mongomo | D26: 2 | E26: 0 | F26: 61764 | H26: =IF(OR(COUNTRY_INFO!N26="Inconnu",COUNTRY_INFO!N26="Surveillance",COUNTRY_INFO!N26="Non requis",COUNTRY_INFO!N26=0),0,IF(INTRO!$E$39="Non endémique",IF(AND($E26<>0,$G26=""),IF($F26=0,COUNTRY_INFO!N26*$E26,COUNTRY_INFO!N26*($E26-$D26)),IF(AND($E26<>0,$G26<>0),IF($F26=0,COUNTRY_INFO!N26*$G26,COUNTRY_INFO!N26*($G26-$D26)),0)),IF($G26="",COUNTRY_INFO!N26*$E26,COUNTRY_INFO!N26*$G26))) -> 0 | I26: =IF(OR(COUNTRY_INFO!O26="Inconnu",COUNTRY_INFO!O26="Surveillance",COUNTRY_INFO!O26="Non requis",COUNTRY_INFO!O26=0),0,IF($E26<>0, IF($F26=0,COUNTRY_INFO!O26*$E26,COUNTRY_INFO!O26*($E26-$D26)),COUNTRY_INFO!O26*$E26)) -> 0 | K26: =IF(OR(COUNTRY_INFO!P26="Inconnu",COUNTRY_INFO!P26="Surveillance",COUNTRY_INFO!P26="Non requis",COUNTRY_INFO!P26=0),0,IF(AND($E26<>0,$J26=""),IF($F26=0,COUNTRY_INFO!P26*$E26,COUNTRY_INFO!P26*($E26-$D26)), IF(AND($E26<>0,$J26<>0),IF($F26=0,COUNTRY_INFO!P26*$J26,COUNTRY_INFO!P26*($J26-$D26)), COUNTRY_INFO!P26*$J26))) -> 0 | L26: 0 | M26: 123528 | O26: 123528 | P26: 0 | R26: 0 | S26: 0 | U26: 0
A27: =IF(AND(INTRO!$E$37="Non endémique",INTRO!$E$41="Non endémique")," ",IF(COUNTRY_INFO!A27=0," ",COUNTRY_INFO!A27)) -> Guinée Équatoriale | B27: =IF(AND(INTRO!$E$37="Non endémique",INTRO!$E$41="Non endémique")," ",IF(COUNTRY_INFO!B27=0," ",COUNTRY_INFO!B27)) -> Welenzas | C27: =IF(AND(INTRO!$E$37="Non endémique",INTRO!$E$41="Non endémique")," ",IF(COUNTRY_INFO!C27=0," ",COUNTRY_INFO!C27)) -> Nsork | D27: 2 | E27: 0 | F27: 18262 | H27: =IF(OR(COUNTRY_INFO!N27="Inconnu",COUNTRY_INFO!N27="Surveillance",COUNTRY_INFO!N27="Non requis",COUNTRY_INFO!N27=0),0,IF(INTRO!$E$39="Non endémique",IF(AND($E27<>0,$G27=""),IF($F27=0,COUNTRY_INFO!N27*$E27,COUNTRY_INFO!N27*($E27-$D27)),IF(AND($E27<>0,$G27<>0),IF($F27=0,COUNTRY_INFO!N27*$G27,COUNTRY_INFO!N27*($G27-$D27)),0)),IF($G27="",COUNTRY_INFO!N27*$E27,COUNTRY_INFO!N27*$G27))) -> 0 | I27: =IF(OR(COUNTRY_INFO!O27="Inconnu",COUNTRY_INFO!O27="Surveillance",COUNTRY_INFO!O27="Non requis",COUNTRY_INFO!O27=0),0,IF($E27<>0, IF($F27=0,COUNTRY_INFO!O27*$E27,COUNTRY_INFO!O27*($E27-$D27)),COUNTRY_INFO!O27*$E27)) -> 0 | K27: =IF(OR(COUNTRY_INFO!P27="Inconnu",COUNTRY_INFO!P27="Surveillance",COUNTRY_INFO!P27="Non requis",COUNTRY_INFO!P27=0),0,IF(AND($E27<>0,$J27=""),IF($F27=0,COUNTRY_INFO!P27*$E27,COUNTRY_INFO!P27*($E27-$D27)), IF(AND($E27<>0,$J27<>0),IF($F27=0,COUNTRY_INFO!P27*$J27,COUNTRY_INFO!P27*($J27-$D27)), COUNTRY_INFO!P27*$J27))) -> 0 | L27: 0 | M27: 36524 | O27: 36524 | P27: 0 | R27: 0 | S27: 0 | U27: 0

Sheet PZQ
A1: Praziquantel (PZQ)
A2: Structure administrative, population ciblée par groupe d'âge, plan de traitement et information sur les comprimés
A4: TOTAL | E4: =SUBTOTAL(9,E$10:E$1010) -> 25552 | F4: 101550 | G4: 251633 | H4: 378735 | J4: 0 | M4: =SUBTOTAL(9,M$10:M$1010) -> 0 | N4: 253875 | O4: 754899 | P4: 1008774 | Q4: 0 | R4: 1008774
A6: Structure administrative du pays | D6: Plan de traitement SCH | E6: Population cible pour SCH | I6: Hotspots | K6: Année précédent l’AMM | M6: Praziquantel (PZQ)
A7: Pays | B7: Région/Département | C7: District | E7: EAPréS | F7: EAS | G7: Adultes | H7: Total | I7: Prévue | J7: Population | K7: Tournées | L7: Groupes d'âge | M7: EAPréS | N7: EAS | O7: Adultes | P7: Total requis | Q7: Reste en stock | R7: Comprimés devant être fournis
A10: =IF(INTRO!$E$43="Non endémique"," ", IF(COUNTRY_INFO!A10=0," ",COUNTRY_INFO!A10)) -> Guinée Équatoriale | B10: =IF(INTRO!$E$43="Non endémique"," ", IF(COUNTRY_INFO!B10=0," ",COUNTRY_INFO!B10)) -> Annobon | C10: =IF(INTRO!$E$43="Non endémique"," ", IF(COUNTRY_INFO!C10=0," ",COUNTRY_INFO!C10)) -> Annonbon | D10: =IF(INTRO!$E$43="Non endémique", "Non requis", COUNTRY_INFO!Y10) -> 0 | E10: =IF(OR(COUNTRY_INFO!R10="Inconnu",COUNTRY_INFO!R10="Surveillance",COUNTRY_INFO!R10="Non requis",COUNTRY_INFO!R10=0),0,IF($D10<>0, COUNTRY_INFO!R10,0)) -> 0 | F10: =IF(OR(COUNTRY_INFO!S10="Inconnu",COUNTRY_INFO!S10="Surveillance",COUNTRY_INFO!S10="Non requis",COUNTRY_INFO!S10=0),0,IF($D10<>0, COUNTRY_INFO!S10,0)) -> 0 | G10: =IF(OR(COUNTRY_INFO!T10="Inconnu",COUNTRY_INFO!T10="Surveillance",COUNTRY_INFO!T10="Non requis",COUNTRY_INFO!T10=0),0,IF($D10<>0, COUNTRY_INFO!T10,0)) -> 0 | H10: =SUM(E10:G10) -> 0 | N10: =IF($I10<>"Oui",$F10*2.5,($F10+ROUND(J10*$F10/SUM(COUNTRY_INFO!$E10:$G10),0))*2.5) -> 0 | O10: =IF($I10<>"Oui",$G10*3,($G10+ROUND(J10*$G10/SUM(COUNTRY_INFO!$E10:$G10),0))*3) -> 0 | P10: =SUM(M10:O10) -> 0 | R10: =IF($P10>$Q10,P10-Q10,0) -> 0
A11: =IF(INTRO!$E$43="Non endémique"," ", IF(COUNTRY_INFO!A11=0," ",COUNTRY_INFO!A11)) -> Guinée Équatoriale | B11: =IF(INTRO!$E$43="Non endémique"," ", IF(COUNTRY_INFO!B11=0," ",COUNTRY_INFO!B11)) -> Bioko Norte | C11: =IF(INTRO!$E$43="Non endémique"," ", IF(COUNTRY_INFO!C11=0," ",COUNTRY_INFO!C11)) -> Baney | D11: =IF(INTRO!$E$43="Non endémique", "Non requis", COUNTRY_INFO!Y11) -> 0 | E11: =IF(OR(COUNTRY_INFO!R11="Inconnu",COUNTRY_INFO!R11="Surveillance",COUNTRY_INFO!R11="Non requis",COUNTRY_INFO!R11=0),0,IF($D11<>0, COUNTRY_INFO!R11,0)) -> 0 | F11: =IF(OR(COUNTRY_INFO!S11="Inconnu",COUNTRY_INFO!S11="Surveillance",COUNTRY_INFO!S11="Non requis",COUNTRY_INFO!S11=0),0,IF($D11<>0, COUNTRY_INFO!S11,0)) -> 0 | G11: =IF(OR(COUNTRY_INFO!T11="Inconnu",COUNTRY_INFO!T11="Surveillance",COUNTRY_INFO!T11="Non requis",COUNTRY_INFO!T11=0),0,IF($D11<>0, COUNTRY_INFO!T11,0)) -> 0 | H11: =SUM(E11:G11) -> 0 | N11: =IF($I11<>"Oui",$F11*2.5,($F11+ROUND(J11*$F11/SUM(COUNTRY_INFO!$E11:$G11),0))*2.5) -> 0 | O11: =IF($I11<>"Oui",$G11*3,($G11+ROUND(J11*$G11/SUM(COUNTRY_INFO!$E11:$G11),0))*3) -> 0 | P11: =SUM(M11:O11) -> 0 | R11: =IF($P11>$Q11,P11-Q11,0) -> 0
A12: =IF(INTRO!$E$43="Non endémique"," ", IF(COUNTRY_INFO!A12=0," ",COUNTRY_INFO!A12)) -> Guinée Équatoriale | B12: =IF(INTRO!$E$43="Non endémique"," ", IF(COUNTRY_INFO!B12=0," ",COUNTRY_INFO!B12)) -> Bioko Norte | C12: =IF(INTRO!$E$43="Non endémique"," ", IF(COUNTRY_INFO!C12=0," ",COUNTRY_INFO!C12)) -> Malabo | D12: =IF(INTRO!$E$43="Non endémique", "Non requis", COUNTRY_INFO!Y12) -> 1 | E12: =IF(OR(COUNTRY_INFO!R12="Inconnu",COUNTRY_INFO!R12="Surveillance",COUNTRY_INFO!R12="Non requis",COUNTRY_INFO!R12=0),0,IF($D12<>0, COUNTRY_INFO!R12,0)) -> 12121 | F12: =IF(OR(COUNTRY_INFO!S12="Inconnu",COUNTRY_INFO!S12="Surveillance",COUNTRY_INFO!S12="Non requis",COUNTRY_INFO!S12=0),0,IF($D12<>0, COUNTRY_INFO!S12,0)) -> 48171 | G12: =IF(OR(COUNTRY_INFO!T12="Inconnu",COUNTRY_INFO!T12="Surveillance",COUNTRY_INFO!T12="Non requis",COUNTRY_INFO!T12=0),0,IF($D12<>0, COUNTRY_INFO!T12,0)) -> 119364 | H12: 179656 | K12: 0 | N12: =IF($I12<>"Oui",$F12*2.5,($F12+ROUND(J12*$F12/SUM(COUNTRY_INFO!$E12:$G12),0))*2.5) -> 120427.5 | O12: =IF($I12<>"Oui",$G12*3,($G12+ROUND(J12*$G12/SUM(COUNTRY_INFO!$E12:$G12),0))*3) -> 358092 | P12: 478519.5 | R12: 478519.5
A13: =IF(INTRO!$E$43="Non endémique"," ", IF(COUNTRY_INFO!A13=0," ",COUNTRY_INFO!A13)) -> Guinée Équatoriale | B13: =IF(INTRO!$E$43="Non endémique"," ", IF(COUNTRY_INFO!B13=0," ",COUNTRY_INFO!B13)) -> Bioko Sur | C13: =IF(INTRO!$E$43="Non endémique"," ", IF(COUNTRY_INFO!C13=0," ",COUNTRY_INFO!C13)) -> Luba | D13: =IF(INTRO!$E$43="Non endémique", "Non requis", COUNTRY_INFO!Y13) -> 0 | E13: =IF(OR(COUNTRY_INFO!R13="Inconnu",COUNTRY_INFO!R13="Surveillance",COUNTRY_INFO!R13="Non requis",COUNTRY_INFO!R13=0),0,IF($D13<>0, COUNTRY_INFO!R13,0)) -> 0 | F13: =IF(OR(COUNTRY_INFO!S13="Inconnu",COUNTRY_INFO!S13="Surveillance",COUNTRY_INFO!S13="Non requis",COUNTRY_INFO!S13=0),0,IF($D13<>0, COUNTRY_INFO!S13,0)) -> 0 | G13: =IF(OR(COUNTRY_INFO!T13="Inconnu",COUNTRY_INFO!T13="Surveillance",COUNTRY_INFO!T13="Non requis",COUNTRY_INFO!T13=0),0,IF($D13<>0, COUNTRY_INFO!T13,0)) -> 0 | H13: 0 | N13: =IF($I13<>"Oui",$F13*2.5,($F13+ROUND(J13*$F13/SUM(COUNTRY_INFO!$E13:$G13),0))*2.5) -> 0 | O13: =IF($I13<>"Oui",$G13*3,($G13+ROUND(J13*$G13/SUM(COUNTRY_INFO!$E13:$G13),0))*3) -> 0 | P13: 0 | R13: 0
A14: =IF(INTRO!$E$43="Non endémique"," ", IF(COUNTRY_INFO!A14=0," ",COUNTRY_INFO!A14)) -> Guinée Équatoriale | B14: =IF(INTRO!$E$43="Non endémique"," ", IF(COUNTRY_INFO!B14=0," ",COUNTRY_INFO!B14)) -> Bioko Sur | C14: =IF(INTRO!$E$43="Non endémique"," ", IF(COUNTRY_INFO!C14=0," ",COUNTRY_INFO!C14)) -> Riaba | D14: =IF(INTRO!$E$43="Non endémique", "Non requis", COUNTRY_INFO!Y14) -> 0 | E14: =IF(OR(COUNTRY_INFO!R14="Inconnu",COUNTRY_INFO!R14="Surveillance",COUNTRY_INFO!R14="Non requis",COUNTRY_INFO!R14=0),0,IF($D14<>0, COUNTRY_INFO!R14,0)) -> 0 | F14: =IF(OR(COUNTRY_INFO!S14="Inconnu",COUNTRY_INFO!S14="Surveillance",COUNTRY_INFO!S14="Non requis",COUNTRY_INFO!S14=0),0,IF($D14<>0, COUNTRY_INFO!S14,0)) -> 0 | G14: =IF(OR(COUNTRY_INFO!T14="Inconnu",COUNTRY_INFO!T14="Surveillance",COUNTRY_INFO!T14="Non requis",COUNTRY_INFO!T14=0),0,IF($D14<>0, COUNTRY_INFO!T14,0)) -> 0 | H14: 0 | N14: =IF($I14<>"Oui",$F14*2.5,($F14+ROUND(J14*$F14/SUM(COUNTRY_INFO!$E14:$G14),0))*2.5) -> 0 | O14: =IF($I14<>"Oui",$G14*3,($G14+ROUND(J14*$G14/SUM(COUNTRY_INFO!$E14:$G14),0))*3) -> 0 | P14: 0 | R14: 0
A15: =IF(INTRO!$E$43="Non endémique"," ", IF(COUNTRY_INFO!A15=0," ",COUNTRY_INFO!A15)) -> Guinée Équatoriale | B15: =IF(INTRO!$E$43="Non endémique"," ", IF(COUNTRY_INFO!B15=0," ",COUNTRY_INFO!B15)) -> Centro Sur | C15: =IF(INTRO!$E$43="Non endémique"," ", IF(COUNTRY_INFO!C15=0," ",COUNTRY_INFO!C15)) -> Acurenam | D15: =IF(INTRO!$E$43="Non endémique", "Non requis", COUNTRY_INFO!Y15) -> 0 | E15: =IF(OR(COUNTRY_INFO!R15="Inconnu",COUNTRY_INFO!R15="Surveillance",COUNTRY_INFO!R15="Non requis",COUNTRY_INFO!R15=0),0,IF($D15<>0, COUNTRY_INFO!R15,0)) -> 0 | F15: =IF(OR(COUNTRY_INFO!S15="Inconnu",COUNTRY_INFO!S15="Surveillance",COUNTRY_INFO!S15="Non requis",COUNTRY_INFO!S15=0),0,IF($D15<>0, COUNTRY_INFO!S15,0)) -> 0 | G15: =IF(OR(COUNTRY_INFO!T15="Inconnu",COUNTRY_INFO!T15="Surveillance",COUNTRY_INFO!T15="Non requis",COUNTRY_INFO!T15=0),0,IF($D15<>0, COUNTRY_INFO!T15,0)) -> 0 | H15: 0 | N15: =IF($I15<>"Oui",$F15*2.5,($F15+ROUND(J15*$F15/SUM(COUNTRY_INFO!$E15:$G15),0))*2.5) -> 0 | O15: =IF($I15<>"Oui",$G15*3,($G15+ROUND(J15*$G15/SUM(COUNTRY_INFO!$E15:$G15),0))*3) -> 0 | P15: 0 | R15: 0
A16: =IF(INTRO!$E$43="Non endémique"," ", IF(COUNTRY_INFO!A16=0," ",COUNTRY_INFO!A16)) -> Guinée Équatoriale | B16: =IF(INTRO!$E$43="Non endémique"," ", IF(COUNTRY_INFO!B16=0," ",COUNTRY_INFO!B16)) -> Centro Sur | C16: =IF(INTRO!$E$43="Non endémique"," ", IF(COUNTRY_INFO!C16=0," ",COUNTRY_INFO!C16)) -> Evinayong | D16: =IF(INTRO!$E$43="Non endémique", "Non requis", COUNTRY_INFO!Y16) -> 0 | E16: =IF(OR(COUNTRY_INFO!R16="Inconnu",COUNTRY_INFO!R16="Surveillance",COUNTRY_INFO!R16="Non requis",COUNTRY_INFO!R16=0),0,IF($D16<>0, COUNTRY_INFO!R16,0)) -> 0 | F16: =IF(OR(COUNTRY_INFO!S16="Inconnu",COUNTRY_INFO!S16="Surveillance",COUNTRY_INFO!S16="Non requis",COUNTRY_INFO!S16=0),0,IF($D16<>0, COUNTRY_INFO!S16,0)) -> 0 | G16: =IF(OR(COUNTRY_INFO!T16="Inconnu",COUNTRY_INFO!T16="Surveillance",COUNTRY_INFO!T16="Non requis",COUNTRY_INFO!T16=0),0,IF($D16<>0, COUNTRY_INFO!T16,0)) -> 0 | H16: 0 | N16: =IF($I16<>"Oui",$F16*2.5,($F16+ROUND(J16*$F16/SUM(COUNTRY_INFO!$E16:$G16),0))*2.5) -> 0 | O16: =IF($I16<>"Oui",$G16*3,($G16+ROUND(J16*$G16/SUM(COUNTRY_INFO!$E16:$G16),0))*3) -> 0 | P16: 0 | R16: 0
A17: =IF(INTRO!$E$43="Non endémique"," ", IF(COUNTRY_INFO!A17=0," ",COUNTRY_INFO!A17)) -> Guinée Équatoriale | B17: =IF(INTRO!$E$43="Non endémique"," ", IF(COUNTRY_INFO!B17=0," ",COUNTRY_INFO!B17)) -> Centro Sur | C17: =IF(INTRO!$E$43="Non endémique"," ", IF(COUNTRY_INFO!C17=0," ",COUNTRY_INFO!C17)) -> Niefang | D17: =IF(INTRO!$E$43="Non endémique", "Non requis", COUNTRY_INFO!Y17) -> 0 | E17: =IF(OR(COUNTRY_INFO!R17="Inconnu",COUNTRY_INFO!R17="Surveillance",COUNTRY_INFO!R17="Non requis",COUNTRY_INFO!R17=0),0,IF($D17<>0, COUNTRY_INFO!R17,0)) -> 0 | F17: =IF(OR(COUNTRY_INFO!S17="Inconnu",COUNTRY_INFO!S17="Surveillance",COUNTRY_INFO!S17="Non requis",COUNTRY_INFO!S17=0),0,IF($D17<>0, COUNTRY_INFO!S17,0)) -> 0 | G17: =IF(OR(COUNTRY_INFO!T17="Inconnu",COUNTRY_INFO!T17="Surveillance",COUNTRY_INFO!T17="Non requis",COUNTRY_INFO!T17=0),0,IF($D17<>0, COUNTRY_INFO!T17,0)) -> 0 | H17: 0 | N17: =IF($I17<>"Oui",$F17*2.5,($F17+ROUND(J17*$F17/SUM(COUNTRY_INFO!$E17:$G17),0))*2.5) -> 0 | O17: =IF($I17<>"Oui",$G17*3,($G17+ROUND(J17*$G17/SUM(COUNTRY_INFO!$E17:$G17),0))*3) -> 0 | P17: 0 | R17: 0
A18: =IF(INTRO!$E$43="Non endémique"," ", IF(COUNTRY_INFO!A18=0," ",COUNTRY_INFO!A18)) -> Guinée Équatoriale | B18: =IF(INTRO!$E$43="Non endémique"," ", IF(COUNTRY_INFO!B18=0," ",COUNTRY_INFO!B18)) -> Kientem | C18: =IF(INTRO!$E$43="Non endémique"," ", IF(COUNTRY_INFO!C18=0," ",COUNTRY_INFO!C18)) -> Ebebiyin | D18: =IF(INTRO!$E$43="Non endémique", "Non requis", COUNTRY_INFO!Y18) -> 0 | E18: =IF(OR(COUNTRY_INFO!R18="Inconnu",COUNTRY_INFO!R18="Surveillance",COUNTRY_INFO!R18="Non requis",COUNTRY_INFO!R18=0),0,IF($D18<>0, COUNTRY_INFO!R18,0)) -> 0 | F18: =IF(OR(COUNTRY_INFO!S18="Inconnu",COUNTRY_INFO!S18="Surveillance",COUNTRY_INFO!S18="Non requis",COUNTRY_INFO!S18=0),0,IF($D18<>0, COUNTRY_INFO!S18,0)) -> 0 | G18: =IF(OR(COUNTRY_INFO!T18="Inconnu",COUNTRY_INFO!T18="Surveillance",COUNTRY_INFO!T18="Non requis",COUNTRY_INFO!T18=0),0,IF($D18<>0, COUNTRY_INFO!T18,0)) -> 0 | H18: 0 | N18: =IF($I18<>"Oui",$F18*2.5,($F18+ROUND(J18*$F18/SUM(COUNTRY_INFO!$E18:$G18),0))*2.5) -> 0 | O18: =IF($I18<>"Oui",$G18*3,($G18+ROUND(J18*$G18/SUM(COUNTRY_INFO!$E18:$G18),0))*3) -> 0 | P18: 0 | R18: 0
A19: =IF(INTRO!$E$43="Non endémique"," ", IF(COUNTRY_INFO!A19=0," ",COUNTRY_INFO!A19)) -> Guinée Équatoriale | B19: =IF(INTRO!$E$43="Non endémique"," ", IF(COUNTRY_INFO!B19=0," ",COUNTRY_INFO!B19)) -> Kientem | C19: =IF(INTRO!$E$43="Non endémique"," ", IF(COUNTRY_INFO!C19=0," ",COUNTRY_INFO!C19)) -> Micomiseng | D19: =IF(INTRO!$E$43="Non endémique", "Non requis", COUNTRY_INFO!Y19) -> 0 | E19: =IF(OR(COUNTRY_INFO!R19="Inconnu",COUNTRY_INFO!R19="Surveillance",COUNTRY_INFO!R19="Non requis",COUNTRY_INFO!R19=0),0,IF($D19<>0, COUNTRY_INFO!R19,0)) -> 0 | F19: =IF(OR(COUNTRY_INFO!S19="Inconnu",COUNTRY_INFO!S19="Surveillance",COUNTRY_INFO!S19="Non requis",COUNTRY_INFO!S19=0),0,IF($D19<>0, COUNTRY_INFO!S19,0)) -> 0 | G19: =IF(OR(COUNTRY_INFO!T19="Inconnu",COUNTRY_INFO!T19="Surveillance",COUNTRY_INFO!T19="Non requis",COUNTRY_INFO!T19=0),0,IF($D19<>0, COUNTRY_INFO!T19,0)) -> 0 | H19: 0 | N19: =IF($I19<>"Oui",$F19*2.5,($F19+ROUND(J19*$F19/SUM(COUNTRY_INFO!$E19:$G19),0))*2.5) -> 0 | O19: =IF($I19<>"Oui",$G19*3,($G19+ROUND(J19*$G19/SUM(COUNTRY_INFO!$E19:$G19),0))*3) -> 0 | P19: 0 | R19: 0
A20: =IF(INTRO!$E$43="Non endémique"," ", IF(COUNTRY_INFO!A20=0," ",COUNTRY_INFO!A20)) -> Guinée Équatoriale | B20: =IF(INTRO!$E$43="Non endémique"," ", IF(COUNTRY_INFO!B20=0," ",COUNTRY_INFO!B20)) -> Kientem | C20: =IF(INTRO!$E$43="Non endémique"," ", IF(COUNTRY_INFO!C20=0," ",COUNTRY_INFO!C20)) -> Nsoknsomo | D20: =IF(INTRO!$E$43="Non endémique", "Non requis", COUNTRY_INFO!Y20) -> 0 | E20: =IF(OR(COUNTRY_INFO!R20="Inconnu",COUNTRY_INFO!R20="Surveillance",COUNTRY_INFO!R20="Non requis",COUNTRY_INFO!R20=0),0,IF($D20<>0, COUNTRY_INFO!R20,0)) -> 0 | F20: =IF(OR(COUNTRY_INFO!S20="Inconnu",COUNTRY_INFO!S20="Surveillance",COUNTRY_INFO!S20="Non requis",COUNTRY_INFO!S20=0),0,IF($D20<>0, COUNTRY_INFO!S20,0)) -> 0 | G20: =IF(OR(COUNTRY_INFO!T20="Inconnu",COUNTRY_INFO!T20="Surveillance",COUNTRY_INFO!T20="Non requis",COUNTRY_INFO!T20=0),0,IF($D20<>0, COUNTRY_INFO!T20,0)) -> 0 | H20: 0 | N20: =IF($I20<>"Oui",$F20*2.5,($F20+ROUND(J20*$F20/SUM(COUNTRY_INFO!$E20:$G20),0))*2.5) -> 0 | O20: =IF($I20<>"Oui",$G20*3,($G20+ROUND(J20*$G20/SUM(COUNTRY_INFO!$E20:$G20),0))*3) -> 0 | P20: 0 | R20: 0
A21: =IF(INTRO!$E$43="Non endémique"," ", IF(COUNTRY_INFO!A21=0," ",COUNTRY_INFO!A21)) -> Guinée Équatoriale | B21: =IF(INTRO!$E$43="Non endémique"," ", IF(COUNTRY_INFO!B21=0," ",COUNTRY_INFO!B21)) -> Litoral | C21: =IF(INTRO!$E$43="Non endémique"," ", IF(COUNTRY_INFO!C21=0," ",COUNTRY_INFO!C21)) -> Bata | D21: =IF(INTRO!$E$43="Non endémique", "Non requis", COUNTRY_INFO!Y21) -> 1 | E21: =IF(OR(COUNTRY_INFO!R21="Inconnu",COUNTRY_INFO!R21="Surveillance",COUNTRY_INFO!R21="Non requis",COUNTRY_INFO!R21=0),0,IF($D21<>0, COUNTRY_INFO!R21,0)) -> 13431 | F21: =IF(OR(COUNTRY_INFO!S21="Inconnu",COUNTRY_INFO!S21="Surveillance",COUNTRY_INFO!S21="Non requis",COUNTRY_INFO!S21=0),0,IF($D21<>0, COUNTRY_INFO!S21,0)) -> 53379 | G21: =IF(OR(COUNTRY_INFO!T21="Inconnu",COUNTRY_INFO!T21="Surveillance",COUNTRY_INFO!T21="Non requis",COUNTRY_INFO!T21=0),0,IF($D21<>0, COUNTRY_INFO!T21,0)) -> 132269 | H21: 199079 | K21: 0 | N21: =IF($I21<>"Oui",$F21*2.5,($F21+ROUND(J21*$F21/SUM(COUNTRY_INFO!$E21:$G21),0))*2.5) -> 133447.5 | O21: =IF($I21<>"Oui",$G21*3,($G21+ROUND(J21*$G21/SUM(COUNTRY_INFO!$E21:$G21),0))*3) -> 396807 | P21: 530254.5 | R21: 530254.5
A22: =IF(INTRO!$E$43="Non endémique"," ", IF(COUNTRY_INFO!A22=0," ",COUNTRY_INFO!A22)) -> Guinée Équatoriale | B22: =IF(INTRO!$E$43="Non endémique"," ", IF(COUNTRY_INFO!B22=0," ",COUNTRY_INFO!B22)) -> Litoral | C22: =IF(INTRO!$E$43="Non endémique"," ", IF(COUNTRY_INFO!C22=0," ",COUNTRY_INFO!C22)) -> Kogo | D22: =IF(INTRO!$E$43="Non endémique", "Non requis", COUNTRY_INFO!Y22) -> 0 | E22: =IF(OR(COUNTRY_INFO!R22="Inconnu",COUNTRY_INFO!R22="Surveillance",COUNTRY_INFO!R22="Non requis",COUNTRY_INFO!R22=0),0,IF($D22<>0, COUNTRY_INFO!R22,0)) -> 0 | F22: =IF(OR(COUNTRY_INFO!S22="Inconnu",COUNTRY_INFO!S22="Surveillance",COUNTRY_INFO!S22="Non requis",COUNTRY_INFO!S22=0),0,IF($D22<>0, COUNTRY_INFO!S22,0)) -> 0 | G22: =IF(OR(COUNTRY_INFO!T22="Inconnu",COUNTRY_INFO!T22="Surveillance",COUNTRY_INFO!T22="Non requis",COUNTRY_INFO!T22=0),0,IF($D22<>0, COUNTRY_INFO!T22,0)) -> 0 | H22: 0 | N22: =IF($I22<>"Oui",$F22*2.5,($F22+ROUND(J22*$F22/SUM(COUNTRY_INFO!$E22:$G22),0))*2.5) -> 0 | O22: =IF($I22<>"Oui",$G22*3,($G22+ROUND(J22*$G22/SUM(COUNTRY_INFO!$E22:$G22),0))*3) -> 0 | P22: 0 | R22: 0
A23: =IF(INTRO!$E$43="Non endémique"," ", IF(COUNTRY_INFO!A23=0," ",COUNTRY_INFO!A23)) -> Guinée Équatoriale | B23: =IF(INTRO!$E$43="Non endémique"," ", IF(COUNTRY_INFO!B23=0," ",COUNTRY_INFO!B23)) -> Litoral | C23: =IF(INTRO!$E$43="Non endémique"," ", IF(COUNTRY_INFO!C23=0," ",COUNTRY_INFO!C23)) -> Mbini | D23: =IF(INTRO!$E$43="Non endémique", "Non requis", COUNTRY_INFO!Y23) -> 0 | E23: =IF(OR(COUNTRY_INFO!R23="Inconnu",COUNTRY_INFO!R23="Surveillance",COUNTRY_INFO!R23="Non requis",COUNTRY_INFO!R23=0),0,IF($D23<>0, COUNTRY_INFO!R23,0)) -> 0 | F23: =IF(OR(COUNTRY_INFO!S23="Inconnu",COUNTRY_INFO!S23="Surveillance",COUNTRY_INFO!S23="Non requis",COUNTRY_INFO!S23=0),0,IF($D23<>0, COUNTRY_INFO!S23,0)) -> 0 | G23: =IF(OR(COUNTRY_INFO!T23="Inconnu",COUNTRY_INFO!T23="Surveillance",COUNTRY_INFO!T23="Non requis",COUNTRY_INFO!T23=0),0,IF($D23<>0, COUNTRY_INFO!T23,0)) -> 0 | H23: 0 | N23: =IF($I23<>"Oui",$F23*2.5,($F23+ROUND(J23*$F23/SUM(COUNTRY_INFO!$E23:$G23),0))*2.5) -> 0 | O23: =IF($I23<>"Oui",$G23*3,($G23+ROUND(J23*$G23/SUM(COUNTRY_INFO!$E23:$G23),0))*3) -> 0 | P23: 0 | R23: 0
A24: =IF(INTRO!$E$43="Non endémique"," ", IF(COUNTRY_INFO!A24=0," ",COUNTRY_INFO!A24)) -> Guinée Équatoriale | B24: =IF(INTRO!$E$43="Non endémique"," ", IF(COUNTRY_INFO!B24=0," ",COUNTRY_INFO!B24)) -> Welenzas | C24: =IF(INTRO!$E$43="Non endémique"," ", IF(COUNTRY_INFO!C24=0," ",COUNTRY_INFO!C24)) -> Akonibe | D24: =IF(INTRO!$E$43="Non endémique", "Non requis", COUNTRY_INFO!Y24) -> 0 | E24: =IF(OR(COUNTRY_INFO!R24="Inconnu",COUNTRY_INFO!R24="Surveillance",COUNTRY_INFO!R24="Non requis",COUNTRY_INFO!R24=0),0,IF($D24<>0, COUNTRY_INFO!R24,0)) -> 0 | F24: =IF(OR(COUNTRY_INFO!S24="Inconnu",COUNTRY_INFO!S24="Surveillance",COUNTRY_INFO!S24="Non requis",COUNTRY_INFO!S24=0),0,IF($D24<>0, COUNTRY_INFO!S24,0)) -> 0 | G24: =IF(OR(COUNTRY_INFO!T24="Inconnu",COUNTRY_INFO!T24="Surveillance",COUNTRY_INFO!T24="Non requis",COUNTRY_INFO!T24=0),0,IF($D24<>0, COUNTRY_INFO!T24,0)) -> 0 | H24: 0 | N24: =IF($I24<>"Oui",$F24*2.5,($F24+ROUND(J24*$F24/SUM(COUNTRY_INFO!$E24:$G24),0))*2.5) -> 0 | O24: =IF($I24<>"Oui",$G24*3,($G24+ROUND(J24*$G24/SUM(COUNTRY_INFO!$E24:$G24),0))*3) -> 0 | P24: 0 | R24: 0
A25: =IF(INTRO!$E$43="Non endémique"," ", IF(COUNTRY_INFO!A25=0," ",COUNTRY_INFO!A25)) -> Guinée Équatoriale | B25: =IF(INTRO!$E$43="Non endémique"," ", IF(COUNTRY_INFO!B25=0," ",COUNTRY_INFO!B25)) -> Welenzas | C25: =IF(INTRO!$E$43="Non endémique"," ", IF(COUNTRY_INFO!C25=0," ",COUNTRY_INFO!C25)) -> Anisok | D25: =IF(INTRO!$E$43="Non endémique", "Non requis", COUNTRY_INFO!Y25) -> 0 | E25: =IF(OR(COUNTRY_INFO!R25="Inconnu",COUNTRY_INFO!R25="Surveillance",COUNTRY_INFO!R25="Non requis",COUNTRY_INFO!R25=0),0,IF($D25<>0, COUNTRY_INFO!R25,0)) -> 0 | F25: =IF(OR(COUNTRY_INFO!S25="Inconnu",COUNTRY_INFO!S25="Surveillance",COUNTRY_INFO!S25="Non requis",COUNTRY_INFO!S25=0),0,IF($D25<>0, COUNTRY_INFO!S25,0)) -> 0 | G25: =IF(OR(COUNTRY_INFO!T25="Inconnu",COUNTRY_INFO!T25="Surveillance",COUNTRY_INFO!T25="Non requis",COUNTRY_INFO!T25=0),0,IF($D25<>0, COUNTRY_INFO!T25,0)) -> 0 | H25: 0 | N25: =IF($I25<>"Oui",$F25*2.5,($F25+ROUND(J25*$F25/SUM(COUNTRY_INFO!$E25:$G25),0))*2.5) -> 0 | O25: =IF($I25<>"Oui",$G25*3,($G25+ROUND(J25*$G25/SUM(COUNTRY_INFO!$E25:$G25),0))*3) -> 0 | P25: 0 | R25: 0
A26: =IF(INTRO!$E$43="Non endémique"," ", IF(COUNTRY_INFO!A26=0," ",COUNTRY_INFO!A26)) -> Guinée Équatoriale | B26: =IF(INTRO!$E$43="Non endémique"," ", IF(COUNTRY_INFO!B26=0," ",COUNTRY_INFO!B26)) -> Welenzas | C26: =IF(INTRO!$E$43="Non endémique"," ", IF(COUNTRY_INFO!C26=0," ",COUNTRY_INFO!C26)) -> Mongomo | D26: =IF(INTRO!$E$43="Non endémique", "Non requis", COUNTRY_INFO!Y26) -> 0 | E26: =IF(OR(COUNTRY_INFO!R26="Inconnu",COUNTRY_INFO!R26="Surveillance",COUNTRY_INFO!R26="Non requis",COUNTRY_INFO!R26=0),0,IF($D26<>0, COUNTRY_INFO!R26,0)) -> 0 | F26: =IF(OR(COUNTRY_INFO!S26="Inconnu",COUNTRY_INFO!S26="Surveillance",COUNTRY_INFO!S26="Non requis",COUNTRY_INFO!S26=0),0,IF($D26<>0, COUNTRY_INFO!S26,0)) -> 0 | G26: =IF(OR(COUNTRY_INFO!T26="Inconnu",COUNTRY_INFO!T26="Surveillance",COUNTRY_INFO!T26="Non requis",COUNTRY_INFO!T26=0),0,IF($D26<>0, COUNTRY_INFO!T26,0)) -> 0 | H26: 0 | N26: =IF($I26<>"Oui",$F26*2.5,($F26+ROUND(J26*$F26/SUM(COUNTRY_INFO!$E26:$G26),0))*2.5) -> 0 | O26: =IF($I26<>"Oui",$G26*3,($G26+ROUND(J26*$G26/SUM(COUNTRY_INFO!$E26:$G26),0))*3) -> 0 | P26: 0 | R26: 0
A27: =IF(INTRO!$E$43="Non endémique"," ", IF(COUNTRY_INFO!A27=0," ",COUNTRY_INFO!A27)) -> Guinée Équatoriale | B27: =IF(INTRO!$E$43="Non endémique"," ", IF(COUNTRY_INFO!B27=0," ",COUNTRY_INFO!B27)) -> Welenzas | C27: =IF(INTRO!$E$43="Non endémique"," ", IF(COUNTRY_INFO!C27=0," ",COUNTRY_INFO!C27)) -> Nsork | D27: =IF(INTRO!$E$43="Non endémique", "Non requis", COUNTRY_INFO!Y27) -> 0 | E27: =IF(OR(COUNTRY_INFO!R27="Inconnu",COUNTRY_INFO!R27="Surveillance",COUNTRY_INFO!R27="Non requis",COUNTRY_INFO!R27=0),0,IF($D27<>0, COUNTRY_INFO!R27,0)) -> 0 | F27: =IF(OR(COUNTRY_INFO!S27="Inconnu",COUNTRY_INFO!S27="Surveillance",COUNTRY_INFO!S27="Non requis",COUNTRY_INFO!S27=0),0,IF($D27<>0, COUNTRY_INFO!S27,0)) -> 0 | G27: =IF(OR(COUNTRY_INFO!T27="Inconnu",COUNTRY_INFO!T27="Surveillance",COUNTRY_INFO!T27="Non requis",COUNTRY_INFO!T27=0),0,IF($D27<>0, COUNTRY_INFO!T27,0)) -> 0 | H27: 0 | N27: =IF($I27<>"Oui",$F27*2.5,($F27+ROUND(J27*$F27/SUM(COUNTRY_INFO!$E27:$G27),0))*2.5) -> 0 | O27: =IF($I27<>"Oui",$G27*3,($G27+ROUND(J27*$G27/SUM(COUNTRY_INFO!$E27:$G27),0))*3) -> 0 | P27: 0 | R27: 0

Sheet IVM
A1: Ivermectine (IVM)
A2: Structure administrative, population ciblée par groupe d'âge, plan de traitement et information sur les comprimés
A4: TOTAL | D4: =SUBTOTAL(9,D$10:D$1010) -> 857054 | G4: =SUBTOTAL(9,G$10:G$1010) -> 0 | H4: 0 | I4: 0 | J4: 0 | K4: 0 | L4: 0 | M4: 0 | N4: 0
A6: Structure administrative du pays | D6: Population nécessitant un traitement avec IVM | E6: Plan de traitement | G6: Population cible | I6: Ivermectine (IVM)
A7: Pays | B7: Région/Département | C7: District | E7: FL | F7: Oncho | G7: FL | H7: Oncho | I7: FL uniquement | J7: Oncho uniquement | K7: FL+Oncho | L7: Total requis | M7: Reste en stock | N7: Comprimés devant être fournis
A10: =IF(INTRO!$E$39="Non endémique"," ",IF(COUNTRY_INFO!A10=0," ",COUNTRY_INFO!A10)) -> Guinée Équatoriale | B10: =IF(INTRO!$E$39="Non endémique"," ",IF(COUNTRY_INFO!B10=0," ",COUNTRY_INFO!B10)) -> Annobon | C10: =IF(INTRO!$E$39="Non endémique"," ",IF(COUNTRY_INFO!C10=0," ",COUNTRY_INFO!C10)) -> Annonbon | D10: =IF(INTRO!$E$39="Non endémique",0,IF(INTRO!$E$39="Endémique mais pas de CP",IF(COUNTRY_INFO!$H10=1,COUNTRY_INFO!F10+COUNTRY_INFO!G10,0),IF(COUNTRY_INFO!$H10=1,COUNTRY_INFO!F10+COUNTRY_INFO!G10,IF(COUNTRY_INFO!$I10=1,IF(COUNTRY_INFO!M10>=(COUNTRY_INFO!F10+COUNTRY_INFO!G10),COUNTRY_INFO!F10+COUNTRY_INFO!G10,COUNTRY_INFO!$M10),0)))) -> 0 | E10: =IF(AND(INTRO!$E$39="Non endémique",INTRO!$E$37="Non endémique"),"Non requis",IF(INTRO!$E$39="Non endémique","Traiter avec DEC",COUNTRY_INFO!V10)) -> 0 | F10: =IF(INTRO!$E$39<>"Non endémique",COUNTRY_INFO!W10,"Non requis") -> 0 | G10: =IF(COUNTRY_INFO!H10=1, IF($E10=1,$D10, 0),0) -> 0 | H10: =IF(COUNTRY_INFO!I10=1, IF($F10=1,$D10, 0),0) -> 0 | I10: =IF(G10<H10,0,IF($E10=1, (G10-H10)*2.8, 0)) -> 0 | J10: =IF($E10<$F10, H10*(F10-E10)*2.8, 0) -> 0 | K10: =IF(AND($E10=1, $F10<>0), H10*2.8, 0) -> 0 | L10: =SUM(I10:K10) -> 0 | N10: =IF($L10>$M10,$L10-$M10,0) -> 0
A11: =IF(INTRO!$E$39="Non endémique"," ",IF(COUNTRY_INFO!A11=0," ",COUNTRY_INFO!A11)) -> Guinée Équatoriale | B11: =IF(INTRO!$E$39="Non endémique"," ",IF(COUNTRY_INFO!B11=0," ",COUNTRY_INFO!B11)) -> Bioko Norte | C11: =IF(INTRO!$E$39="Non endémique"," ",IF(COUNTRY_INFO!C11=0," ",COUNTRY_INFO!C11)) -> Baney | D11: =IF(INTRO!$E$39="Non endémique",0,IF(INTRO!$E$39="Endémique mais pas de CP",IF(COUNTRY_INFO!$H11=1,COUNTRY_INFO!F11+COUNTRY_INFO!G11,0),IF(COUNTRY_INFO!$H11=1,COUNTRY_INFO!F11+COUNTRY_INFO!G11,IF(COUNTRY_INFO!$I11=1,IF(COUNTRY_INFO!M11>=(COUNTRY_INFO!F11+COUNTRY_INFO!G11),COUNTRY_INFO!F11+COUNTRY_INFO!G11,COUNTRY_INFO!$M11),0)))) -> 27813 | E11: =IF(AND(INTRO!$E$39="Non endémique",INTRO!$E$37="Non endémique"),"Non requis",IF(INTRO!$E$39="Non endémique","Traiter avec DEC",COUNTRY_INFO!V11)) -> 1 | F11: =IF(INTRO!$E$39<>"Non endémique",COUNTRY_INFO!W11,"Non requis") -> 0 | G11: 0 | H11: =IF(COUNTRY_INFO!I11=1, IF($F11=1,$D11, 0),0) -> 0 | I11: 0 | J11: 0 | K11: =IF(AND($E11=1, $F11<>0), H11*2.8, 0) -> 0 | L11: =SUM(I11:K11) -> 0 | N11: 0
A12: =IF(INTRO!$E$39="Non endémique"," ",IF(COUNTRY_INFO!A12=0," ",COUNTRY_INFO!A12)) -> Guinée Équatoriale | B12: =IF(INTRO!$E$39="Non endémique"," ",IF(COUNTRY_INFO!B12=0," ",COUNTRY_INFO!B12)) -> Bioko Norte | C12: =IF(INTRO!$E$39="Non endémique"," ",IF(COUNTRY_INFO!C12=0," ",COUNTRY_INFO!C12)) -> Malabo | D12: =IF(INTRO!$E$39="Non endémique",0,IF(INTRO!$E$39="Endémique mais pas de CP",IF(COUNTRY_INFO!$H12=1,COUNTRY_INFO!F12+COUNTRY_INFO!G12,0),IF(COUNTRY_INFO!$H12=1,COUNTRY_INFO!F12+COUNTRY_INFO!G12,IF(COUNTRY_INFO!$I12=1,IF(COUNTRY_INFO!M12>=(COUNTRY_INFO!F12+COUNTRY_INFO!G12),COUNTRY_INFO!F12+COUNTRY_INFO!G12,COUNTRY_INFO!$M12),0)))) -> 0 | E12: =IF(AND(INTRO!$E$39="Non endémique",INTRO!$E$37="Non endémique"),"Non requis",IF(INTRO!$E$39="Non endémique","Traiter avec DEC",COUNTRY_INFO!V12)) -> 0 | F12: =IF(INTRO!$E$39<>"Non endémique",COUNTRY_INFO!W12,"Non requis") -> 0 | G12: =IF(COUNTRY_INFO!H12=1, IF($E12=1,$D12, 0),0) -> 0 | H12: =IF(COUNTRY_INFO!I12=1, IF($F12=1,$D12, 0),0) -> 0 | I12: 0 | J12: 0 | K12: 0 | L12: 0 | N12: 0
A13: =IF(INTRO!$E$39="Non endémique"," ",IF(COUNTRY_INFO!A13=0," ",COUNTRY_INFO!A13)) -> Guinée Équatoriale | B13: =IF(INTRO!$E$39="Non endémique"," ",IF(COUNTRY_INFO!B13=0," ",COUNTRY_INFO!B13)) -> Bioko Sur | C13: =IF(INTRO!$E$39="Non endémique"," ",IF(COUNTRY_INFO!C13=0," ",COUNTRY_INFO!C13)) -> Luba | D13: =IF(INTRO!$E$39="Non endémique",0,IF(INTRO!$E$39="Endémique mais pas de CP",IF(COUNTRY_INFO!$H13=1,COUNTRY_INFO!F13+COUNTRY_INFO!G13,0),IF(COUNTRY_INFO!$H13=1,COUNTRY_INFO!F13+COUNTRY_INFO!G13,IF(COUNTRY_INFO!$I13=1,IF(COUNTRY_INFO!M13>=(COUNTRY_INFO!F13+COUNTRY_INFO!G13),COUNTRY_INFO!F13+COUNTRY_INFO!G13,COUNTRY_INFO!$M13),0)))) -> 0 | E13: =IF(AND(INTRO!$E$39="Non endémique",INTRO!$E$37="Non endémique"),"Non requis",IF(INTRO!$E$39="Non endémique","Traiter avec DEC",COUNTRY_INFO!V13)) -> 0 | F13: =IF(INTRO!$E$39<>"Non endémique",COUNTRY_INFO!W13,"Non requis") -> 0 | G13: =IF(COUNTRY_INFO!H13=1, IF($E13=1,$D13, 0),0) -> 0 | H13: =IF(COUNTRY_INFO!I13=1, IF($F13=1,$D13, 0),0) -> 0 | I13: 0 | J13: 0 | K13: 0 | L13: 0 | N13: 0
A14: =IF(INTRO!$E$39="Non endémique"," ",IF(COUNTRY_INFO!A14=0," ",COUNTRY_INFO!A14)) -> Guinée Équatoriale | B14: =IF(INTRO!$E$39="Non endémique"," ",IF(COUNTRY_INFO!B14=0," ",COUNTRY_INFO!B14)) -> Bioko Sur | C14: =IF(INTRO!$E$39="Non endémique"," ",IF(COUNTRY_INFO!C14=0," ",COUNTRY_INFO!C14)) -> Riaba | D14: =IF(INTRO!$E$39="Non endémique",0,IF(INTRO!$E$39="Endémique mais pas de CP",IF(COUNTRY_INFO!$H14=1,COUNTRY_INFO!F14+COUNTRY_INFO!G14,0),IF(COUNTRY_INFO!$H14=1,COUNTRY_INFO!F14+COUNTRY_INFO!G14,IF(COUNTRY_INFO!$I14=1,IF(COUNTRY_INFO!M14>=(COUNTRY_INFO!F14+COUNTRY_INFO!G14),COUNTRY_INFO!F14+COUNTRY_INFO!G14,COUNTRY_INFO!$M14),0)))) -> 8650 | E14: =IF(AND(INTRO!$E$39="Non endémique",INTRO!$E$37="Non endémique"),"Non requis",IF(INTRO!$E$39="Non endémique","Traiter avec DEC",COUNTRY_INFO!V14)) -> 1 | F14: =IF(INTRO!$E$39<>"Non endémique",COUNTRY_INFO!W14,"Non requis") -> 0 | G14: 0 | H14: =IF(COUNTRY_INFO!I14=1, IF($F14=1,$D14, 0),0) -> 0 | I14: 0 | J14: 0 | K14: 0 | L14: 0 | N14: 0
A15: =IF(INTRO!$E$39="Non endémique"," ",IF(COUNTRY_INFO!A15=0," ",COUNTRY_INFO!A15)) -> Guinée Équatoriale | B15: =IF(INTRO!$E$39="Non endémique"," ",IF(COUNTRY_INFO!B15=0," ",COUNTRY_INFO!B15)) -> Centro Sur | C15: =IF(INTRO!$E$39="Non endémique"," ",IF(COUNTRY_INFO!C15=0," ",COUNTRY_INFO!C15)) -> Acurenam | D15: =IF(INTRO!$E$39="Non endémique",0,IF(INTRO!$E$39="Endémique mais pas de CP",IF(COUNTRY_INFO!$H15=1,COUNTRY_INFO!F15+COUNTRY_INFO!G15,0),IF(COUNTRY_INFO!$H15=1,COUNTRY_INFO!F15+COUNTRY_INFO!G15,IF(COUNTRY_INFO!$I15=1,IF(COUNTRY_INFO!M15>=(COUNTRY_INFO!F15+COUNTRY_INFO!G15),COUNTRY_INFO!F15+COUNTRY_INFO!G15,COUNTRY_INFO!$M15),0)))) -> 30238 | E15: =IF(AND(INTRO!$E$39="Non endémique",INTRO!$E$37="Non endémique"),"Non requis",IF(INTRO!$E$39="Non endémique","Traiter avec DEC",COUNTRY_INFO!V15)) -> 1 | F15: =IF(INTRO!$E$39<>"Non endémique",COUNTRY_INFO!W15,"Non requis") -> 0 | G15: 0 | H15: =IF(COUNTRY_INFO!I15=1, IF($F15=1,$D15, 0),0) -> 0 | I15: 0 | J15: 0 | K15: 0 | L15: 0 | N15: 0
A16: =IF(INTRO!$E$39="Non endémique"," ",IF(COUNTRY_INFO!A16=0," ",COUNTRY_INFO!A16)) -> Guinée Équatoriale | B16: =IF(INTRO!$E$39="Non endémique"," ",IF(COUNTRY_INFO!B16=0," ",COUNTRY_INFO!B16)) -> Centro Sur | C16: =IF(INTRO!$E$39="Non endémique"," ",IF(COUNTRY_INFO!C16=0," ",COUNTRY_INFO!C16)) -> Evinayong | D16: =IF(INTRO!$E$39="Non endémique",0,IF(INTRO!$E$39="Endémique mais pas de CP",IF(COUNTRY_INFO!$H16=1,COUNTRY_INFO!F16+COUNTRY_INFO!G16,0),IF(COUNTRY_INFO!$H16=1,COUNTRY_INFO!F16+COUNTRY_INFO!G16,IF(COUNTRY_INFO!$I16=1,IF(COUNTRY_INFO!M16>=(COUNTRY_INFO!F16+COUNTRY_INFO!G16),COUNTRY_INFO!F16+COUNTRY_INFO!G16,COUNTRY_INFO!$M16),0)))) -> 55516 | E16: =IF(AND(INTRO!$E$39="Non endémique",INTRO!$E$37="Non endémique"),"Non requis",IF(INTRO!$E$39="Non endémique","Traiter avec DEC",COUNTRY_INFO!V16)) -> 1 | F16: =IF(INTRO!$E$39<>"Non endémique",COUNTRY_INFO!W16,"Non requis") -> 0 | G16: 0 | H16: =IF(COUNTRY_INFO!I16=1, IF($F16=1,$D16, 0),0) -> 0 | I16: 0 | J16: 0 | K16: 0 | L16: 0 | N16: 0
A17: =IF(INTRO!$E$39="Non endémique"," ",IF(COUNTRY_INFO!A17=0," ",COUNTRY_INFO!A17)) -> Guinée Équatoriale | B17: =IF(INTRO!$E$39="Non endémique"," ",IF(COUNTRY_INFO!B17=0," ",COUNTRY_INFO!B17)) -> Centro Sur | C17: =IF(INTRO!$E$39="Non endémique"," ",IF(COUNTRY_INFO!C17=0," ",COUNTRY_INFO!C17)) -> Niefang | D17: =IF(INTRO!$E$39="Non endémique",0,IF(INTRO!$E$39="Endémique mais pas de CP",IF(COUNTRY_INFO!$H17=1,COUNTRY_INFO!F17+COUNTRY_INFO!G17,0),IF(COUNTRY_INFO!$H17=1,COUNTRY_INFO!F17+COUNTRY_INFO!G17,IF(COUNTRY_INFO!$I17=1,IF(COUNTRY_INFO!M17>=(COUNTRY_INFO!F17+COUNTRY_INFO!G17),COUNTRY_INFO!F17+COUNTRY_INFO!G17,COUNTRY_INFO!$M17),0)))) -> 71124 | E17: =IF(AND(INTRO!$E$39="Non endémique",INTRO!$E$37="Non endémique"),"Non requis",IF(INTRO!$E$39="Non endémique","Traiter avec DEC",COUNTRY_INFO!V17)) -> 1 | F17: =IF(INTRO!$E$39<>"Non endémique",COUNTRY_INFO!W17,"Non requis") -> 0 | G17: 0 | H17: =IF(COUNTRY_INFO!I17=1, IF($F17=1,$D17, 0),0) -> 0 | I17: 0 | J17: 0 | K17: 0 | L17: 0 | N17: 0
A18: =IF(INTRO!$E$39="Non endémique"," ",IF(COUNTRY_INFO!A18=0," ",COUNTRY_INFO!A18)) -> Guinée Équatoriale | B18: =IF(INTRO!$E$39="Non endémique"," ",IF(COUNTRY_INFO!B18=0," ",COUNTRY_INFO!B18)) -> Kientem | C18: =IF(INTRO!$E$39="Non endémique"," ",IF(COUNTRY_INFO!C18=0," ",COUNTRY_INFO!C18)) -> Ebebiyin | D18: =IF(INTRO!$E$39="Non endémique",0,IF(INTRO!$E$39="Endémique mais pas de CP",IF(COUNTRY_INFO!$H18=1,COUNTRY_INFO!F18+COUNTRY_INFO!G18,0),IF(COUNTRY_INFO!$H18=1,COUNTRY_INFO!F18+COUNTRY_INFO!G18,IF(COUNTRY_INFO!$I18=1,IF(COUNTRY_INFO!M18>=(COUNTRY_INFO!F18+COUNTRY_INFO!G18),COUNTRY_INFO!F18+COUNTRY_INFO!G18,COUNTRY_INFO!$M18),0)))) -> 118444 | E18: =IF(AND(INTRO!$E$39="Non endémique",INTRO!$E$37="Non endémique"),"Non requis",IF(INTRO!$E$39="Non endémique","Traiter avec DEC",COUNTRY_INFO!V18)) -> 1 | F18: =IF(INTRO!$E$39<>"Non endémique",COUNTRY_INFO!W18,"Non requis") -> 0 | G18: 0 | H18: =IF(COUNTRY_INFO!I18=1, IF($F18=1,$D18, 0),0) -> 0 | I18: 0 | J18: 0 | K18: 0 | L18: 0 | N18: 0
A19: =IF(INTRO!$E$39="Non endémique"," ",IF(COUNTRY_INFO!A19=0," ",COUNTRY_INFO!A19)) -> Guinée Équatoriale | B19: =IF(INTRO!$E$39="Non endémique"," ",IF(COUNTRY_INFO!B19=0," ",COUNTRY_INFO!B19)) -> Kientem | C19: =IF(INTRO!$E$39="Non endémique"," ",IF(COUNTRY_INFO!C19=0," ",COUNTRY_INFO!C19)) -> Micomiseng | D19: =IF(INTRO!$E$39="Non endémique",0,IF(INTRO!$E$39="Endémique mais pas de CP",IF(COUNTRY_INFO!$H19=1,COUNTRY_INFO!F19+COUNTRY_INFO!G19,0),IF(COUNTRY_INFO!$H19=1,COUNTRY_INFO!F19+COUNTRY_INFO!G19,IF(COUNTRY_INFO!$I19=1,IF(COUNTRY_INFO!M19>=(COUNTRY_INFO!F19+COUNTRY_INFO!G19),COUNTRY_INFO!F19+COUNTRY_INFO!G19,COUNTRY_INFO!$M19),0)))) -> 77875 | E19: =IF(AND(INTRO!$E$39="Non endémique",INTRO!$E$37="Non endémique"),"Non requis",IF(INTRO!$E$39="Non endémique","Traiter avec DEC",COUNTRY_INFO!V19)) -> 1 | F19: =IF(INTRO!$E$39<>"Non endémique",COUNTRY_INFO!W19,"Non requis") -> 0 | G19: 0 | H19: =IF(COUNTRY_INFO!I19=1, IF($F19=1,$D19, 0),0) -> 0 | I19: 0 | J19: 0 | K19: 0 | L19: 0 | N19: 0
A20: =IF(INTRO!$E$39="Non endémique"," ",IF(COUNTRY_INFO!A20=0," ",COUNTRY_INFO!A20)) -> Guinée Équatoriale | B20: =IF(INTRO!$E$39="Non endémique"," ",IF(COUNTRY_INFO!B20=0," ",COUNTRY_INFO!B20)) -> Kientem | C20: =IF(INTRO!$E$39="Non endémique"," ",IF(COUNTRY_INFO!C20=0," ",COUNTRY_INFO!C20)) -> Nsoknsomo | D20: =IF(INTRO!$E$39="Non endémique",0,IF(INTRO!$E$39="Endémique mais pas de CP",IF(COUNTRY_INFO!$H20=1,COUNTRY_INFO!F20+COUNTRY_INFO!G20,0),IF(COUNTRY_INFO!$H20=1,COUNTRY_INFO!F20+COUNTRY_INFO!G20,IF(COUNTRY_INFO!$I20=1,IF(COUNTRY_INFO!M20>=(COUNTRY_INFO!F20+COUNTRY_INFO!G20),COUNTRY_INFO!F20+COUNTRY_INFO!G20,COUNTRY_INFO!$M20),0)))) -> 44897 | E20: =IF(AND(INTRO!$E$39="Non endémique",INTRO!$E$37="Non endémique"),"Non requis",IF(INTRO!$E$39="Non endémique","Traiter avec DEC",COUNTRY_INFO!V20)) -> 1 | F20: =IF(INTRO!$E$39<>"Non endémique",COUNTRY_INFO!W20,"Non requis") -> 0 | G20: 0 | H20: =IF(COUNTRY_INFO!I20=1, IF($F20=1,$D20, 0),0) -> 0 | I20: 0 | J20: 0 | K20: 0 | L20: 0 | N20: 0
A21: =IF(INTRO!$E$39="Non endémique"," ",IF(COUNTRY_INFO!A21=0," ",COUNTRY_INFO!A21)) -> Guinée Équatoriale | B21: =IF(INTRO!$E$39="Non endémique"," ",IF(COUNTRY_INFO!B21=0," ",COUNTRY_INFO!B21)) -> Litoral | C21: =IF(INTRO!$E$39="Non endémique"," ",IF(COUNTRY_INFO!C21=0," ",COUNTRY_INFO!C21)) -> Bata | D21: =IF(INTRO!$E$39="Non endémique",0,IF(INTRO!$E$39="Endémique mais pas de CP",IF(COUNTRY_INFO!$H21=1,COUNTRY_INFO!F21+COUNTRY_INFO!G21,0),IF(COUNTRY_INFO!$H21=1,COUNTRY_INFO!F21+COUNTRY_INFO!G21,IF(COUNTRY_INFO!$I21=1,IF(COUNTRY_INFO!M21>=(COUNTRY_INFO!F21+COUNTRY_INFO!G21),COUNTRY_INFO!F21+COUNTRY_INFO!G21,COUNTRY_INFO!$M21),0)))) -> 185648 | E21: =IF(AND(INTRO!$E$39="Non endémique",INTRO!$E$37="Non endémique"),"Non requis",IF(INTRO!$E$39="Non endémique","Traiter avec DEC",COUNTRY_INFO!V21)) -> 1 | F21: =IF(INTRO!$E$39<>"Non endémique",COUNTRY_INFO!W21,"Non requis") -> 0 | G21: 0 | H21: =IF(COUNTRY_INFO!I21=1, IF($F21=1,$D21, 0),0) -> 0 | I21: 0 | J21: 0 | K21: 0 | L21: 0 | N21: 0
A22: =IF(INTRO!$E$39="Non endémique"," ",IF(COUNTRY_INFO!A22=0," ",COUNTRY_INFO!A22)) -> Guinée Équatoriale | B22: =IF(INTRO!$E$39="Non endémique"," ",IF(COUNTRY_INFO!B22=0," ",COUNTRY_INFO!B22)) -> Litoral | C22: =IF(INTRO!$E$39="Non endémique"," ",IF(COUNTRY_INFO!C22=0," ",COUNTRY_INFO!C22)) -> Kogo | D22: =IF(INTRO!$E$39="Non endémique",0,IF(INTRO!$E$39="Endémique mais pas de CP",IF(COUNTRY_INFO!$H22=1,COUNTRY_INFO!F22+COUNTRY_INFO!G22,0),IF(COUNTRY_INFO!$H22=1,COUNTRY_INFO!F22+COUNTRY_INFO!G22,IF(COUNTRY_INFO!$I22=1,IF(COUNTRY_INFO!M22>=(COUNTRY_INFO!F22+COUNTRY_INFO!G22),COUNTRY_INFO!F22+COUNTRY_INFO!G22,COUNTRY_INFO!$M22),0)))) -> 37977 | E22: =IF(AND(INTRO!$E$39="Non endémique",INTRO!$E$37="Non endémique"),"Non requis",IF(INTRO!$E$39="Non endémique","Traiter avec DEC",COUNTRY_INFO!V22)) -> 1 | F22: =IF(INTRO!$E$39<>"Non endémique",COUNTRY_INFO!W22,"Non requis") -> 0 | G22: 0 | H22: =IF(COUNTRY_INFO!I22=1, IF($F22=1,$D22, 0),0) -> 0 | I22: 0 | J22: 0 | K22: 0 | L22: 0 | N22: 0
A23: =IF(INTRO!$E$39="Non endémique"," ",IF(COUNTRY_INFO!A23=0," ",COUNTRY_INFO!A23)) -> Guinée Équatoriale | B23: =IF(INTRO!$E$39="Non endémique"," ",IF(COUNTRY_INFO!B23=0," ",COUNTRY_INFO!B23)) -> Litoral | C23: =IF(INTRO!$E$39="Non endémique"," ",IF(COUNTRY_INFO!C23=0," ",COUNTRY_INFO!C23)) -> Mbini | D23: =IF(INTRO!$E$39="Non endémique",0,IF(INTRO!$E$39="Endémique mais pas de CP",IF(COUNTRY_INFO!$H23=1,COUNTRY_INFO!F23+COUNTRY_INFO!G23,0),IF(COUNTRY_INFO!$H23=1,COUNTRY_INFO!F23+COUNTRY_INFO!G23,IF(COUNTRY_INFO!$I23=1,IF(COUNTRY_INFO!M23>=(COUNTRY_INFO!F23+COUNTRY_INFO!G23),COUNTRY_INFO!F23+COUNTRY_INFO!G23,COUNTRY_INFO!$M23),0)))) -> 36487 | E23: =IF(AND(INTRO!$E$39="Non endémique",INTRO!$E$37="Non endémique"),"Non requis",IF(INTRO!$E$39="Non endémique","Traiter avec DEC",COUNTRY_INFO!V23)) -> 1 | F23: =IF(INTRO!$E$39<>"Non endémique",COUNTRY_INFO!W23,"Non requis") -> 0 | G23: 0 | H23: =IF(COUNTRY_INFO!I23=1, IF($F23=1,$D23, 0),0) -> 0 | I23: 0 | J23: 0 | K23: 0 | L23: 0 | N23: 0
A24: =IF(INTRO!$E$39="Non endémique"," ",IF(COUNTRY_INFO!A24=0," ",COUNTRY_INFO!A24)) -> Guinée Équatoriale | B24: =IF(INTRO!$E$39="Non endémique"," ",IF(COUNTRY_INFO!B24=0," ",COUNTRY_INFO!B24)) -> Welenzas | C24: =IF(INTRO!$E$39="Non endémique"," ",IF(COUNTRY_INFO!C24=0," ",COUNTRY_INFO!C24)) -> Akonibe | D24: =IF(INTRO!$E$39="Non endémique",0,IF(INTRO!$E$39="Endémique mais pas de CP",IF(COUNTRY_INFO!$H24=1,COUNTRY_INFO!F24+COUNTRY_INFO!G24,0),IF(COUNTRY_INFO!$H24=1,COUNTRY_INFO!F24+COUNTRY_INFO!G24,IF(COUNTRY_INFO!$I24=1,IF(COUNTRY_INFO!M24>=(COUNTRY_INFO!F24+COUNTRY_INFO!G24),COUNTRY_INFO!F24+COUNTRY_INFO!G24,COUNTRY_INFO!$M24),0)))) -> 23569 | E24: =IF(AND(INTRO!$E$39="Non endémique",INTRO!$E$37="Non endémique"),"Non requis",IF(INTRO!$E$39="Non endémique","Traiter avec DEC",COUNTRY_INFO!V24)) -> 1 | F24: =IF(INTRO!$E$39<>"Non endémique",COUNTRY_INFO!W24,"Non requis") -> 0 | G24: 0 | H24: =IF(COUNTRY_INFO!I24=1, IF($F24=1,$D24, 0),0) -> 0 | I24: 0 | J24: 0 | K24: 0 | L24: 0 | N24: 0
A25: =IF(INTRO!$E$39="Non endémique"," ",IF(COUNTRY_INFO!A25=0," ",COUNTRY_INFO!A25)) -> Guinée Équatoriale | B25: =IF(INTRO!$E$39="Non endémique"," ",IF(COUNTRY_INFO!B25=0," ",COUNTRY_INFO!B25)) -> Welenzas | C25: =IF(INTRO!$E$39="Non endémique"," ",IF(COUNTRY_INFO!C25=0," ",COUNTRY_INFO!C25)) -> Anisok | D25: =IF(INTRO!$E$39="Non endémique",0,IF(INTRO!$E$39="Endémique mais pas de CP",IF(COUNTRY_INFO!$H25=1,COUNTRY_INFO!F25+COUNTRY_INFO!G25,0),IF(COUNTRY_INFO!$H25=1,COUNTRY_INFO!F25+COUNTRY_INFO!G25,IF(COUNTRY_INFO!$I25=1,IF(COUNTRY_INFO!M25>=(COUNTRY_INFO!F25+COUNTRY_INFO!G25),COUNTRY_INFO!F25+COUNTRY_INFO!G25,COUNTRY_INFO!$M25),0)))) -> 58790 | E25: =IF(AND(INTRO!$E$39="Non endémique",INTRO!$E$37="Non endémique"),"Non requis",IF(INTRO!$E$39="Non endémique","Traiter avec DEC",COUNTRY_INFO!V25)) -> 1 | F25: =IF(INTRO!$E$39<>"Non endémique",COUNTRY_INFO!W25,"Non requis") -> 0 | G25: 0 | H25: =IF(COUNTRY_INFO!I25=1, IF($F25=1,$D25, 0),0) -> 0 | I25: 0 | J25: 0 | K25: 0 | L25: 0 | N25: 0
A26: =IF(INTRO!$E$39="Non endémique"," ",IF(COUNTRY_INFO!A26=0," ",COUNTRY_INFO!A26)) -> Guinée Équatoriale | B26: =IF(INTRO!$E$39="Non endémique"," ",IF(COUNTRY_INFO!B26=0," ",COUNTRY_INFO!B26)) -> Welenzas | C26: =IF(INTRO!$E$39="Non endémique"," ",IF(COUNTRY_INFO!C26=0," ",COUNTRY_INFO!C26)) -> Mongomo | D26: =IF(INTRO!$E$39="Non endémique",0,IF(INTRO!$E$39="Endémique mais pas de CP",IF(COUNTRY_INFO!$H26=1,COUNTRY_INFO!F26+COUNTRY_INFO!G26,0),IF(COUNTRY_INFO!$H26=1,COUNTRY_INFO!F26+COUNTRY_INFO!G26,IF(COUNTRY_INFO!$I26=1,IF(COUNTRY_INFO!M26>=(COUNTRY_INFO!F26+COUNTRY_INFO!G26),COUNTRY_INFO!F26+COUNTRY_INFO!G26,COUNTRY_INFO!$M26),0)))) -> 61764 | E26: =IF(AND(INTRO!$E$39="Non endémique",INTRO!$E$37="Non endémique"),"Non requis",IF(INTRO!$E$39="Non endémique","Traiter avec DEC",COUNTRY_INFO!V26)) -> 1 | F26: =IF(INTRO!$E$39<>"Non endémique",COUNTRY_INFO!W26,"Non requis") -> 0 | G26: 0 | H26: =IF(COUNTRY_INFO!I26=1, IF($F26=1,$D26, 0),0) -> 0 | I26: 0 | J26: 0 | K26: 0 | L26: 0 | N26: 0
A27: =IF(INTRO!$E$39="Non endémique"," ",IF(COUNTRY_INFO!A27=0," ",COUNTRY_INFO!A27)) -> Guinée Équatoriale | B27: =IF(INTRO!$E$39="Non endémique"," ",IF(COUNTRY_INFO!B27=0," ",COUNTRY_INFO!B27)) -> Welenzas | C27: =IF(INTRO!$E$39="Non endémique"," ",IF(COUNTRY_INFO!C27=0," ",COUNTRY_INFO!C27)) -> Nsork | D27: =IF(INTRO!$E$39="Non endémique",0,IF(INTRO!$E$39="Endémique mais pas de CP",IF(COUNTRY_INFO!$H27=1,COUNTRY_INFO!F27+COUNTRY_INFO!G27,0),IF(COUNTRY_INFO!$H27=1,COUNTRY_INFO!F27+COUNTRY_INFO!G27,IF(COUNTRY_INFO!$I27=1,IF(COUNTRY_INFO!M27>=(COUNTRY_INFO!F27+COUNTRY_INFO!G27),COUNTRY_INFO!F27+COUNTRY_INFO!G27,COUNTRY_INFO!$M27),0)))) -> 18262 | E27: =IF(AND(INTRO!$E$39="Non endémique",INTRO!$E$37="Non endémique"),"Non requis",IF(INTRO!$E$39="Non endémique","Traiter avec DEC",COUNTRY_INFO!V27)) -> 1 | F27: =IF(INTRO!$E$39<>"Non endémique",COUNTRY_INFO!W27,"Non requis") -> 0 | G27: 0 | H27: =IF(COUNTRY_INFO!I27=1, IF($F27=1,$D27, 0),0) -> 0 | I27: 0 | J27: 0 | K27: 0 | L27: 0 | N27: 0

Sheet IVM+ (hidden)
A1: Ivermectine (IVM) pour IDA thérapie
A2: Structure administrative, population ciblée par groupe d'âge, plan de traitement et information sur les comprimés
A4: TOTAL | E4: =SUBTOTAL(9,E$10:E$1010) -> 0 | F4: 0 | G4: 0 | H4: 0
A6: Structure administrative du pays | D6: Plan de traitement | E6: Population nécessitant un traitement avec IVM (IDA thérapie) | F6: Ivermectine (IVM)
A7: Pays | B7: Région/Département | C7: District | D7: FL | F7: Total requis | G7: Reste en stock | H7: Comprimés devant être fournis
A10: =IF(AND(INTRO!$E$37="Endémique",INTRO!$E$39="Non endémique"),IF(COUNTRY_INFO!A10=0," ",COUNTRY_INFO!A10)," ") ->  | B10: =IF(AND(INTRO!$E$37="Endémique",INTRO!$E$39="Non endémique"),IF(COUNTRY_INFO!B10=0," ",COUNTRY_INFO!B10)," ") ->  | C10: =IF(AND(INTRO!$E$37="Endémique",INTRO!$E$39="Non endémique"),IF(COUNTRY_INFO!C10=0," ",COUNTRY_INFO!C10)," ") ->  | D10: =IF(COUNTRY_INFO!Z10<>"",COUNTRY_INFO!V10,0) -> 0 | E10: =IF(AND(COUNTRY_INFO!Z10<>"",COUNTRY_INFO!$H10=1),COUNTRY_INFO!F10+COUNTRY_INFO!G10,0) -> 0 | F10: =E10*2.8 -> 0 | H10: =IF($F10>$G10,$F10-$G10,0) -> 0
A11: =IF(AND(INTRO!$E$37="Endémique",INTRO!$E$39="Non endémique"),IF(COUNTRY_INFO!A11=0," ",COUNTRY_INFO!A11)," ") ->  | B11: =IF(AND(INTRO!$E$37="Endémique",INTRO!$E$39="Non endémique"),IF(COUNTRY_INFO!B11=0," ",COUNTRY_INFO!B11)," ") ->  | C11: =IF(AND(INTRO!$E$37="Endémique",INTRO!$E$39="Non endémique"),IF(COUNTRY_INFO!C11=0," ",COUNTRY_INFO!C11)," ") ->  | D11: =IF(COUNTRY_INFO!Z11<>"",COUNTRY_INFO!V11,0) -> 0 | E11: =IF(AND(COUNTRY_INFO!Z11<>"",COUNTRY_INFO!$H11=1),COUNTRY_INFO!F11+COUNTRY_INFO!G11,0) -> 0 | F11: =E11*2.8 -> 0 | H11: 0
A12: =IF(AND(INTRO!$E$37="Endémique",INTRO!$E$39="Non endémique"),IF(COUNTRY_INFO!A12=0," ",COUNTRY_INFO!A12)," ") ->  | B12: =IF(AND(INTRO!$E$37="Endémique",INTRO!$E$39="Non endémique"),IF(COUNTRY_INFO!B12=0," ",COUNTRY_INFO!B12)," ") ->  | C12: =IF(AND(INTRO!$E$37="Endémique",INTRO!$E$39="Non endémique"),IF(COUNTRY_INFO!C12=0," ",COUNTRY_INFO!C12)," ") ->  | D12: =IF(COUNTRY_INFO!Z12<>"",COUNTRY_INFO!V12,0) -> 0 | E12: =IF(AND(COUNTRY_INFO!Z12<>"",COUNTRY_INFO!$H12=1),COUNTRY_INFO!F12+COUNTRY_INFO!G12,0) -> 0 | F12: 0 | H12: 0
A13: =IF(AND(INTRO!$E$37="Endémique",INTRO!$E$39="Non endémique"),IF(COUNTRY_INFO!A13=0," ",COUNTRY_INFO!A13)," ") ->  | B13: =IF(AND(INTRO!$E$37="Endémique",INTRO!$E$39="Non endémique"),IF(COUNTRY_INFO!B13=0," ",COUNTRY_INFO!B13)," ") ->  | C13: =IF(AND(INTRO!$E$37="Endémique",INTRO!$E$39="Non endémique"),IF(COUNTRY_INFO!C13=0," ",COUNTRY_INFO!C13)," ") ->  | D13: =IF(COUNTRY_INFO!Z13<>"",COUNTRY_INFO!V13,0) -> 0 | E13: =IF(AND(COUNTRY_INFO!Z13<>"",COUNTRY_INFO!$H13=1),COUNTRY_INFO!F13+COUNTRY_INFO!G13,0) -> 0 | F13: 0 | H13: 0
A14: =IF(AND(INTRO!$E$37="Endémique",INTRO!$E$39="Non endémique"),IF(COUNTRY_INFO!A14=0," ",COUNTRY_INFO!A14)," ") ->  | B14: =IF(AND(INTRO!$E$37="Endémique",INTRO!$E$39="Non endémique"),IF(COUNTRY_INFO!B14=0," ",COUNTRY_INFO!B14)," ") ->  | C14: =IF(AND(INTRO!$E$37="Endémique",INTRO!$E$39="Non endémique"),IF(COUNTRY_INFO!C14=0," ",COUNTRY_INFO!C14)," ") ->  | D14: =IF(COUNTRY_INFO!Z14<>"",COUNTRY_INFO!V14,0) -> 0 | E14: =IF(AND(COUNTRY_INFO!Z14<>"",COUNTRY_INFO!$H14=1),COUNTRY_INFO!F14+COUNTRY_INFO!G14,0) -> 0 | F14: 0 | H14: 0
A15: =IF(AND(INTRO!$E$37="Endémique",INTRO!$E$39="Non endémique"),IF(COUNTRY_INFO!A15=0," ",COUNTRY_INFO!A15)," ") ->  | B15: =IF(AND(INTRO!$E$37="Endémique",INTRO!$E$39="Non endémique"),IF(COUNTRY_INFO!B15=0," ",COUNTRY_INFO!B15)," ") ->  | C15: =IF(AND(INTRO!$E$37="Endémique",INTRO!$E$39="Non endémique"),IF(COUNTRY_INFO!C15=0," ",COUNTRY_INFO!C15)," ") ->  | D15: =IF(COUNTRY_INFO!Z15<>"",COUNTRY_INFO!V15,0) -> 0 | E15: =IF(AND(COUNTRY_INFO!Z15<>"",COUNTRY_INFO!$H15=1),COUNTRY_INFO!F15+COUNTRY_INFO!G15,0) -> 0 | F15: 0 | H15: 0
A16: =IF(AND(INTRO!$E$37="Endémique",INTRO!$E$39="Non endémique"),IF(COUNTRY_INFO!A16=0," ",COUNTRY_INFO!A16)," ") ->  | B16: =IF(AND(INTRO!$E$37="Endémique",INTRO!$E$39="Non endémique"),IF(COUNTRY_INFO!B16=0," ",COUNTRY_INFO!B16)," ") ->  | C16: =IF(AND(INTRO!$E$37="Endémique",INTRO!$E$39="Non endémique"),IF(COUNTRY_INFO!C16=0," ",COUNTRY_INFO!C16)," ") ->  | D16: =IF(COUNTRY_INFO!Z16<>"",COUNTRY_INFO!V16,0) -> 0 | E16: =IF(AND(COUNTRY_INFO!Z16<>"",COUNTRY_INFO!$H16=1),COUNTRY_INFO!F16+COUNTRY_INFO!G16,0) -> 0 | F16: 0 | H16: 0
A17: =IF(AND(INTRO!$E$37="Endémique",INTRO!$E$39="Non endémique"),IF(COUNTRY_INFO!A17=0," ",COUNTRY_INFO!A17)," ") ->  | B17: =IF(AND(INTRO!$E$37="Endémique",INTRO!$E$39="Non endémique"),IF(COUNTRY_INFO!B17=0," ",COUNTRY_INFO!B17)," ") ->  | C17: =IF(AND(INTRO!$E$37="Endémique",INTRO!$E$39="Non endémique"),IF(COUNTRY_INFO!C17=0," ",COUNTRY_INFO!C17)," ") ->  | D17: =IF(COUNTRY_INFO!Z17<>"",COUNTRY_INFO!V17,0) -> 0 | E17: =IF(AND(COUNTRY_INFO!Z17<>"",COUNTRY_INFO!$H17=1),COUNTRY_INFO!F17+COUNTRY_INFO!G17,0) -> 0 | F17: 0 | H17: 0
A18: =IF(AND(INTRO!$E$37="Endémique",INTRO!$E$39="Non endémique"),IF(COUNTRY_INFO!A18=0," ",COUNTRY_INFO!A18)," ") ->  | B18: =IF(AND(INTRO!$E$37="Endémique",INTRO!$E$39="Non endémique"),IF(COUNTRY_INFO!B18=0," ",COUNTRY_INFO!B18)," ") ->  | C18: =IF(AND(INTRO!$E$37="Endémique",INTRO!$E$39="Non endémique"),IF(COUNTRY_INFO!C18=0," ",COUNTRY_INFO!C18)," ") ->  | D18: =IF(COUNTRY_INFO!Z18<>"",COUNTRY_INFO!V18,0) -> 0 | E18: =IF(AND(COUNTRY_INFO!Z18<>"",COUNTRY_INFO!$H18=1),COUNTRY_INFO!F18+COUNTRY_INFO!G18,0) -> 0 | F18: 0 | H18: 0
A19: =IF(AND(INTRO!$E$37="Endémique",INTRO!$E$39="Non endémique"),IF(COUNTRY_INFO!A19=0," ",COUNTRY_INFO!A19)," ") ->  | B19: =IF(AND(INTRO!$E$37="Endémique",INTRO!$E$39="Non endémique"),IF(COUNTRY_INFO!B19=0," ",COUNTRY_INFO!B19)," ") ->  | C19: =IF(AND(INTRO!$E$37="Endémique",INTRO!$E$39="Non endémique"),IF(COUNTRY_INFO!C19=0," ",COUNTRY_INFO!C19)," ") ->  | D19: =IF(COUNTRY_INFO!Z19<>"",COUNTRY_INFO!V19,0) -> 0 | E19: =IF(AND(COUNTRY_INFO!Z19<>"",COUNTRY_INFO!$H19=1),COUNTRY_INFO!F19+COUNTRY_INFO!G19,0) -> 0 | F19: 0 | H19: 0
A20: =IF(AND(INTRO!$E$37="Endémique",INTRO!$E$39="Non endémique"),IF(COUNTRY_INFO!A20=0," ",COUNTRY_INFO!A20)," ") ->  | B20: =IF(AND(INTRO!$E$37="Endémique",INTRO!$E$39="Non endémique"),IF(COUNTRY_INFO!B20=0," ",COUNTRY_INFO!B20)," ") ->  | C20: =IF(AND(INTRO!$E$37="Endémique",INTRO!$E$39="Non endémique"),IF(COUNTRY_INFO!C20=0," ",COUNTRY_INFO!C20)," ") ->  | D20: =IF(COUNTRY_INFO!Z20<>"",COUNTRY_INFO!V20,0) -> 0 | E20: =IF(AND(COUNTRY_INFO!Z20<>"",COUNTRY_INFO!$H20=1),COUNTRY_INFO!F20+COUNTRY_INFO!G20,0) -> 0 | F20: 0 | H20: 0
A21: =IF(AND(INTRO!$E$37="Endémique",INTRO!$E$39="Non endémique"),IF(COUNTRY_INFO!A21=0," ",COUNTRY_INFO!A21)," ") ->  | B21: =IF(AND(INTRO!$E$37="Endémique",INTRO!$E$39="Non endémique"),IF(COUNTRY_INFO!B21=0," ",COUNTRY_INFO!B21)," ") ->  | C21: =IF(AND(INTRO!$E$37="Endémique",INTRO!$E$39="Non endémique"),IF(COUNTRY_INFO!C21=0," ",COUNTRY_INFO!C21)," ") ->  | D21: =IF(COUNTRY_INFO!Z21<>"",COUNTRY_INFO!V21,0) -> 0 | E21: =IF(AND(COUNTRY_INFO!Z21<>"",COUNTRY_INFO!$H21=1),COUNTRY_INFO!F21+COUNTRY_INFO!G21,0) -> 0 | F21: 0 | H21: 0
A22: =IF(AND(INTRO!$E$37="Endémique",INTRO!$E$39="Non endémique"),IF(COUNTRY_INFO!A22=0," ",COUNTRY_INFO!A22)," ") ->  | B22: =IF(AND(INTRO!$E$37="Endémique",INTRO!$E$39="Non endémique"),IF(COUNTRY_INFO!B22=0," ",COUNTRY_INFO!B22)," ") ->  | C22: =IF(AND(INTRO!$E$37="Endémique",INTRO!$E$39="Non endémique"),IF(COUNTRY_INFO!C22=0," ",COUNTRY_INFO!C22)," ") ->  | D22: =IF(COUNTRY_INFO!Z22<>"",COUNTRY_INFO!V22,0) -> 0 | E22: =IF(AND(COUNTRY_INFO!Z22<>"",COUNTRY_INFO!$H22=1),COUNTRY_INFO!F22+COUNTRY_INFO!G22,0) -> 0 | F22: 0 | H22: 0
A23: =IF(AND(INTRO!$E$37="Endémique",INTRO!$E$39="Non endémique"),IF(COUNTRY_INFO!A23=0," ",COUNTRY_INFO!A23)," ") ->  | B23: =IF(AND(INTRO!$E$37="Endémique",INTRO!$E$39="Non endémique"),IF(COUNTRY_INFO!B23=0," ",COUNTRY_INFO!B23)," ") ->  | C23: =IF(AND(INTRO!$E$37="Endémique",INTRO!$E$39="Non endémique"),IF(COUNTRY_INFO!C23=0," ",COUNTRY_INFO!C23)," ") ->  | D23: =IF(COUNTRY_INFO!Z23<>"",COUNTRY_INFO!V23,0) -> 0 | E23: =IF(AND(COUNTRY_INFO!Z23<>"",COUNTRY_INFO!$H23=1),COUNTRY_INFO!F23+COUNTRY_INFO!G23,0) -> 0 | F23: 0 | H23: 0
A24: =IF(AND(INTRO!$E$37="Endémique",INTRO!$E$39="Non endémique"),IF(COUNTRY_INFO!A24=0," ",COUNTRY_INFO!A24)," ") ->  | B24: =IF(AND(INTRO!$E$37="Endémique",INTRO!$E$39="Non endémique"),IF(COUNTRY_INFO!B24=0," ",COUNTRY_INFO!B24)," ") ->  | C24: =IF(AND(INTRO!$E$37="Endémique",INTRO!$E$39="Non endémique"),IF(COUNTRY_INFO!C24=0," ",COUNTRY_INFO!C24)," ") ->  | D24: =IF(COUNTRY_INFO!Z24<>"",COUNTRY_INFO!V24,0) -> 0 | E24: =IF(AND(COUNTRY_INFO!Z24<>"",COUNTRY_INFO!$H24=1),COUNTRY_INFO!F24+COUNTRY_INFO!G24,0) -> 0 | F24: 0 | H24: 0
A25: =IF(AND(INTRO!$E$37="Endémique",INTRO!$E$39="Non endémique"),IF(COUNTRY_INFO!A25=0," ",COUNTRY_INFO!A25)," ") ->  | B25: =IF(AND(INTRO!$E$37="Endémique",INTRO!$E$39="Non endémique"),IF(COUNTRY_INFO!B25=0," ",COUNTRY_INFO!B25)," ") ->  | C25: =IF(AND(INTRO!$E$37="Endémique",INTRO!$E$39="Non endémique"),IF(COUNTRY_INFO!C25=0," ",COUNTRY_INFO!C25)," ") ->  | D25: =IF(COUNTRY_INFO!Z25<>"",COUNTRY_INFO!V25,0) -> 0 | E25: =IF(AND(COUNTRY_INFO!Z25<>"",COUNTRY_INFO!$H25=1),COUNTRY_INFO!F25+COUNTRY_INFO!G25,0) -> 0 | F25: 0 | H25: 0
A26: =IF(AND(INTRO!$E$37="Endémique",INTRO!$E$39="Non endémique"),IF(COUNTRY_INFO!A26=0," ",COUNTRY_INFO!A26)," ") ->  | B26: =IF(AND(INTRO!$E$37="Endémique",INTRO!$E$39="Non endémique"),IF(COUNTRY_INFO!B26=0," ",COUNTRY_INFO!B26)," ") ->  | C26: =IF(AND(INTRO!$E$37="Endémique",INTRO!$E$39="Non endémique"),IF(COUNTRY_INFO!C26=0," ",COUNTRY_INFO!C26)," ") ->  | D26: =IF(COUNTRY_INFO!Z26<>"",COUNTRY_INFO!V26,0) -> 0 | E26: =IF(AND(COUNTRY_INFO!Z26<>"",COUNTRY_INFO!$H26=1),COUNTRY_INFO!F26+COUNTRY_INFO!G26,0) -> 0 | F26: 0 | H26: 0
A27: =IF(AND(INTRO!$E$37="Endémique",INTRO!$E$39="Non endémique"),IF(COUNTRY_INFO!A27=0," ",COUNTRY_INFO!A27)," ") ->  | B27: =IF(AND(INTRO!$E$37="Endémique",INTRO!$E$39="Non endémique"),IF(COUNTRY_INFO!B27=0," ",COUNTRY_INFO!B27)," ") ->  | C27: =IF(AND(INTRO!$E$37="Endémique",INTRO!$E$39="Non endémique"),IF(COUNTRY_INFO!C27=0," ",COUNTRY_INFO!C27)," ") ->  | D27: =IF(COUNTRY_INFO!Z27<>"",COUNTRY_INFO!V27,0) -> 0 | E27: =IF(AND(COUNTRY_INFO!Z27<>"",COUNTRY_INFO!$H27=1),COUNTRY_INFO!F27+COUNTRY_INFO!G27,0) -> 0 | F27: 0 | H27: 0

Sheet SUMMARY
B2: Formulaire de demande commune de médicaments pour CP v.4.0
B4: Ce formulaire constitue une demande officielle du Gouvernement à l'OMS pour l'approvisionnement des médicaments mentionnés ci-dessus. Ce formulaire peut-être soumis à n'importe quel moment, avant le 15 août de l'année en cours, pour une livraison de médicaments au courant de l'année suivante, mais au moins 6-8 mois avant l’intervention planifiée afin de laisser le temps nécessaire pour réviser et approuver la demande, placer la commande, élaborer les médicaments et les expédier vers les pays.
B6: Pays | C6: =IF(INTRO!$E$33<>0,INTRO!$E$33," ") -> Guinée Équatoriale | G6: Année | H6: =IF(INTRO!$E$35<>0,INTRO!$E$35," ") -> 2023
B8: Information on PC medicines requested to WHO
B10: Le médicament | C10: Groupe ciblé | D10: Nombre de comprimés | H10: Préciser l’origine
D11: Requis | E11: En stock | F11: En cours de demande | G11: Demandés
B12: Diethylcarbamazine | C12: TOUTE | D12: 0 | E12: 0 | G12: =IF(D12>(E12+F12),D12-E12-F12, 0) -> 0
G13: 0
B14: Ivermectine | C14: TOUTE | D14: 0 | E14: 0 | G14: 0
B16: Albendazole pour FL | C16: TOUTE | D16: 1714108 | E16: 857000 | G16: 857108
G17: 0
B18: Albendazole pour STH | C18: EAPréS | D18: 34640 | G18: 34640
C19: EAS | D19: 103250 | G19: 103250
C20: Adultes | D20: 94392 | G20: 94392
B22: Mebendazole | C22: EAPréS | G22: 0
C23: EAS | G23: 0
C24: Adultes | G24: 0
B26: Praziquantel | C26: EAPréS | D26: 0 | G26: 0
C27: EAS | D27: 203100 | G27: 203100
C28: Adultes | D28: 754899 | G28: =IF(D28>(E28+F28),D28-E28-F28, 0) -> 754899
B30: Nombre de personnes devant être traitées avec le médicament donné
B32: La maladie | F32: 1er tour | G32: 2ème tour | H32: 3ème tour
B33: Filariose lymphatique | C33: Ces chiffres sont estimés uniquement pour les goupes d'âge ciblés pour le traitement avec les médicaments donnés, dans les régions où le traitement de maladies spécifiques est requis | F33: 857054
B34: Onchocercose | F34: 0 | G34: 0
B35: Schistosomiase | F35: 353183 | G35: 0
B36: Géohelminthiases | F36: 123912 | G36: 108370 | H36: 0
B40: Informations sur les interventions CP planifiées
B42: Le médicament | C42: Veuillez sélectionner une date (mois et année) pour la 1ère tournée de CP | E42: Veuillez sélectionner une date (mois et année) pour la 2ème tournée de CP | G42: Date à laquelle les médicaments devraient atteindre l’entrepôt national
B43: Diethylcarbamazine
B44: Ivermectine
B45: Albendazole pour FL | C45: Juillet | D45: 2023 | G45: Avril | H45: 2023
B46: Albendazole pour STH | C46: Juillet | D46: 2023 | E46: Décembre | F46: 2023 | G46: Avril | H46: 2023
B47: Mebendazole
B48: Praziquantel | C48: Juillet | D48: 2023 | G48: Avril | H48: 2023
B50: Récapitulatif - Checklist
B51: Submission
B52: Que faut-il soumettre ?
B53: L'approvisionnement des médicaments demandés doit être basé sur des données épidémiologiques à jour, des plans d'utilisation des médicaments spécifiques et sur la capacité de mise en oeuvre. La liste suivante permet d'assurer que tous les formulaires et toutes les informations sont fournis à l'OMS (en format électronique).
B54: Formulaire de demande commune de médicaments pour chimioprévention
B55: Formulaire de rapport commun
B56: Déclaration des données épidémiologiques pour la CP
B58: Disponibilité de financement pour la mise en oeuvre de tournées pendant l’année pour laquelle les medicaments ont été demandés
B60: Maladies ciblées pour la mise en oeuvre | C60: # de traitements | D60: Financement assuré pour | E60: Origine | H60: Montant
B61: Filariose lymphatique | C61: =SUM(F33:H33) -> 857054 | E61: ESPEN/OMS
B62: Onchocercose | C62: =SUM(F34:H34) -> 0
B63: Schistosomiase | C63: =SUM(F35:H35) -> 353183 | E63: ESPEN/OMS
B64: Géohelminthiases | C64: =SUM(F36:H36) -> 232282 | E64: ESPEN/OMS
B66: Qui doit remplir le formulaire ?
B67: Le Coordonnateur national MTN doit compiler toutes les informations nécessaires pour compléter le formulaire de demande. En l'absence d'un coordonnateur, les gestionnaires de programmes spécifiques devraient coordonner leurs sections respectives. Une fois finalisée, chaque demande individuelle doit être approuvée par le Ministère de la Santé.
B69: Informations concernant la (les) personne(s) ayant rempli le formulaire
B71: Titre/fonction | C71: Nom | E71: Téléphone | G71: Email | H71: Date
B72: Coordonnateur MTN/CP | C72: Rufino Nguema Andeme | E72: 00240 222 27 01 24 | G72: rufonguema@yahoo.es | H72: 2022-11-11
B79: L’OMS recommende que tous les effets secondaires graves suspectés d’être associés à l’ingestion de médicaments de CP soient rapportés en suivant les lignes directrices nationales de pharmacovigilance. En l’absence d’un système de pharmacovigilance national, contactez le département de Contrôle des Maladies Tropicales Négligées pour être conseillé.
B80: L’OMS s’est engagée à rendre possible la donation de médicaments en fournissant gratuitement: a) albendazole, mebendazole et praziquantel à l’entrepôt national du Ministère de la Santé et b) diethylcarbamazine au port d’entrée du pays receveur.
B81: L’institution soumettant la présente requête est responsable de: a) l’organisation du déchargement des médicaments du camion, du stockage dans l’entrepôt national et de l’expédition vers les centres où aura lieu la distribution finale; b) de l’enregistrement, si nécessaire, des médicaments donnés, auprès des autorités nationales en charge; et de c) de l’information de n’importe quels changements ayant trait à leurs campagnes de traitement (par exemple le report d’une date planifiée de distribution en masse de médicaments, le remplacement d’un coordonateur MTN, etc.).
C82: J’ai pris connaissance et accepté la politique de la communication de données de l’OMS
C83: Je confirme que toutes les informations fournies dans ce formulaire sont complètes et correctes
B84: Nom et signature du Coordonnateur MTN ou du Représentant du Ministère de la Santé | D84: Rufino Nguema Andeme
B85: Date
B87: Si vous avez plus d'un destinataire final pour les médicaments de chimioprévention demandés, veuillez compléter les informations de la rubrique "Informations concernant l'envoi et le destinataire" dans la feuille de travail SHIPMENT.
B88: Veuillez envoyer le rapport national (signé et sous format électronique) au représentant de I'OMS du pays en mettant en copie:
B89: Siège de l'OMS | C89: PC_JointForms@who.int
B90: Bureau régional de l'OMS | C90: Conseiller régional MTN
B91: Mectizan donation programme | C91: Dr Yao Sodahlon, email: ysodahlon@taskforce.org
B93: Veuillez noter que votre demande sera examinée par un panel d'experts indépendants (Comité ad hoc d’évaluation conjointe). Les informations contenues dans ce formulaire, le rapport commun d'activités (ou rapport national d'activités) et le plan d'action annuel sont essentiels à l'OMS pour assurer un usage optimal des médicaments. Dans le cadre de ses activités courantes de suivi et d'évaluation, et afin d'honorer ses obligations contractuelles envers les bailleurs de fonds et autres partenaires, l'OMS et ses agents affiliés se réservent le droit d'inspecter, périodiquement, les stocks de médicaments au niveau national.

Sheet SHIPMENT
B2: Formulaire de demande commune de médicaments pour CP v.4.0
B4: Pays | C4: =IF(INTRO!$E$33<>0,INTRO!$E$33," ") -> Guinée Équatoriale | G4: Année | H4: =IF(INTRO!$E$35<>0,INTRO!$E$35," ") -> 2023
B6: Information on shipment and consignee
C8: Destinataire | F8: Destinataire final si différent du destinaire précédent
B9: Nom | C9: MANKELE ANTONIN RAYLOUIS | F9: RUFINO NGUEMA ANDEME
B10: Département/Unité | F10: PROGRAMME DE LUTTE CONTRE LES MTN-CTP
B11: Organisation | C11: ORGANISATION MONDIALE DE LA SANTE | F11: MINISTERE DE LA SANTE ET DU BIEN ETRE
B12: Téléphone | C12: 00240 222 21 68 54 | F12: 00240 222 27 01 24
B13: Fax
B14: E-mail | C14: mankeler@who.int | F14: rufonguema@yahoo.es
B15: Adresse postale
C17: Destinataire | F17: Destinataire final si différent du destinaire précédent
B18: Nom | C18: MANKELE ANTONIN RAYLOUIS | F18: RUFINO NGUEMA ANDEME
B19: Département/Unité | F19: PROGRAMME DE LUTTE CONTRE LES MTN-CTP
B20: Organisation | C20: ORGANISATION MONDIALE DE LA SANTE | F20: MINISTERE DE LA SANTE ET DU BIEN ETRE
B21: Téléphone | C21: 00240 222 21 68 54 | F21: 00240 222 27 01 24
B22: Fax
B23: E-mail | C23: mankeler@who.int | F23: rufonguema@yahoo.es
B24: Adresse postale
C26: Destinataire | F26: Destinataire final si différent du destinaire précédent
B27: Nom | C27: MANKELE ANTONIN RAYLOUIS | F27: RUFINO NGUEMA ANDEME
B28: Département/Unité | F28: PROGRAMME DE LUTTE CONTRE LES MTN-CTP
B29: Organisation | C29: ORGANISATION MONDIALE DE LA SANTE | F29: MINISTERE DE LA SANTE ET DU BIEN ETRE
B30: Téléphone | C30: 00240 222 21 68 54 | F30: 00240 222 27 01 24
B31: Fax
B32: E-mail | C32: mankeler@who.int | F32: rufonguema@yahoo.es
B33: Adresse postale
B36: Information concernant les obligations légales d’importation
B38: Est le permis d'importation nécessaire? | H38: Oui
B39: Combien de temps cela prend-il pour obtenir le permis d’importation? | H39: Semaines
B40: Avez vous besoin que certains documents soient remis en même temps que la demande de permis d’importation? | H40: Oui
B42: Est-ce que le destinataire doit procéder au dédouanement avant que l’expédition puisse avoir lieu? | H42: No
B43: Y a-t-il des informations supplémentaires qui pourraient être utiles afin d’assurer un dédouanement et une livraison rapide des médicaments dans votre pays? | H43: No
B46: Remarques supplémentaires éventuelles liées à cette requête

Sheet DATA_POLICY (hidden)
B2: Formulaire de demande commune de médicaments pour CP v.4.0
B4: Pays | D4: =IF(INTRO!$E$33<>0,INTRO!$E$33," ") -> Guinée Équatoriale | G4: Année | H4: =IF(INTRO!$E$35<>0,INTRO!$E$35," ") -> 2023
B7: Déclaration de principe sur la communication de données par l’OMS
B9: Les données sont le fondement de toutes les mesures rationnelles de santé publique et les avantages de la communication de données, y compris pour la science et la santé publique, sont largement reconnus. L’OMS souhaite promouvoir autant que possible la communication de données sanitaires, y compris, mais pas uniquement, de données épidémiologiques et de surveillance.
B14: ="À cet égard, et sans préjudice des instruments juridiquement contraignants régissant la communication et la publication d’informations, le Ministère de la santé de " & D4 & ", en fournissant des données à l’OMS :" -> À cet égard, et sans préjudice des instruments juridiquement contraignants régissant la communication et la publication d’informations, le Ministère de la santé de Guinée Équatoriale, en fournissant des données à l’OMS :
B18: confirme que toutes les données à fournir à l’OMS, ont été collectées conformément à la législation nationale applicable, y compris aux lois de protection des données visant à préserver l’anonymat des personnes identifiables ;
B23: ="convient que l’OMS aura le droit, toujours sous réserve des mesures visant à garantir l’utilisation éthique et sécurisée des données et toujours sous réserve d’une reconnaissance appropriée de la part de "&D4&":" -> convient que l’OMS aura le droit, toujours sous réserve des mesures visant à garantir l’utilisation éthique et sécurisée des données et toujours sous réserve d’une reconnaissance appropriée de la part de Guinée Équatoriale:
C27: de publier les données, dépourvues de tout élément d’identification personnelle (ci-après dénommées « les données ») et de les mettre à la disposition de toute partie intéressée, sur demande (dans la mesure où elles n’ont pas, ou pas encore, été publiées par l’OMS), selon des modalités autorisant leur utilisation non commerciale et sans but lucratif à des fins de santé publique (pour autant que l’OMS garde la maîtrise de la publication des données) ; d’utiliser, de compiler, d’agréger, d’évaluer et d’analyser les données et de publier et de diffuser les résultats obtenus grâce à ces données en rapport avec des travaux de l’OMS et conformément aux politiques et pratiques de l’Organisation.
B39: =CONCATENATE("Sauf lorsque des instruments juridiquement contraignants (RSI, Règlement de Nomenclature de l’OMS, de 1967, etc.) disposent que les données doivent être communiquées et publiées, le Ministère de la santé de ", D4," peut, pour certaines données, décider de ne pas appliquer (tout ou partie des) (les) dispositions qui précèdent," & " en informant l’OMS par écrit à l’adresse suivante, à condition que cette notification précise clairement les données, " & "dont il s’agit et indique clairement lesquelles des dispositions qui précèdent ne seront pas appliquées, et pour quels motifs.") -> Sauf lorsque des instruments juridiquement contraignants (RSI, Règlement de Nomenclature de l’OMS, de 1967, etc.) disposent que les données doivent être communiquées et publiées, le Ministère de la santé de Guinée Équatoriale peut, pour certaines données, décider de ne pas appliquer (tout ou partie des) (les) dispositions qui précèdent, en informant l’OMS par écrit à l’adresse suivante, à condition que cette notification précise clairement les données, dont il s’agit et indique clairement lesquelles des dispositions qui précèdent ne seront pas appliquées, et pour quels motifs.
